{"text_format":"3","workbook":"xlsx","n_sheets":1,"sheets":["总"],"not_rendered":{"defined_names":3},"read":"whole","date_system":"1900"}

{"sheet":"总","index":0,"n_rows":364,"n_cols":31,"rows_kept":364,"merged":[[1,1,1,29],[2,0,2,26],[3,0,6,0],[3,1,5,2],[3,3,6,3],[3,4,6,4],[3,5,6,5],[3,6,6,6],[3,7,6,7],[3,8,6,8],[3,9,3,16],[3,17,5,24],[3,25,6,25],[3,26,6,26],[3,27,6,27],[3,28,6,28],[3,29,6,29],[3,30,6,30],[4,9,6,9],[4,10,4,15],[6,17,6,18],[6,19,6,20],[6,21,6,22],[6,23,6,24],[7,0,7,7],[8,0,8,3],[8,4,8,7],[14,0,14,3],[14,4,14,7],[16,0,16,3],[16,4,16,7],[18,0,18,3],[18,4,18,7],[29,0,29,3],[29,4,29,7],[31,0,31,3],[31,4,31,7],[41,0,41,3],[41,4,41,7],[188,0,188,3],[188,4,188,7],[204,0,204,3],[204,4,204,7],[235,0,235,3],[235,4,235,7],[237,0,237,3],[237,4,237,7],[253,0,253,3],[253,4,253,7],[256,0,256,3],[256,4,256,7],[284,0,284,3],[284,4,284,7],[289,0,289,3],[289,4,289,7],[296,0,296,3],[296,4,296,7],[349,0,349,3],[349,4,349,7],[355,0,355,3],[355,4,355,7],[357,0,357,3],[357,4,357,7]]}
["附件1"]
[null,"三江侗族自治县2025年计划实施财政衔接乡村振兴补助资金项目资金分配明细表"]
["  填报单位 :县衔接资金项目管理工作专班                                                                                                                                              填报日期：2025年02月13日"]
["序号","项目地点",null,"项目名称","资金投向 \n（项目类型）\n1.乡村建设行动\n2.产业发展\n3.项目管理费\n4.易地搬迁后扶\n5.巩固三保障成果\n6.就业项目","建设性质\n（新建、续建、往年项目资金缺口）","主要建设内容\n（详细说明）","时间进度计划\n（2025年x月--2025年x月）","项目总投资金额\n（万元）","安排资金文号及规模",{"$nulls":7},"受益对象",{"$nulls":7},"主管部门","实施单位","年度绩效目标","联农带农机制","备注","变动情况说明"]
[{"$nulls":9},"合计","原安排资金",{"$nulls":5},"本次安排资金"]
[{"$nulls":10},"中央提前批","自治区提前批","中央二批","自治区二批","柳州市一批","县本级","自治区三批"]
[null,"乡(镇)\n名称","行政\n村名",{"$nulls":7},"桂整合\n〔2024〕29号\n24771万\n","桂整合\n〔2024〕29号\n10068万\n","桂整合\n〔2025〕5号2488万","桂整合\n〔2025〕5号\n5417万","柳财预\n〔2025〕269号\n3561万","三财政\n〔2025〕1号\n2371万","桂整合\n〔2025〕16号\n610万","受益村（个数）",null,"受益总人数",null,"其中：脱贫人口（含监测人员）",null,"其中：易地搬迁对象\n（易安点项目填写）"]
["合计",{"$nulls":7},{"$f":"SUM(I9,I15,I17,I19,I30,I32,I42,I189,I205,I236,I238,I254,I257,I285,I290,I297,I350,I356,I358)","v":51198.413865},49286,24771,10068,2488,5417,3561,2371,610,{"$f":"SUM(R9,R15,R17,R19,R30,R32,R42,R189,R205,R236,R238,R254,R257,R285,R290,R297,R350,R356,R358)","v":1008},1672,865265,3379420,277733,1075896,63438,247214]
["县发改局",{"$nulls":3},"小计",{"$nulls":3},{"$f":"SUM(I10:I14)","v":745.536239},{"$f":"SUM(J10:J14)","v":733},528,70,135,0,0,0,null,{"$f":"SUM(R10:R14)","v":2},3,1479,5972,415,1963,19,72]
[1,"丹洲镇","板江社区","丹洲镇板江社区雷洞屯至麻江屯道路提升工程","乡村建设行动","新建","1、新建桥梁两座：分别为桥梁全长23米，宽5.5米及15米引道；桥梁全长20米，宽5.5米及15米引道。2.新建拦水坝一座，长7米及水渠长25米。3.新建挡土墙三幅，总长130米。","2025年1月--2025年12月",113.1855,{"$f":"K10+L10+P10+M10+N10+O10","v":113.1855},113.1855,{"$nulls":6},1,null,172,655,25,85,0,0,"发改局","丹洲镇","完成桥梁2座，拦水坝1座","改善雷洞屯至麻江屯路段农民群众出行便利，有效提升农产品种植和运输。","以工代赈-提前批"]
[2,"梅林乡","梅林村","梅林乡梅林村平力屯至梅林村梅林屯道路提升工程","乡村建设行动","新建","1、新建6幅挡土墙，总长407米。2、新建60*60排水沟长37米、40*40排水沟长236米、40*40盖板沟长30米。3、新建台阶长48米。4、新建圆管涵长32米。\n1、新建挡土墙2幅，总长136米。2、新建40*40排水沟136米。3、路肩硬化110平方米","2025年1月--2025年12月",113.8812,{"$f":"K11+L11+P11+M11+N11+O11","v":113.8812},113.8812,{"$nulls":7},1,746,2873,176,723,14,58,"发改局","梅林乡","解决梅林村道路通车问题，改善村基础设施。","改善梅林村平力、岑朗屯的生产生活条件，方便群众出行。","以工代赈-提前批"]
[3,"同乐乡","归亚村","同乐苗族乡归亚村归亚屯习先道路防护工程","乡村建设行动","新建","新建1幅长25米，高4米挡土墙","2025年2月--2025年12月",17.5366,{"$f":"K12+L12+P12+M12+N12+O12","v":17.5366},17.5366,{"$nulls":7},1,264,1178,176,980,null,null,"发改局","发改局","解决村屯产业通车问题，改善归亚村基础设施，方便264户1178人出行、满足产业需求","改善归亚村生产条件，促进产业发展，方便群众出行。","以工代赈-提前批"]
[4,"古宜镇","寨准村","古宜镇寨准村六合屯通屯道路工程项目","乡村建设行动","新建","新建桥梁一座，全长62.0m，总宽5.50m，新建道路路面250.3米，路面宽4.5米新建挡土墙5幅共1240m³，新建50涵管44米，新建波形防护栏172米。","2025年2月—2025年10月",356.3029,{"$f":"K13+L13+P13+M13+N13+O13","v":345},140,70,135,{"$nulls":4},1,null,172,706,18,69,2,6,"发改局","发改局","按时按质按量完成","降低当地村民农业产品运输成本，行人出行安全问题"]
[5,"梅林乡","新民村","梅林乡新民村下寨屯农田水利基础设施建设项目","乡村建设行动","新建","1、30*30水沟维修长505米；2、加拦水坝长9米；3、新建30*30水沟长3米；4、60*60水沟维修长5530米","2025年1月--2025年12月",144.630039,{"$f":"K14+L14+P14+M14+N14+O14","v":143.3967},143.3967,{"$nulls":7},1,125,560,20,106,3,8,"发改局","梅林乡","有效解决新民下寨屯水利基础实施，方便群众生产生活，解决125户560人农田用水的问题。","改善新民村生产生活条件，促进产业发展","以工代赈-提前批"]
["县文联",null,"小计",null,"小计",{"$nulls":3},{"$f":"SUM(I16)","v":400},{"$f":"SUM(J16)","v":400},0,0,0,0,0,400,null,{"$f":"SUM(R16)","v":2},3,1400,0,0,0,0,500]
[6,"三江县","全县","三江侗族自治县农民画产业化发展“强基固本”项目","产业发展","续建","1.培育壮大三江农民画队伍。加大培训力度，持续开展一批农民作者和农民画师提升班培训，促进三江农民画人才梯队式发展，为产业化的发展奠定基础。2.巩固提升三江农民画基地。以基地建设为抓手，完成县民族中学、县民族高中、龙城笔阵基地等场地提升，以基地为窗口，宣传展示三江农民画独特魅力。3.参加全国农民画精品系列巡展。积极创作更多精品，组织参加广西农民画精品进京展及全国各地系列巡展，举办首届怀远杯(三江杯)农民画大赛暨全国农民画精品展，举办农民画文创大赛暨产业化发展论坛，承接2025广西农民画培训成果汇报展暨农民画回乡展（三江县城），提升农民画知名度和美誉度。4.打造三江农民画文化品牌。坚持农民画的传承保护与创新，举办农民画两本书(理论、画册)全区发布会并争取入选东盟图书，举办独峒镇农民画文化艺术节，形成三江文化品牌效应。5.夯实三江农民画全产业基础。坚持以市场为导向，以工业化的理念打造农民画产业链，制定三江农民画传承与发展长期规划，打造一个三江县农民画展览中心，创建三江县农民画产业示范村(程阳村岩寨屯)，健全联农带农益家机制，为产业化的发展奠定基础。","2025年1月-2025年12月",400,{"$f":"K16+L16+P16+M16+N16+O16","v":400},{"$nulls":5},400,null,2,3,1400,{"$nulls":4},500,"文联","三江县文联","三江农民画2012年被列入自治区级非物质文化遗产项目名录，近年来共有近300幅作品在全国、全区文艺展览、赛事中获奖。目前长期从事农民画创作的作者约600人，年产值约为500万元，为脱贫攻坚和乡村振兴助力赋能。通过实施“强基固本”项目，不断提升农民画产业化基础，形成产业链。并以画师培训、巡展宣传、文创推送、提供就业、文旅结合、研学引客、作品展销等方式,受益农户0.14万户0.14万人左右,其中脱贫户、监测户0.05万户0.05万人左右，人均年增收600元左右。","通过作品销售/务工就业/培训指导/文创产品/产业基础配套设施建设/文旅消费/其他等方式，促进农户年增收超过600元左右。"]
["县牛浪坡林场",null,"小计",null,"小计",{"$nulls":3},{"$f":"SUM(I18)","v":36},{"$f":"J18","v":36},36,0,0,0,0,0,null,36,36,36,36,36,36,36,36]
[7,"国营三江侗族自治县牛浪坡林场","河口分场","牛浪坡林场河口分场林下百部种植项目","产业发展","新建","国营三江侗族自治县牛浪坡林场河口分场九公里杉木林建立林下种植百部示范林，种植面积100亩。种植采收周期3年。可以有效地利用森林资源，减少对原始森林的砍伐和破坏。有助于林业的可持续发展。通过充分利用森林资源，实现土地的多元利用和循环利用，减少对土地、水资源和化肥的过度消耗，降低环境污染的风险。来增加平方土地上经济产出，提高林场经济收入，","2025年2月-2025年12月",36,{"$f":"K18+L18+P18+M18+N18+O18","v":36},36,{"$nulls":6},1,null,40,60,{"$nulls":4},"牛浪坡林场","牛浪坡林场"," 国营三江侗族自治县牛浪坡林场河口分场九公里杉木林建立林下种植百部示范林，。项目建成后，利润：10000元-15000元/亩/三年。通过林下种植百部起到示范带动作用，可以带动农民合作与协作，促进了地域合作和交流，增强了地域凝聚力，增加农村地区的经济活动和发展机会。为林场提供新的收入来源，增加县财政收入。","百部林下种植需要劳动力参与，提供了农村地区的就业机会，有助于减轻农村劳动力闲置问题，促进农民增收。","欠发达国有林场巩固提升任务"]
["县易服中心",null,"小计",null,"小计",{"$nulls":3},{"$f":"SUM(I20:I29)","v":527.184778},{"$f":"SUM(J20:J29)","v":506},0,471,35,0,0,0,null,{"$f":"SUM(R20:R29)","v":0},10,16248,70446,16152,70082,16128,69987]
[8,"古宜镇","富安家园安置点","古宜镇富安家园安置点基础配套附属设施建设项目（易安后扶）","易地搬迁后扶","新建","1、安装带杆太阳能路灯35盏 2、下水道井盖9个 3、小区消防通道划线150平方米。","2025年3月-2025年12月",14.450754,{"$f":"K20+L20+P20+M20+N20+O20","v":13},null,13,{"$nulls":6},1,131,717,131,717,131,717,"易服中心","易服中心","通过建设项目，完善安置点基础设施，解决富安家园易安点小区巷道晚间黑暗问题，消除安全隐患，保障群众生活安全、提高易安点治安安全系数，方便出行、改善居民生活条件和强身健体，受益群众131户717人。","通过建设项目，有效改善安置点基础设施，解决131户717人晚间巷道黑暗问题，消除安全隐患，保障群众生活安全、提高易安点治安安全系数，方便出行、改善居民生活条件。"]
[9,"古宜镇","厘金滩安置点","古宜镇厘金滩安置点基础配套附属设施建设项目（易安后扶）","易地搬迁后扶","新建","13栋、14栋化粪池出口管道维修61米","2025年3月-2025年12月",5.004741,13,null,13,{"$nulls":6},1,56,300,56,300,56,300,"易服中心","易服中心","通过建设项目，解决易安点排污管道堵塞、完成化粪池排水管排污功能等问题，改善搬迁群众生活环境，提升安置点基础设施条件，提高群众获得感和满意度，受益群众56户300人。 ","通过完善安置点基础附属设施，解决56户300人易安点排污管道堵塞、安全出行等问题，改善搬迁群众生活环境，提升安置点基础设施条件和提高群众满意度。"]
[10,"古宜镇","南站社区","古宜镇南站社区基础配套附属设施建设项目（易安后扶）","易地搬迁后扶","新建","1、安装5个小区太阳能路灯172盞 2、侗笛小区、鼓楼小区各2套安防设施，共4套安防设施（车辆识别杆系统） 3、鼓楼小区、侗笛小区新建排水沟共223米。","2025年3月-2025年12月",79.470376,80.5,null,66,14.5,{"$nulls":5},1,4606,19581,4606,19581,4606,19581,"易服中心","易服中心","通过建设项目，继续完善安置点基础配套设施，一是解决安置点各小区晚间巷道黑暗问题，方便搬迁群众日常出行，消除安全隐患；二是有效易安小区治安管理乱问题，保障搬迁群众居住安全，使搬迁群众的安全感得到提升；三是解决小区排污管道堵塞、雨季排水不顺畅，积水等问题，提升居民居住环境，提高群众满意度。受益群众4606户19581人。","通过建设项目，完善安置点基础设施，解决4606户19581人晚间出行安全、车辆管理、治安管理、排水管堵塞等问题，提高安置点治安安全系数，方便出行、改善居民生活环境，让搬迁群众住的放心、住得舒心。"]
[11,"古宜镇","南站社区","古宜镇南站社区排水沟建设项目（易安后扶）","易地搬迁后扶","新建","1.新建排水沟一条（长度423米、深度1.25米、宽度2.1米），沉沙井7个，集水井2个等。","2025年3月-2025年12月",100.611395,103,null,89,14,{"$nulls":5},1,4606,19581,4606,19581,4606,19581,"易服中心","易服中心","通过建设项目，继续完善安置点基础配套设施，解决社区排污管道堵塞、雨季排水不顺畅，积水等问题，提升居民居住环境，提高群众满意度。受益群众4606户19581人。","通过建设项目，完善安置点基础设施，解决4606户19581人出行安全、排水管堵塞等问题，改善安置点居民生活居住环境，方便群众到社区办理事务，提高获得感和满意度。"]
[12,"林溪镇","风雨九寨安置点","林溪镇风雨九寨安置点安防建设项目（易安后扶）","易地搬迁后扶","新建","建设小区安防设施一套（单元楼梯口不锈钢防盗设施，含机械锁和电子钥匙）","2025年3月-2025年12月",6.934278,6,null,6,{"$nulls":6},1,132,554,132,554,132,554,"易服中心","易服中心","通过建设项目，完善安置点基础配套设施，建设单元楼门禁，禁止外来人员随便出入，消除安全隐患，受益群众132户554人。","通过建设项目，解决小区单元楼无门禁，外来人员随便出入的安全隐患，为132户554名群众的人身财产安全保驾护航。"]
[13,"良口乡","良口开发区安置点","良口乡良口开发区安置点基础配套附属设施建设项目（易安后扶）","易地搬迁后扶","新建","1、建设排水沟48米 2、11栋前道路硬化268平方米 3、无障碍通道（楼梯扶手21个单元共148米） 4、小区治安设施1个。","2025年3月-2025年12月",12.063205,10,null,10,{"$nulls":6},1,204,793,204,793,204,793,"易服中心","易服中心","通过建设项目，继续完善安置点基础配套设施，一为特殊群体提供便利服务，建设楼梯扶手方便他们日常出行；二解决安置点内雨季排水不顺畅、积水等问题；三是解决小区治安管理及方便群众办理事务问题，提升居民居住环境，提高群众满意度。受益204户793人。","通过建设项目，方便204户793人搬迁群众办事服务，增加党群联系，解决安置点搬迁群众日常出行、雨季积水、排水堵塞、治安管理等问题，提高安置点治安安全系数，方便出行、改善居民生活环境，让搬迁群众住的放心、住得舒心。"]
[14,"富禄乡","侗乡苗寨安置点","富禄苗族乡侗乡苗寨安置点基础配套附属设施建设项目（易安后扶）","易地搬迁后扶","新建","新建蓄水池1个。长4.4米，宽3.4米，深1.9米，存水量约10吨","2025年3月-2025年12月",3.000723,2.5,null,2,0.5,{"$nulls":5},1,197,972,197,972,197,972,"易服中心","易服中心","通过建设项目，进一步完善居民用水基础服务设施，通过建设蓄水池，可以有效解决居民用水不足问题，对进入蓄水池的水进行沉淀、过滤，提高供水的质量，为安置点提供紧急备用水源，解决群众生活用水难题，确保搬迁户正常用水，让搬迁群众住得安心，提升群众满意度，受益群众197户972人。 ","通过建设项目，完善安置小区基础附属设施，解决197户972人搬迁群众生活用水难题。为安置点提供紧急备用水源，确保搬迁户正常用水，有效解决搬迁群众的安全饮水。方便群众出行，让搬迁群众搬得出住得稳，有获得感、幸福感。"]
[15,"同乐乡","高武村平文屯安置点","同乐乡高武村平文屯安置点基础配套附属设施建设项目（易安后扶）","易地搬迁后扶","新建","1、排雨水水沟（含盖板）33.6米；2、巷道硬化496平方米","2025年3月-2025年12月",9.133364,8,null,6,2,{"$nulls":5},1,143,564,47,200,23,105,"易服中心","易服中心","通过建设项目，完善安置点基础配套设施，解决排水沟堵塞、雨季排水不顺畅，积水等问题，提升居民居住环境，提高群众满意度。受益群众23户105人。","通过建设项目，完善易安点基础设施建设，解决23户105人居住环境，提高获得感和满意度。"]
[16,"同乐乡","归夯村安置点","同乐乡归夯村安置点基础配套附属设施建设项目（易安后扶）","易地搬迁后扶","新建","1、巷道维修硬化201平方米 2、防护设施25米  3、公路旁排水沟117米","2025年3月-2025年12月",16.515942,14,null,10,4,{"$nulls":5},1,54,260,54,260,54,260,"易服中心","易服中心","通过建设项目，完善安置点搬迁群众活动场地，方便安置点居民出行便利，解决雨季路面积水等问题，不断提升安置点居住环境，提升群众幸福感及满意度，受益群众54户260人。","通过建设项目，解决安置点54户260人搬迁群众活动场地、雨季路面积水等问题，改善安置点基础设施。"]
[17,"三江侗族自治县","三江县易地搬迁安置点","三江侗族自治县易地扶贫搬迁2025年融资利息及地方政府债券利息（易安后扶）","易地搬迁后扶","新建","2016-2018年易地扶贫搬迁项目已融资 133536.42万元，截止2024年9月30日已归70454.83万元，剩余金额63081.59万元;根据历年政府债券资金提示付息通知书及银行测算，我县2025年需偿还融资利息约280万元。","2025年3月-2025年12月",280,256,null,256,{"$nulls":6},1,6119,27124,6119,27124,6119,27124,"易服中心","三江县电力有限责任公司","通过建设项目，按时偿还“十三五”规划时期产生的易地扶贫搬迁融资及地方政府债券利息，保持企业良好征信，受益群众6119户27124人。","通过偿还“十三五”规划时期产生的易地扶贫搬迁融资及地方政府债券利息，保持企业良好征信。"]
["县融媒体中心",null,"小计",null,"小计",{"$nulls":3},{"$f":"SUM(I31)","v":441.17},{"$f":"SUM(J31)","v":441},0,441,0,0,0,0,null,{"$f":"SUM(R31)","v":0},0,60000,300000,0,0,0,0]
[18,"全县",null,"2025年三江侗族自治县特色产业与文旅产业品牌宣传推广项目","产业发展","新建","与中央电视台开展三江茶品牌宣传推广；运维“三江早春茶”品牌抖音号平台；运维三江早春茶微信公众号1个；运维三江早春茶视频号1个；三江特色产业品牌形象宣传推广；“两茶”等特色产业宣传片制作4个；三江侗族自治县乡村振兴网络名人培育基地（直播带货和实训基地）四个直播间直播带货一体机矩阵建设和平台矩阵系统配备维护升级项目；三江早春茶系列视频推广；与新媒体协会策划三江早春茶系列宣传活动策划。","2025年1月-2025年12月",441.17,{"$f":"K31+L31+P31+M31+N31+O31","v":441},null,441,{"$nulls":7},60000,300000,{"$nulls":4},"融媒体中心","融媒体中心","1、在中央电视台农业农村频道CCTV-17播出特别节目专题片2集，节目主题为关注三江茶叶产业，茶旅结合，时长10分钟；播出新闻动态报道8条；在中央广播电视总台农业农村节目中心新媒体平台，发布特色主题宣传片8条。2、通过专业团队运维专属三江茶品牌推广的抖音号、微信公众号、视频号三个新媒体平台，合计完成60个1分钟以内的短视频发布、70条推文发布、完成32场直播带货，通过短视频、直播推广、直播带货、图文推广等形式，以及与上级媒体平台合作，抢占宣传舆论阵地，营造产茶大县氛围，助力三江茶品牌打造和推广。3、采集、制作特色产业品牌形象推广1分钟以内短视频20个，全年官方全媒体矩阵展示；自媒体制作特色产业品牌形象推广1分钟以内短视频40个，在自媒体平台发布。4、完成三江油茶、三江茶叶等内容宣传片制作2个，时长每个5-7分钟，并在三江电视台播出，在风情三江视频号和抖音号等平台发布；自媒体完成特色产业5条品牌宣传小短片，时长1—2分钟，在自媒体平台发布。5、自媒体策划“茶韵三江，视界绽放” 优质短视频征集活动：预计参与用户：10人+，精选主推视频5个+。“春茶潮拍，抖出精彩”抖音短视频创作大赛：预计参与用户：30人+，预计总流量：200万+。“品三江早春茶，赢幸运早茶礼” 逢 6 有礼公众号推文活动：浏览量6000+。“墨香茶语，文润三江” 三江早春茶优质软文创作活动：向县内外10个+知名媒体平台发布推文。“镜藏茶影，定格美好” 三江早春茶摄影大赛活动：投稿30人+，征集作品100+（以上工作分两个阶段进行）","\"通过国家级权威媒体助力三江茶品牌打造和推广，提升三江茶知名度和认可度，进而拓展市场开发，促进茶农茶青销售、茶叶销售。通过本地媒体矩阵推广和宣传，助力三江茶品牌打造和推广，提升三江茶知名度和认可度，进而拓展市场开发，促进茶农茶青销售、茶叶销售。通过网络宣传平台运维，抢占宣传舆论阵地，营造产茶大县氛围，助力三江茶品牌打造和推广。进而拓展三江茶市场影响力和占有率，促进茶农茶青销售、茶叶销售。与合作入驻基地的经济组织签协议，利用乡村振兴网络直播带货平台，直接带动相关产业的企业、专业合作社、村集体经济组织在线上销售产品，实现经济收入。\""]
["县交通局",null,"小计",null,"小计",{"$nulls":3},{"$f":"SUM(I33:I41)","v":607.6742},{"$f":"SUM(J33:J41)","v":569},374,80,0,0,115,0,null,{"$f":"SUM(R33:R41)","v":4},5,5441,20418,1319,5532,0,0]
[19,"丹洲镇","板江社区","丹洲镇板江社区雷洞屯至麻江屯防护栏（三项工程）","乡村建设行动","新建","雷洞屯至麻江屯道路新建2公里波形防护栏","2025年1月-2025年12月",48.3769,{"$f":"K33+L33+P33+M33+N33+O33","v":45},37,{"$nulls":3},8,null,null,1,null,543,2397,88,309,null,null,"交通运输局","公路发展中心","新建2公里波形防护栏，完善村屯基础设施建设，提升村基础设施环境和生活条件，解决沿线543户，2397人出行难问题，其中脱贫户88户，309人。\n数量指标：新建道路防护工程   =2公里；\n质量指标：项目（工程）验收合格率  =100%；\n时效指标：项目（工程）完成及时率  =100%；\n成本指标：项目建设总成本 ≤42万元；\n社会效益指标：解决沿线群众行路难问题受益人数  ≥2397人;\n可持续影响指标:工程设计使用年限 ≥10年;\n服务对象满意度指标:受益贫困人口满意度  ≥90%;","新建2公里波形防护栏，完善村屯基础设施建设，提升村基础设施环境和生活条件，解决沿线543户，2397人出行难问题，其中脱贫户88户，309人。"]
[20,"独峒镇","知了村","独峒镇知了村屯级道路安防建设项目工程（三项工程）","乡村建设行动","新建","归滚、知了、良拜屯共新建道路安全防护栏约2公里","2025年1月-2025年12月",46.6135,44,31,8,null,null,5,{"$nulls":3},1,632,2499,189,806,null,null,"交通运输局","公路发展中心","新建2公里波形防护栏，提升村基础设施环境和生活条件，解决知了村道路存在安全隐患问题，完善村屯基础设施建设，保障632户2499人出行安全\n数量指标：新建道路防护工程   =2公里；\n质量指标：项目（工程）验收合格率  =100%；\n时效指标：项目（工程）完成及时率  =100%；\n成本指标：项目建设总成本 ≤42万元；\n社会效益指标：解决沿线群众行路难问题受益人数  ≥2499人;\n可持续影响指标:工程设计使用年限 ≥10年;\n服务对象满意度指标:受益贫困人口满意度  ≥90%;","新建2公里波形防护栏，完善村屯基础设施建设，提升村基础设施环境和生活条件，解决知了村道路存在安全隐患问题，完善村屯基础设施建设，保障632户2499人出行安全"]
[21,"高基乡","桐叶村","高基乡桐叶村必赖屯道路防护栏（三项工程）","乡村建设行动","新建","新建道路防护栏总长350米","2025年1月-2025年12月",4.3238,4,3,{"$nulls":3},1,null,null,1,null,261,1057,70,299,null,null,"交通运输局","公路发展中心","新建350米波形防护栏，完善村屯基础设施建设，提升村基础设施环境和生活条件，解决沿线261户，1057人出行难问题，其中脱贫户70户，299人。\n数量指标：新建道路防护工程   =350米；\n质量指标：项目（工程）验收合格率  =100%；\n时效指标：项目（工程）完成及时率  =100%；\n成本指标：项目建设总成本 ≤5万元\n社会效益指标：解决沿线群众行路难问题受益人数  ≥1057人;\n可持续影响指标:工程设计使用年限 ≥10年;\n服务对象满意度指标:受益贫困人口满意度  ≥90%;","新建350米波形防护栏，完善村屯基础设施建设，提升村基础设施环境和生活条件，解决沿线261户，1057人出行难问题，其中脱贫户70户，299人。"]
[22,"良口乡","产口村","良口乡产口村屯级道路提升建设工程（三项工程）","乡村建设行动","新建","高贵、寨枝、寨沙、长冲屯全程6.8公里，扩宽硬化1米以及挡土墙多处。","2025年1月-2025年12月",137.5811,128,83,{"$nulls":3},45,{"$nulls":3},1,517,2090,136,582,null,null,"交通运输局","公路发展中心","新建6.8公里通屯道路3.5米宽混凝土路面加宽提升1米。完善村屯基础设施建设，提升村基础设施环境和生活条件，解决沿线517户，2090人出行难问题，其中脱贫户136户，582人。\n数量指标：新建改建公路里程 =6.8公里；\n质量指标：项目（工程）验收合格率  =100%；\n时效指标：项目（工程）完成及时率  =100%；\n成本指标：项目建设总成本 ≤140万元；\n社会效益指标：解决沿线群众行路难问题受益人数 ≥2090人;\n可持续影响指标:工程设计使用年限 ≥10年;\n服务对象满意度指标:受益贫困人口满意度  ≥90%;","新建6.8公里通屯道路3.5米宽混凝土路面加宽提升1米。完善村屯基础设施建设，提升村基础设施环境和生活条件，解决沿线517户，2090人出行难问题，其中脱贫户136户，582人。"]
[23,"同乐乡","七团村","同乐乡七团村七团屯入村生命防护栏及道路修复项目（三项工程）","乡村建设行动","新建","建设600米生命防护栏及路面修复总长度50米长、4.5米宽，厚0.2米，路面加宽120米，宽1米，厚0.2米","2025年1月-2025年12月",14.2994,14,9,{"$nulls":3},5,{"$nulls":3},1,605,2431,276,1195,null,null,"交通运输局","公路发展中心","新建600米波形防护栏。完善村屯基础设施建设，提升村基础设施环境和生活条件，解决沿线605户，2431人出行难问题，其中脱贫户276户，1195人。\n数量指标：新建道路防护工程   =600米；\n质量指标：项目（工程）验收合格率  =100%；\n时效指标：项目（工程）完成及时率  =100%；\n成本指标：项目建设总成本 ≤20万元；\n社会效益指标：解决沿线群众行路难问题受益人数 ≥2431人;\n可持续影响指标:工程设计使用年限 ≥10年;\n服务对象满意度指标:受益贫困人口满意度  ≥90%;","新建600米波形防护栏。完善村屯基础设施建设，提升村基础设施环境和生活条件，解决沿线605户，2431人出行难问题，其中脱贫户276户，1195人。"]
[24,"同乐乡","七团村","同乐乡七团屯至高洋村通屯路生命防护栏项目（三项工程）","乡村建设行动","新建","新建4公里通屯道路波形护栏及标志标牌。","2025年1月-2025年12月",73.9583,70,53,12,null,null,5,{"$nulls":3},1,605,2431,276,1195,null,null,"交通运输局","公路发展中心","新建4公里波形防护栏，完善村屯基础设施建设，提升村基础设施环境和生活条件，解决沿线605户，2431人出行难问题，其中脱贫户276户，1195人。\n数量指标：新建道路防护工程   =4公里；\n质量指标：项目（工程）验收合格率  =100%；\n时效指标：项目（工程）完成及时率  =100%；\n成本指标：项目建设总成本 ≤84万元；\n社会效益指标：解决沿线群众行路难问题受益人数  ≥2431人;\n可持续影响指标:工程设计使用年限 ≥10年;\n服务对象满意度指标:受益贫困人口满意度  ≥90%;","新建4公里波形防护栏，完善村屯基础设施建设，提升村基础设施环境和生活条件，解决沿线605户，2431人出行难问题，其中脱贫户276户，1195人。\n"]
[25,"同乐乡","桂书村","同乐乡桂书村高扒屯至高武屯路面加宽工程（三项工程）","乡村建设行动","新建","新建4.2公里通屯道路3.5米宽混凝土路面加宽提升1米。","2025年1月-2025年12月",47.5003,45,30,{"$nulls":3},15,{"$nulls":3},1,412,1686,129,525,null,null,"交通运输局","公路发展中心","新建4.2公里通屯道路3.5米宽混凝土路面加宽提升1米。完善村屯基础设施建设，提升村基础设施环境和生活条件，解决沿线412户，1686人出行难问题，其中脱贫户129户，526人。\n数量指标：新建改建公路里程 =4.2公里；\n质量指标：项目（工程）验收合格率  =100%；\n时效指标：项目（工程）完成及时率  =100%；\n成本指标：项目建设总成本 ≤76万元；\n社会效益指标：解决沿线群众行路难问题受益人数 ≥1686人;\n可持续影响指标:工程设计使用年限 ≥10年;\n服务对象满意度指标:受益贫困人口满意度  ≥90%;","新建4.2公里通屯道路3.5米宽混凝土路面加宽提升1米。完善村屯基础设施建设，提升村基础设施环境和生活条件，解决沿线412户，1686人出行难问题，其中脱贫户129户，526人。"]
[26,"林溪镇","林溪社区","林溪镇林溪社区道路桥梁工程项目","乡村建设行动","新建","新建道路桥梁长45米，宽6米，高7.7米。","2025年1月-2025年12月",200,186,106,60,null,null,20,null,null,1,null,1316,4139,81,342,null,null,"交通运输局","公路发展中心","完成新建道路桥梁长45米，宽6米，高7.7米，及配套设施建设。","解决道路通车问题，改善脱贫村和面上村基础设施，方便4139人出行水平。"]
[27,"和平乡","六溪村","和平乡六溪村六溪村至泗泷屯路面加宽提升工程（三项工程）","乡村建设行动","新建","扩宽六溪村至泗泷屯通屯道路。1.4公里原3.5米路面硬化加宽至4.5路面","2025年1月-2025年12月",35.0209,33,22,{"$nulls":3},11,null,null,1,null,550,1688,74,279,null,null,"交通运输局","公路发展中心","新建1.4公里通屯道路3.5米宽混凝土路面加宽提升1米。，完善村屯基础设施建设，提升村基础设施环境和生活条件，解决沿线550户，1688人出行难问题，其中脱贫户74户，279人。\n数量指标：新建改建公路里程 =1.4公里；\n质量指标：项目（工程）验收合格率  =100%；\n时效指标：项目（工程）完成及时率  =100%；\n成本指标：项目建设总成本 ≤20万元；\n社会效益指标：解决沿线群众行路难问题受益人数 ≥1688人;\n可持续影响指标:工程设计使用年限 ≥10年;\n服务对象满意度指标:受益贫困人口满意度  ≥90%;","新建1.4公里通屯道路3.5米宽混凝土路面加宽提升1米。，完善村屯基础设施建设，提升村基础设施环境和生活条件，解决沿线550户，1688人出行难问题，其中脱贫户74户，279人。"]
["县农业农村局",null,"小计",null,"小计",{"$nulls":3},{"$f":"SUM(I43:I188)","v":30599.524933},{"$f":"SUM(J43:J188)","v":29812},{"$f":"SUM(K43:K188)","v":15615},{"$f":"SUM(L43:L188)","v":4573},1118,3484,2566,1846,610,{"$f":"SUM(R43:R188)","v":480},718,165537,575472,75798,229047,9049,16597]
[28,"三江县","各村","2025年三江侗族自治县螺蛳粉原材料基地建设以奖代补项目","产业发展","新建","发展螺蛳粉原材料（豆角、木耳螺蛳）基地建设，对达到补助条件的种植/养殖户、村集体和新型经营主体进行奖补，积极推进螺蛳粉原材料产业发展。","2025年3月--2025年12月",584,{"$f":"K43+L43+P43+M43+N43+O43+Q43","v":565},null,565,{"$nulls":7},200,600,80,240,null,null,"农业农村局","农业农村局","建设螺蛳粉原材料（豆角、木耳螺蛳）基地，对达到补助条件的种植/养殖户、村集体和新型经营主体进行奖补，带动农户就业和发展产业，同时增加村集体经济收入。实现就业人员或者发展产业农户增收1000元以上。","实现就业人员或者发展产业农户增收1000元以上，增加村集体经济收入。"]
[29,"三江县","各村","2025年三江侗族自治县到户产业以奖代补项目","产业发展","新建","对发展县级“5”产业、村级“3”产业和自主从全区86个产业中自选一个产业并达到补助条件的脱贫户、监测对象进行奖补。","2025年3月--2025年12月",3100,{"$f":"K44+L44+P44+M44+N44+O44+Q44","v":3160.02927},2494,650,{"$nulls":3},16.02927,null,64,98,12000,36000,12000,36000,null,null,"农业农村局","农业农村局","对发展县级“5”村级“3”特色产业和自主从全区86个产业中自选一个产业并达到补助条件的脱贫户、监测对象进行奖补。通过实施以奖代补政策，年带动农户12000户以上发展生产，实现户均增收1200元以上。","其他，促进农户户均年增收超过0.12万元。"]
[30,"三江县","各村","2025年三江侗族自治县雨露计划项目","巩固三保障成果","新建","1.雨露计划职业教育学历补助补助；\n2.雨露计划短期技能培训；\n3.雨露计划农民实用技术培训。","2025年3月--2025年12月",1430,1430,720,330,380,{"$nulls":4},169,169,12000,12000,12000,12000,2170,2170,"农业农村局","农业农村局（乡村振兴综合服务中心）","一是核实核准雨露计划学生信息，做到精准补助、应补尽补，确保补助资金按时足额发放到户。二是根据贫困劳动力转移就业需求，有针对性地开展短期技能培训，实现技能型就业，提高就业质量；三是围绕产业发展需要，大力开展农村实用技术培训，重点培育一批“土专家”、种养能手和技术骨干。","通过“雨露计划”引导农村脱贫户（监测对象）家庭初中、高中毕业生和青壮年劳动力接受学历教育及技能培训，提升内生动力，促进转移就业，实现增收致富，阻断贫困代际传递。"]
[31,"三江县","各村","2025年三江侗族自治县脱贫人口小额信贷贴息资金","产业发展","新建","完成脱贫人口小额信贷贴息，解决脱贫人口发展生产启动资金难问题，支持脱贫人口发展生产","2025年3月--2025年12月",1200,1200,1200,{"$nulls":6},62,98,5000,20000,4000,16000,1000,4000,"农业农村局","农业农村局（乡村振兴综合服务中心）","完成脱贫人口小额信贷贴息，解决脱贫人口发展生产启动资金难问题，支持脱贫人口发展生产，受益户数 6000户。","按时完成脱贫人口小额信贷贴息5000户，促进脱贫人口增收"]
[32,"三江县","各村","2025年三江侗族自治县脱贫人口小额信贷风险补偿金","产业发展","新建","完成脱贫人口小额信贷风险补偿，防范化解金融风险。","2025年3月--2025年12月",135,135,null,135,{"$nulls":5},62,98,5000,20000,4000,16000,1000,4000,"农业农村局","农业农村局（乡村振兴综合服务中心）","完成脱贫人口小额信贷风险补偿，防范化解金融风险。"]
[33,"三江县","各村","2025年三江侗族自治县乡村振兴公益岗补助","就业项目","新建","开发公益性岗位，解决4000左右人次就业，保障脱贫人口就业稳定、解决就业问题、巩固脱贫成效。详见附件6.","2025年3月--2025年12月",5949,5949,2526,167,587,2309,null,null,360,null,null,4000,4000,3800,3800,1000,1000,"农业农村局","农业农村局（乡村振兴综合服务中心）","完成开发公益性岗位，解决4000左右人次就业，保障脱贫人口就业稳定、解决就业问题、巩固脱贫成效，促进脱贫人口增收。","通过务工就业/技术培训指导/等方式，促进农户年增收超过1000万元。"]
[34,"三江县","各村","2025年三江侗族自治县脱贫人口跨省一次性交通补助","就业项目","新建","对前往区外务工脱贫户（含监测户）劳动力享受不低于300元/人／年一次性交通补贴，完成年任务2万人给以一次性交通补助。","2025年3月--2025年12月",1500,1500,600,300,null,515,null,null,85,null,null,6000,20000,5800,19800,2000,1000,"农业农村局","农业农村局（乡村振兴综合服务中心）","到区外务工脱贫户（含监测户）一次性交通补贴补助2万人，保障脱贫人口就业稳定、解决就业问题、巩固脱贫成效，促进脱贫人口增收。","通过务工就业/技术培训指导/等方式，促进农户年增收超过1000万元。"]
[35,"三江县","各村","2025年三江侗族自治县脱贫人口县域内稳定就业补助","就业项目","新建","在县域内稳定就业补助（150至400元/人.月），补助最长不超过6个月。","2025年3月--2025年12月",500,515,240,120,{"$nulls":4},155,null,null,3000,4000,2900,3900,1000,800,"农业农村局","农业农村局（乡村振兴综合服务中心）","完成县域内劳务补贴补助0.3万人，保障脱贫人口就业稳定、解决就业问题、巩固脱贫成效，促进脱贫人口增收。","通过务工就业/技术培训指导/等方式，促进农户年增收超过1000万元。"]
[36,"三江县","各村","2025年三江侗族自治县项目（扶贫）资产管护金","项目管理费","新建","对三江县2013年至2023年度项目（扶贫）资产进行管护，保障项目（扶贫）资产管理工作正常开展，资产持续正常使用，保障资金使用效益。详见附件4.","2025年3月--2025年12月",609.458625,609.458625,{"$nulls":4},609.458625,{"$nulls":10},"农业农村局","各乡镇",null,"对三江县2013年至2023年度项目（扶贫）资产进行管护，保障项目（扶贫）资产管理工作正常开展，资产持续正常使用，保障资金使用效益。"]
[37,"三江县","各村","2024年巩固拓展脱贫攻坚成果和乡村振兴任务项目（续建）","项目管理费","续建","支付2024年衔接资金项目巩固拓展脱贫攻坚成果和乡村振兴任务项目尾款、质保金。详见附件5.","2025年3月--2025年12月",1500,1598.746265,{"$nulls":4},1598.746265,{"$nulls":10},"农业农村局","各单位",null,"支付三江县2024年度项目尾款、质保金，保障项目按时按质完成，保障资金使用效益。"]
[38,"三江县","各村","2025年三江侗族自治县衔接资金项目管理费","项目管理费","新建","2025年度资金项目设计预算、监理等项目管理费用。详见附件2.","2025年3月--2025年12月",2500,2460.76584,240,100,null,null,290.79511,1829.97073,{"$nulls":9},"农业农村局","各单位",null,"完成三江县2025年度资金项目管理费用支付管理，保障项目管理合法合规按时按质完成。"]
[39,"斗江镇","滩底村","斗江镇滩底村河村屯生猪养殖场项目","产业发展","新建","建设生猪养殖场5000平方米，建设厂房及附属设备。","2025年3月--2025年12月",490,490,420,null,null,70,{"$nulls":11},"农业农村局","农业农村局",null,"按照投资资金4%的比例获取分红，每村每年预计通过分红收入2.8万元。","集体经济项目"]
[40,"八江镇","三团村","2025年八江镇集体经济项目（综合种养基地）","产业发展","新建","占地面积9112.5平方米。1.厂房共4座，建筑面积（钢架棚）4416平方米；配套建筑面积（宿舍、料房）93.18平方米。2.水塔（15吨）2座，化粪池1座；3.外电安装","2025年3月--2025年12月",140,140,140,{"$nulls":14},"农业农村局","八江镇",null,"按照投资资金4%的比例获取分红，每村每年预计通过分红收入2.8万元。","集体经济项目"]
[41,"斗江镇","斗江社区","斗江镇绿满园蛋鸡养殖场项目","产业发展","新建","项目占地面积12亩，建设钢结构鸡舍1栋、蛋库1栋、鸡粪棚、发电机房等配套设施。","2025年6月--2025年12月",490,490,{"$nulls":3},490,{"$nulls":11},"农业农村局","农业农村局",{"$nulls":3},"新增项目"]
[42,"三江县","三江县","2025年三江茶品牌运营项目","产业发展","续建","举办2025年三江早春茶线上产销对接会暨三江茶文化活动，以及其它茶事活动等；参加国内各类展销会、博览会；品牌宣传广告投放；三江茶品质提升技术开发及风味特色挖掘；三江茶商标及专利维护等。","2025年1月-2025年12月",{"v":260,"d":"260.00"},260,null,{"v":160,"d":"160.00"},null,{"v":100,"d":"100.00"},{"$nulls":3},66,96,65000,250000,16800,60000,null,null,"三江县农业农村局","三江县农业农村局","本项目通过组织企业参加国内各类茶叶展销会，参加及举办各类茶事活动；产品品质提升等措施促进茶叶销售；通过三江早春茶广告投放，提高三江茶品牌知名度。通过以上品牌打造措施，带动16800户脱贫户茶青收购，实现脱贫户增收。","通过参加国内各类展销会、博览会，各类茶事活动，广告投放等，提高三江茶品牌知名度，促进企业茶产品销售，从而带动茶农茶青收购，实现联农带农富农目标。"]
[43,"古宜镇","大竹村","古宜镇大竹村茶叶产业基地便道建设","产业发展","新建","硬化茶园便道1.946公里。","2025年3月-2025年11月",{"v":34.933692,"d":"34.93"},33,{"v":33,"d":"33.00"},{"$nulls":6},1,null,932,3670,73,264,null,0,"三江县农业农村局","古宜镇","完成建设茶园便道1.946公里。","促进产业发展改善平传村基础设施，方便3670人差农业发展。","乡镇"]
[44,"古宜镇","平传村","古宜镇平传村茶叶产业基地便道建设工程","产业发展","新建","硬化茶园便道7.5公里。","2025年3月-2025年11月",90.463217,86,71,15,{"$nulls":5},1,null,610,2510,62,212,null,null,"三江县农业农村局","古宜镇","完成建设茶园便道7.5公里。","促进产业发展改善平传村基础设施，方便610户2510人差农业发展。","乡镇"]
[45,"古宜镇","文大村","古宜镇文大村茶叶产业基地便道建设工程","产业发展","新建","硬化茶园便道2.4公里。","2025年3月-2025年11月",31.017285,29,22,7,{"$nulls":5},1,null,242,971,12,33,null,null,"三江县农业农村局","古宜镇","完成建设茶园便道2.4公里。","改善生产生活条件，促进产业发展，巩固脱贫成果。方便971人群众发展生产","乡镇"]
[46,"古宜镇","寨准村","古宜镇寨准村茶叶产业基地便道建设工程","产业发展","新建","硬化茶园便道4公里。","2025年3月-2025年11月",82.583635,78,63,15,{"$nulls":5},1,null,148,657,10,42,null,null,"三江县农业农村局","古宜镇","完成建设茶园便道2.4公里。","改善生产生活条件，促进产业发展，巩固脱贫成果。方便278人群众发展生产","乡镇"]
[47,"独峒镇","唐朝村","独峒镇唐朝村茶叶产业基地便道建设工程","产业发展","新建","硬化茶园便道6.4公里。","2025年3月-2025年11月",{"v":142.67548,"d":"142.675480"},135,113,22,{"$nulls":6},1,682,2830,273,1450,null,null,"三江县农业农村局","三江县农业农村局","完成建设茶园便道6.4公里。","完善唐朝村生产基础设施建设，方便群众发展生产，促进茶叶产业发展，受益群众682户2830人。","茶办"]
[48,"独峒镇","八协村","独峒镇八协村茶叶产业基地便道建设工程","产业发展","新建","硬化茶园便道5.4公里。","2025年3月-2025年11月",122.131631,116,94,22,{"$nulls":6},1,572,2266,125,504,null,null,"三江县农业农村局","三江县农业农村局","完成建设茶园便道5.4公里。","解决脱贫村生产便道硬化匮乏问题，改善贫困村基础设施，促进产业发展，方便572户2266人生产发展。","茶办"]
[49,"独峒镇","干冲村","独峒镇干冲村茶叶产业基地便道建设工程","产业发展","新建","硬化茶园便道3公里。","2025年3月-2025年11月",48.235487,43,27,16,{"$nulls":6},1,1426,5317,265,1157,null,null,"三江县农业农村局","独峒镇","完成建设茶园便道2公里。","解决脱贫村生产便道硬化匮乏问题，改善贫困村基础设施，促进产业发展，方便1426户5317人生产发展。","乡镇"]
[50,"独峒镇","林略村","独峒镇林略村茶叶产业基地便道建设工程","产业发展","新建","硬化茶园便道5公里。","2025年3月-2025年11月",118.294938,113,93,20,{"$nulls":6},1,887,3466,150,698,null,null,"三江县农业农村局","三江县农业农村局","完成建设茶园便道5公里。","解决脱贫村生产便道硬化匮乏问题，改善贫困村基础设施，促进产业发展，方便887户3466人生产发展。","茶办"]
[51,"洋溪乡","波里村","洋溪乡波里村茶叶产业基地便道建设工程","产业发展","新建","硬化茶园便道3公里。","2025年3月-2025年11月",51.46984,46,39,7,{"$nulls":6},1,421,1874,120,509,null,null,"三江县农业农村局","洋溪乡","完成建设茶园便道4公里。","改决村民出行困难等问题，增加农作物运输和护理效率，吸引外商投资，带动波里村产业发展。","乡镇"]
[52,"同乐乡","高旁村","同乐乡高旁村茶叶产业基地便道建设工程","产业发展","新建","硬化茶园便道8公里。","2025年3月-2025年11月",184.854362,175,145,30,{"$nulls":6},1,446,1723,192,800,null,null,"三江县农业农村局","三江县农业农村局","完成建设茶园便道8公里。","解决贫困村产业生产安全出行问题，改善贫困村基础设施，方便446户1723人出行安全，保障村民出行安全，促进村民产业发展。","茶办"]
[53,"同乐乡","高洋村","同乐乡高洋村茶叶产业基地便道建设工程","产业发展","新建","硬化茶园便道5公里。","2025年3月-2025年11月",80.147806,71,56,15,{"$nulls":6},1,561,2616,166,736,null,null,"三江县农业农村局","同乐乡","完成建设茶园便道5公里。","为茶农提供了更加便捷的通行条件，降低了劳动强度，从而提高了劳动效率；有利于茶园的精细化管理，茶农可以更加方便地巡视茶园，及时发现并处理病虫害等问题，保证茶叶的生长环境良好，直接促进了茶产业的发展，提高了茶叶的产量和质量，进而增加了茶农的收入从而提升茶叶的品质，","乡镇"]
[54,"同乐乡","寨大村","同乐乡寨大村茶叶产业基地便道建设工程","产业发展","新建","硬化茶园便道7.3公里。","2025年3月-2025年11月",89.936885,81,70,11,{"$nulls":5},1,null,240,948,45,166,null,null,"三江县农业农村局","同乐乡","完成建设茶园便道7.3公里。","完善产业基地配套设施，扩大产业种植规模，促进产业提质增效。增加农户收入，壮大村集体经济。方便240户948人开展产业活动。","乡镇"]
[55,"同乐乡","同乐村","同乐乡同乐村茶叶产业基地便道建设工程","产业发展","新建","硬化茶园便道10公里。","2025年3月-2025年11月",184.053292,175,145,30,{"$nulls":6},1,1402,4963,275,1125,null,null,"三江县农业农村局","三江县农业农村局","完成建设茶园便道10公里。","完善产业基地配套设施，扩大产业种植规模，促进产业提质增效。增加农户收入，壮大村集体经济。方便1402户4963人开展产业活动。","茶办"]
[56,"同乐乡","归东村","同乐乡归东村茶叶产业基地便道建设工程","产业发展","新建","硬化茶园便道6公里。","2025年3月-2025年11月",138.587029,131,116,15,{"$nulls":6},1,560,2277,305,1274,null,null,"三江县农业农村局","三江县农业农村局","完成建设茶园便道6公里。","完善产业基地配套设施，扩大产业种植规模，促进产业提质增效。增加农户收入，壮大村集体经济。方便560户2277人开展产业活动。","茶办"]
[57,"同乐乡","地保村","同乐乡地保村茶叶产业基地便道建设工程","产业发展","新建","硬化茶园便道10公里。","2025年3月-2025年11月",{"v":176.544381,"d":"176.54"},167,137,30,{"$nulls":6},1,405,1561,166,683,null,null,"三江县农业农村局","三江县农业农村局","完成建设茶园便道4公里。","改善生产生活条件，促进产业发展，巩固脱贫成果。方便群众发展生产","茶办"]
[58,"程村乡","大树村","程村乡大树村茶叶产业基地便道建设工程","产业发展","新建","硬化茶园便道3.6公里。","2025年3月-2025年11月",49.362111,44,37,7,{"$nulls":5},1,null,224,759,41,147,null,null,"三江县农业农村局","程村乡","完成建设茶园便道3.6公里。","改善生产生活条件，促进产业发展，巩固脱贫成果。方便群众发展生产","乡镇"]
[59,"八江镇","汾水村","八江镇汾水村茶叶产业基地便道建设工程","产业发展","新建","硬化茶园便道4公里。","2025年3月-2025年11月",42.124288,38,31,7,{"$nulls":5},0,1,781,3319,368,1550,null,null,"三江县农业农村局","八江镇","完成建设茶园便道4公里。","完善汾水村产业基础设施，促进产业发展，便于群众出行","乡镇"]
[60,"八江镇","八斗村","八江镇八斗村茶叶产业基地便道建设工程","产业发展","新建","硬化茶园便道8.6公里。","2025年3月-2025年11月",100.980389,96,80,16,{"$nulls":5},1,null,1210,4110,165,638,117,514,"三江县农业农村局","三江县农业农村局","完成建设茶园便道8.6公里。","改善生产生活条件，促进产业发展，巩固脱贫成果。方便群众发展生产","项目办"]
[61,"八江镇","归令村","八江镇归令村茶叶产业基地便道建设工程","产业发展","新建","硬化茶园便道5公里。","2025年3月-2025年11月",{"v":115.453754,"d":"115.45"},{"$f":"K76+L76+P76+M76+N76+O76+Q76","v":110},94,16,{"$nulls":6},1,631,2302,146,549,null,null,"三江县农业农村局","三江县农业农村局","完成建设茶园便道5公里。","改善生产生活条件，促进产业发展，巩固脱贫成果。方便群众发展生产","项目办"]
[62,"八江镇","岩脚村","八江镇岩脚村茶叶产业基地便道建设工程","产业发展","新建","硬化茶园便道3.6公里。","2025年3月-2025年11月",53.611198,48,41,7,{"$nulls":6},1,354,1170,118,440,null,null,"三江县农业农村局","八江镇","完成建设茶园便道3.6公里。","改善生产生活条件，促进产业发展，巩固脱贫成果。方便群众发展生产","乡镇"]
[63,"八江镇","布央村","八江镇布央村茶叶产业基地便道建设工程","产业发展","新建","硬化茶园便道8公里。","2025年3月-2025年11月",119.54756,114,99,15,{"$nulls":5},1,null,632,2361,144,558,33,148,"三江县农业农村局","三江县农业农村局","完成建设茶园便道8公里。","改善生产生活条件，促进产业发展，巩固脱贫成果。方便群众发展生产","项目办"]
[64,"良口乡","寨塘村","良口乡寨塘村茶叶产业基地便道建设工程","产业发展","新建","硬化茶园便道3.6公里。","2025年3月-2025年11月",62.759849,56,52.5,3.5,{"$nulls":6},1,279,1133,106,499,null,null,"三江县农业农村局","良口乡","完成建设茶园便道3.6公里。","完善产业基地配套设施，促进产业提质增效。增加农户收入，壮大村集体经济。","乡镇"]
[65,"良口乡","良口村","良口乡良口村茶叶产业基地便道建设工程","产业发展","新建","硬化茶园便道6.5公里。","2025年3月-2025年11月",96.143788,86,59.5,26.5,{"$nulls":5},1,null,1277,3786,278,1064,78,284,"三江县农业农村局","良口乡","完成建设茶园便道6.5公里。","完善产业基地配套设施，促进产业提质增效。增加农户收入，壮大村集体经济。","乡镇"]
[66,"林溪镇","高秀村","林溪镇高秀茶茶叶产业基地便道建设工程","产业发展","新建","硬化茶园便道2.5公里。","2025年3月-2025年11月",59.372481,53,42,11,{"$nulls":7},40,180,25,110,null,null,"三江县农业农村局","林溪镇","完成建设茶园便道2.5公里。","完善产业基地配套设施，扩大产业种植规模，促进产业提质增效。增加农户收入，壮大村集体经济。方便405户1561人开展产业活动。","乡镇"]
[67,"林溪镇","美俗村","林溪镇美俗村茶叶产业基地便道建设工程","产业发展","新建","硬化茶园便道10公里。","2025年3月-2025年11月",181.221005,172,142,30,{"$nulls":6},1,453,1645,122,337,47,180,"三江县农业农村局","三江县农业农村局","完成建设茶园便道10公里。","改善生产生活条件，促进产业发展，巩固脱贫成果。方便278人群众发展生产","茶办"]
[68,"老堡乡","老巴村","老堡乡老巴村茶叶产业基地便道建设工程","产业发展","新建","硬化茶园便道2.9公里。","2025年3月-2025年11月",68.572856,61,50,11,{"$nulls":6},1,336,1548,156,710,45,223,"三江县农业农村局","老堡乡","完成建设茶园便道2.9公里。","完善老巴村生产基础设施建设，方便群众发展生产，促进茶叶产业发展，受益群众336户1548人。","乡镇"]
[69,"老堡乡","边浪村","老堡乡边浪村茶叶产业基地便道建设工程","产业发展","新建","硬化茶园便道7公里。","2025年3月-2025年11月",{"v":135.24375,"d":"135.243750"},129,114.6,14.4,{"$nulls":6},1,343,1542,280,1292,null,null,"三江县农业农村局","三江县农业农村局","完成建设茶园便道7公里。","解决脱贫村生产便道硬化匮乏问题，改善贫困村基础设施，促进产业发展，方便343户1542人生产发展。","项目办"]
[70,"老堡乡","车田村","老堡乡车田村茶叶产业基地便道建设工程","产业发展","新建","硬化茶园便道10公里。","2025年3月-2025年11月",159.035411,150,123.7,26.3,{"$nulls":5},1,null,296,1140,33,126,26,98,"三江县农业农村局","三江县农业农村局","完成建设茶园便道10公里。","解决脱贫村生产便道硬化匮乏问题，改善贫困村基础设施，促进产业发展，方便296户1140人生产发展。","项目办"]
[71,"老堡乡","老堡村","老堡乡老堡村茶叶产业基地便道建设工程","产业发展","新建","硬化茶园便道6.3公里。","2025年3月-2025年11月",103.143116,98,78.7,19.3,{"$nulls":5},1,null,496,1829,77,291,null,null,"三江县农业农村局","三江县农业农村局","完成建设茶园便道6.3公里。","解决老堡村生产便道硬化匮乏问题，改善村内基础设施，促进产业发展，方便496户1829人生产发展。","项目办"]
[72,"斗江镇","东坪村","斗江镇东坪村茶叶产业基地便道建设工程","产业发展","新建","硬化茶园便道4.4公里。","2025年3月-2025年11月",65.279762,58,47,11,{"$nulls":5},1,null,371,1271,20,57,null,null,"三江县农业农村局","斗江镇","完成建设茶园便道4.4公里。","改善生产生活条件，促进产业发展，巩固脱贫成果。方便群众发展生产","乡镇"]
[73,"斗江镇","扶平村","斗江镇扶平村茶叶产业基地便道建设工程","产业发展","新建","硬化茶园便道2公里。","2025年3月-2025年11月",38.084052,34,28,6,{"$nulls":6},1,755,2585,199,781,null,null,"三江县农业农村局","斗江镇","完成建设茶园便道2公里。","改善生产生活条件，促进产业发展，巩固脱贫成果。方便群众发展生产","乡镇"]
[74,"斗江镇","沙宜村","斗江镇沙宜村茶叶产业基地便道建设工程","产业发展","新建","硬化茶园便道5公里。","2025年3月-2025年11月",72.264627,65,62,3,{"$nulls":5},1,null,637,2293,90,329,null,null,"三江县农业农村局","斗江镇","完成建设茶园便道1.5公里。","改善生产生活条件，促进产业发展，巩固脱贫成果。方便群众发展生产","乡镇"]
[75,"独峒镇","八协村","独峒镇八协村茶园水肥一体化项目","产业发展","新建","覆盖220亩的水肥一体化系统（含配电设施），主要实施内容为：水肥一体化水网系统及附属配电设施，总共覆盖220亩。","2025年3月-2025年11月",173.8,160,130,30,{"$nulls":6},1,572,2266,125,504,null,null,"三江县农业农村局","三江县农业农村局","完成建设358亩的水肥一体化系统（含配电设施），主要实施内容为：水肥一体化水网系统及附属配电设施，总共覆盖358亩。","完善产业基地配套设施，扩大产业种植规模，促进产业提质增效。增加农户收入，壮大村集体经济。方便405户1562人开展产业活动。"]
[76,"洋溪乡","高露村","洋溪乡高露村茶园水肥一体化项目","产业发展","新建","覆盖164亩的水肥一体化系统（含配电设施），主要实施内容为：水肥一体化水网系统及附属配电设施，总共覆盖164亩。","2025年3月-2025年11月",181,167,137,30,{"$nulls":6},1,240,800,46,208,null,null,"三江县农业农村局","三江县农业农村局","完成建设300亩的水肥一体化系统（含配电设施），主要实施内容为：水肥一体化水网系统及附属配电设施，总共覆盖300亩。","完善产业基地配套设施，扩大产业种植规模，促进产业提质增效。增加农户收入，壮大村集体经济。方便405户1564人开展产业活动。"]
[77,"林溪镇","高秀村","林溪镇高秀村茶园水肥一体化项目","产业发展","新建","新建覆盖173亩的茶园水肥一体化系统项目，建设内容有水肥一体化网管、配电设备及配套附属设施。","2025年3月-2025年11月",188.5,173,147,26,{"$nulls":6},1,418,1648,140,557,51,195,"三江县农业农村局","三江县农业农村局","完成建设350亩的茶园水肥一体化系统项目，建设内容有水肥一体化网管、配电设备及配套附属设施。","完善产业基地配套设施，扩大产业种植规模，促进产业提质增效。增加农户收入，壮大村集体经济。方便405户1565人开展产业活动。"]
[78,"良口乡","良口村","良口乡茶青交易市场项目","产业发展","新建","钢架棚、路灯（19盏）、室外排水沟、室外混泥土道路硬化、矮墙拆除及抹灰、新建厕所","2025年6月-2025年11月",80,80,null,null,80,{"$nulls":4},3,12,8221,32068,2581,10897,204,808,"三江县农业农村局","良口乡","项目建成后将有效解决良口乡茶农茶叶交易场地拥挤、拥堵国道造成安全隐患等问题，提升人民群众获得感及提高群众工作满意度。","该项目位于良口大桥头十字路口旁，是良口乡绝大多数人群众日常出行的必经道路，项目的实施将有效解决良口乡茶农在国道边交易茶叶的不安全问题，进一步提高群众的生产生活条件，使巩固拓展脱贫攻坚成果同乡村振兴衔接工作成果惠及良口乡每一户每一人。",null,"新增项目"]
[79,"八江镇","八江村","三江县福康种养殖专业合作社龙福辣椒种植项目","产业发展","新建","1.冻库1座。\n   2.水肥一体化：灌溉水带26000米，灌溉水管4000米。\n","2025年6月-2025年11月",{"v":25,"d":"25.00"},25,null,null,{"v":25,"d":"25.00"},{"$nulls":4},1,1,967,3606,185,672,172,749,"三江县农业农村局","三江县农业农村局（经作）"," 项目建成后，种植辣椒基地200亩，通过流转土地经营、提供就业岗位等方式,受益农户124户558人左右,其中脱贫户、监测户81户365人左右，人均年增收6000元左右。","通过销售产品/带种带养/务工就业/等方式，促进农户年增收超过1万元。",null,"新增项目"]
[80,"八江镇","三团村","三江富泽菌业有限公司智能出菇方舱建设项目","产业发展","新建","扩建秀珍菇智能方舱2座","2025年6月-2025年11月",{"v":11,"d":"11.00"},11,null,11,{"$nulls":5},1,0,515,1777,110,441,null,null,"三江县农业农村局","三江县农业农村局（经作）","项目建成后，基地每年能利用方舱种植平菇等食用菌2万棒","基地通过集中制包，群众分散管理出菇，每年可带动周边20-30户群众参与，可实现参与群众每年增收30-50万元。",null,"新增项目"]
[81,"程村乡","头坪村","三江县程村乡蔬菜种植基地项目水肥一体项目","产业发展","新建","新建蔬菜种植基地水肥一体设施一套","2025年6月-2025年11月",{"v":25,"d":"25.00"},25,null,null,{"v":25,"d":"25.00"},{"$nulls":4},1,0,650,2400,37,139,5,16,"三江县农业农村局","三江县农业农村局（经作）","完成蔬菜种植基地水肥一体设施建设，通过与公司合作，提高村集体经济收入，增加群众就业率及收入。","通过发展蔬菜种植产业，带动群众就业，提高村集体经济收入。",null,"新增项目"]
[82,"程村乡","大树村","三江县佳盈家庭农场有限公司罗汉果烘烤加工厂项目工程","产业发展","新建","新建罗汉果加工厂房一座长14米，宽12米，高6米，烤房一座长8米，宽5米，高3.1米。","2025年6月-2025年11月",{"v":9,"d":"9.00"},9,null,null,{"v":9,"d":"9.00"},{"$nulls":4},1,0,224,759,41,147,null,null,"三江县农业农村局","三江县农业农村局（经作）","完成罗汉果加工厂房及烤房建设，解决群众罗汉果销路问题，提高群众收入","通过发展罗汉果加工产业，带动群众就业，提高群众收入。",null,"新增项目"]
[83,"梅林乡","梅林村","三江县梅林乡广藿香种植基地水肥一体化项目","产业发展","新建","新建广藿香种植基地120亩，建设地膜、水肥一体化","2025年6月-2025年11月",{"v":12,"d":"12.00"},12,null,null,{"v":12,"d":"12.00"},{"$nulls":4},0,1,224,736,104,362,26,109,"三江县农业农村局","三江县农业农村局（经作）","新建20亩含地膜、水肥一体化的简易大棚广藿香种植基地，项目建成后，预计种植2万颗广藿香，产值20万元左右，通过流转土地经营、提供就业岗位、带动种植等方式,受益农户224户736人左右,其中脱贫户、监测户104户362人左右，人均年增收2000元左右。","通过销售产品、务工就业、技术培训指导、提供社会化服务、产业基础配套设施建设等方式，促进农户人均年增收超过2000元。",null,"新增项目"]
[84,"古宜镇","洲北村","古宜镇洲北村溪脑屯农田水利设施建设工程（地点：金竹口）","乡村建设行动","新建","新建三面光水利30cm*30cm*1500m","2025年1月--2025年12月",18.28,16,16,{"$nulls":6},1,null,92,351,16,55,null,0,"农业农村局","古宜镇","完善小型农田水利设施建设，改善面上村基础设施，方便92户351人生产生活。","改善面上村基础设施，方便92户351人生产生活。"]
[85,"古宜镇","周坪村","古宜镇周坪村榕树屯农田水利设施建设工程","乡村建设行动","新建","新建三面光水利30cm*30cm*2000m，新增\n，旧渠修补，50米（折除重建0.3✘0.3三面光）\n2，排洪口水槽2处共10米（新增0.3✘0.3三面光）\n3，渡槽后面涵管改水渠12米（清理塌方破折改建三面光水渠，加0.5米高✘厚0.2米挡土墙）\n4，挡水墙长20米0.5✘0.3米（拦水坝农户农田边加高）\n5，拦水坝1座（1号主渠1号支线源头，原设计无拦水坝，高0.5米宽0.5米1.5米长）\n6，架空引水管维修16米（原跨河架空农田引水PⅴC管老化断裂被洪水冲走，新建改用DN100镀锌钢管架空连接）","2025年1月--2025年12月",28.6599,24,24,{"$nulls":6},1,null,151,576,27,98,null,0,"农业农村局","古宜镇","完善小型农田水利设施建设，改善面上村基础设施，方便151户576人生产生活。","改善面上村基础设施，方便151户576人生产生活。"]
[86,"古宜镇","大洲村","古宜镇大洲村洲开屯农田水利设施建设工程（地点：旱信榜）","乡村建设行动","新建","新建大洲村洲开屯南面头至旱信榜2.5公里水渠，三面光40*40厘米及水管铺设","2025年1月--2025年12月",36.44,33,33,{"$nulls":6},1,null,106,440,8,35,0,0,"农业农村局","古宜镇","建设2.5公里水渠，三面光40*40厘米及水管铺设，解决大洲村洲开屯约50亩水田水利灌溉问题","解决大洲村洲开屯约50亩水田水利灌溉问题"]
[87,"丹洲镇","板必村","丹洲镇板必村洛潘屯小农水利项目","乡村建设行动","新建","新建三面光水渠长1500米、宽0.3米、高0.3米；水坝两座宽8米、高1米、厚0.8米（下底2米、上底0.8米）","2025年1月－2025年12月",35.23,32,32,{"$nulls":6},1,null,96,360,15,55,null,null,"农业农村局","丹洲镇","完成水渠水坝建设1500米及水坝两座，","解决洛潘屯群众水稻种植问题，使群众增产增收。提高农户生活水平。"]
[88,"丹洲镇","西坡村","丹洲镇西坡村水利建设项目","乡村建设行动","新建","新建设水利三面光长2公里、宽30厘米、高40厘、基层厚10厘米、清理塌方泥土30米；","2025年1月－2025年12月",58.82,51.192,39.192,12,{"$nulls":5},1,null,507,1937,43,181,null,null,"农业农村局","丹洲镇","严守耕地红线，促进高标准农田建设，有效解决群众缺水灌溉农田主要问题。","改善西坡村滩头屯的生产条件，促进产业发展，保证群众粮食收成有保障，提高群众粮食增收。"]
[89,"丹洲镇","合桐村","丹洲镇合桐村农田水利项目","乡村建设行动","新建","硬化30*30水利长1200米，枧槽50米.坝塘两处(合水屯、桐木屯)","2025年1月－2025年12月",30.51,27,27,{"$nulls":6},1,null,525,1905,29,99,4,7,"农业农村局","丹洲镇","完善农田供水设施","改善合桐村的生产生活条件，促进农业产业发展。"]
[90,"丹洲镇","红路村","丹洲镇红路村农田水利建设工程","乡村建设行动","新建","1.毛田屯建设水利三面光长400米、宽30厘米、高30厘米、基层厚15厘米;2、白路屯（野夫口）建设水利三面光长200米、宽30厘米、高30厘米、基层厚15厘米;","2025年1月－2025年12月",13.12,11.808,11.808,{"$nulls":6},0,1,60,250,25,70,null,null,"农业农村局","丹洲镇","严守耕地红线，促进高标准农田建设，有效解决群众缺水灌溉农田的主要问题","改善红路村生产条件，促进产业发展，确保群众粮食安全的保障。提高群众粮食的增收。"]
[91,"丹洲镇","江荷村","丹洲镇江荷村望江亭农田水利三面光","乡村建设行动","新建","三面光长：1500米，宽0.4，米高0.4","2025年1月－2025年12月",21.82,19,19,{"$nulls":7},1,123,516,6,24,null,null,"农业农村局","丹洲镇","有效保护农田30亩","完善农田供水设施"]
[92,"斗江镇","斗江社区","斗江镇斗江社区斗江屯农田水利设施建设工程（十六段）","乡村建设行动","新建","1、新建三面光水渠总长1783米，（其中0.2x0.2m三面光水渠678米；0.3x0.3m三面光水渠410米：0.6x0.6m三面光水渠695米）；2、新建拦水坝2座。","2025年1月--2025年12月",46.398932,41,41,{"$nulls":6},1,null,382,1528,20,60,null,null,"农业农村局","斗江镇","完成水利2000米建设项目","有效解决382户1528人农田灌溉问题，提高粮食产量。"]
[93,"斗江镇","周牙村","斗江镇周牙村廖村屯农田水利设施建设项目","乡村建设行动","新建","1、新建三面光水渠总长1345米，（其中0.2x0.2m三面光水渠295米；0.3x0.3m三面光水渠779米；0.3x0.5m三面光水渠71米；0.4x0.4m三面光水渠200米）；2、50PE管总长112米；3、DN400波纹管总长57米；4、新建拦水坝2座；5、新建渡槽长52.5米。","2025年1月--2025年12月",41.703698,{"$f":"K108+L108+P108+M108+N108+O108+Q108","v":37},37,{"$nulls":6},1,null,228,718,43,155,null,null,"农业农村局","斗江镇","完成水利三面光0.3米*0.3米*3000米","解决廖村屯228户水利灌溉问题，改善廖村屯基础设施，方便228户718人灌溉。"]
[94,"斗江镇","凤凰村","斗江镇凤凰中广屯农田水利设施建设工程","乡村建设行动","新建","新建0.4米*0.4米三面光水渠760米;新建0.8米*0.8米三面光水渠27米;新建1座长1.5米，高0.6米拦水坝","2025年1月--2025年12月",21.062121,19,3.4571694,2.5428306,null,null,13,null,null,1,null,115,403,17,70,null,null,"农业农村局","斗江镇","加快我村现代标准农田建设步伐，打造亩产超吨粮的目标，进一步改善农业生产条件，提高农田生产能力，造应现代农业发展的需要。","农田水利设施工程建设后，可提高单产，增加产，从而增加产值，最终实现农业增产，使115户403人增收。"]
[95,"斗江镇","沙宜村","斗江镇沙宜村沙湾屯油站背至火烧田农田水利设施建设工程","乡村建设行动","新建","新建0.4x0.4m三面光水渠总长569米(其中24米需破除）;疏通原有直径300涵管7米。","2025年1月--2025年12月",14.538051,13,8.7228306,4.2771694,{"$nulls":5},1,null,52,228,12,41,null,null,"农业农村局","斗江镇","完成三面光1.5公里，及配套设施建设。","有效保障粮食安全生产，助力52户228人增产增收。"]
[96,"斗江镇","扶平村","斗江镇扶平村农田水利设施建设工程（扶平屯、等平屯）","乡村建设行动","新建","新建0.2x0.2m三面光水渠180米；0.3x0.3m三面光水渠940米；0.4x0.3m三面光水渠405米；0.4x0.4m三面光水渠1130米；0.5x0.5m三面光水渠40米；1x0.6m三面光水渠55米；新建拦水坝3座；新建de75灌溉给水管2150米。","2025年1月--2025年12月",68.124289,60,40.86,19.14,{"$nulls":6},1,79,307,23,95,null,null,"农业农村局","斗江镇","完成农田水利2800米建设。","解决79户307人农田用水问题，提高群众粮食增收。"]
[97,"斗江镇","滩底村","斗江镇滩底村河村屯公雄冲水利项目","乡村建设行动","新建","水利三面光：0.3*0.3*765米，渡槽24.5米，拦水坝1个","2025年1月--2025年12月",20.577016,18,18,{"$nulls":6},1,null,8,27,1,4,null,null,"农业农村局","斗江镇","完成三面光水利长1000米。","解决8户27人粮食种植问题"]
[98,"斗江镇","牙林村","斗江镇牙林村牙林屯农田水利项目工程","乡村建设行动","新建","水利三面光：0.2*0.2*719米、0.3*0.4*845米、0.5*0.5*332米，拦水坝2个","2025年1月--2025年12月",36.600404,33,21.96,3.04,null,null,8,null,null,1,null,125,520,15,61,null,null,"农业农村局","斗江镇","完成1800米农田水利三面光30厘米*30厘米*30厘米","解决非贫困村农田水利，促进125户520人农业增效。"]
[99,"林溪镇","林溪村","林溪镇林溪村岩寨屯小型农田水利维修项目","乡村建设行动","新建","完成维修岩寨小型农田水利，长20米宽下底2米，上底1米","2025年3月--2025年12月",10.997738,9,9,{"$nulls":6},1,null,145,618,38,186,null,null,"农业农村局","林溪镇","完成维修岩寨小型农田水利，长20米宽下底2米，上底1米","解决林溪村岩寨屯农田灌溉，提升群众幸福感，提高群众生产效率"]
[100,"林溪镇","程阳村","林溪镇程阳村世英农田水渠维修项目","乡村建设行动","新建","完成农田水渠维修1500米","2025年3月--2025年12月",6.668271,6,6,{"$nulls":6},1,null,200,812,40,164,null,null,"农业农村局","林溪镇","完成农田水渠维修1500米","解决程阳150亩农田灌溉。"]
[101,"林溪镇","平铺村","林溪镇平铺村双夫农田灌溉","乡村建设行动","新建","完成1公里150#EP引水管铺设，及配套设施建设。","2025年3月--2025年12月",14.405478,12,12,{"$nulls":6},1,null,60,250,10,55,null,null,"农业农村局","林溪镇","完成1公里150#EP引水管铺设，及配套设施建设。","解决双夫片区农田灌溉问题，改善村基础设施，促进60户250人农业产业发展，农民增收。"]
[102,"八江镇","归令村","八江镇归令村六更屯务岗水利项目","乡村建设行动","新建","硬化水利三面光长1700米，30*30*30*","2025年1月--2025年12月",73.689583,66,52,14,{"$nulls":6},1,105,403,42,162,null,null,"农业农村局","八江镇","新建硬化水利三面光长1700米.30*30*30*","解决村民群众农田灌溉问题，保障村民农田有产业发展。"]
[103,"八江镇","三团村","八江镇三团村三团屯便亨水利建设项目","乡村建设行动","新建","1.新建30*30水渠长320米。2.新建 40*40水渠长 540米。3.水渠修复 45 米","2025年1月--2025年12月",33.994386,30,30,{"$nulls":6},1,null,325,1217,63,257,20,83,"农业农村局","八江镇","1.新建30*30水渠长320米。2.新建 40*40水渠长 540米。3.水渠修复 45 米","保障粮食生产安全，促进增收。受益人数325户1217人，其中脱贫户(包含监测户)63户257人。"]
[104,"八江镇","三团村","八江镇三团村便妞孟龙水利项目","乡村建设行动","新建","硬化水利三面光长500米，40*40，拦水坝一座长10米，高1米，宽0.8米，","2025年1月--2025年12月",8.225534,7,7,{"$nulls":6},1,null,254,854,56,185,null,null,"农业农村局","八江镇","维修硬化水利三面光长500米，40*40*40，拦水坝一座长10米，高1米，宽0.8米，","改善三团村产业基础设施条件，促进种植产业，带动旅游产业发展。"]
[105,"八江镇","布央村","八江镇布央村美地屯盘大水利三面光项目","乡村建设行动","新建","长1980米*0.3*0.3米,φ300PE管420米，拦水坝一座，集水池1个","2025年1月--2025年12月",45.375979,41,34,{"$nulls":3},7,null,null,1,null,103,412,30,90,null,null,"农业农村局","八江镇","完成长1980米*0.3*0.3米三面光水利,φ300PE管420米，拦水坝一座，集水池1个","解决农作物灌溉问题，改善基础设施，方便103户412人出行，提高收入水平。"]
[106,"独峒镇","岜团村","独峒镇岜团村集体复垦田水利工程","乡村建设行动","新建","新建给水管1719米，其中1#DN200PE管741米;2#de75PE管1033米:de32PE管3米:de63PE管4米。共计出水口7处,de32PE闸阀3个，de63PE闸阀4个。本项目有40米架空给水管","2025年3月--2025年12月",14.149611,12,12,{"$nulls":7},1,55,253,23,100,null,null,"农业农村局","独峒镇","完成水利设施网管1.719千米，及配套设施建设。","完善脱贫村农田水利设施建设，灌溉水田20亩，40亩旱地，鱼塘5亩，受益55户253人。"]
[107,"独峒镇","干冲村","独峒镇干冲村渠桂交至岑苗农田水利灌溉项目","乡村建设行动","新建","新建de75给水管382米，de110给水管352米，de160给水管1785米，de200给水管4940米，新建拦水坝2座，新建集水井1座，新建阀门井及配套阀门52个","2025年3月--2025年12月",90.607668,81.16014,40.16014,35,null,null,6,{"$nulls":3},1,500,3657,42,230,null,null,"农业农村局","独峒镇","完成水利水管铺设7.459千米及配套设施。","解决贫困村屯级生活生产问题，改善贫困村农业水利基础设施，方便500户3657人500亩农业安全生产。"]
[108,"独峒镇","干冲村","独峒镇干冲村顶真明条庙至岑蛮农田水利灌溉项目","乡村建设行动","新建","新建de63给水管890米，de110给水管2415米，de160给水管715米，de200给水管1110米，新建拦水坝9座，新建集水井2座，新建阀门井及配套阀门16个。","2025年3月--2025年12月",36.1351,32,25,{"$nulls":3},7,{"$nulls":3},1,250,1284,50,210,null,null,"农业农村局","独峒镇","完成水利水管铺设5.13千米及配套设施。","解决贫困村屯级生活生产问题，改善贫困村农业水利基础设施，方便250户1284人250亩农业安全生产。"]
[109,"独峒镇","岜团村","独峒镇岜团村良工水利修复工程","乡村建设行动","新建","PE200水管25米，PE100管100米，步道硬化268米，水渠三面光及盖板133米","2025年3月--2025年12月",11.590688,10,10,{"$nulls":7},1,32,142,10,42,null,null,"农业农村局","独峒镇","完成水利设施网管修建0.258千米及配套设施建设。","完善脱贫村农田水利设施建设，灌溉水田30亩，25亩旱地，鱼塘3亩，受益32户142人。"]
[110,"独峒镇","林略村","独峒镇林略村塘围农田水渠灌溉项目","乡村建设行动","新建","新建0.3*03m三面光水渠793米：新建0.3*0.3m盖板沟142米：新建PE100引水管96米：新建0.5*0.5m盖板沟1211米：新建拦水坝1座。","2025年3月--2025年12月",76.43321,68.83986,45.83986,20,null,null,3,{"$nulls":3},1,240,960,50,230,null,null,"农业农村局","独峒镇","完成农田水渠三面光2.146千米建设，及配套设施建设。","完善脱贫村农田水利设施建设，灌溉水田65亩，20亩旱地，鱼塘5亩，受益240户960人。"]
[111,"独峒镇","弄底村","独峒镇弄底村弄底屯三团高培水利工程","乡村建设行动","新建","新建给水管966米，其中1#DN110PE管959米;2#de63PE管3米;de32PE管4米。共计出水口7处,出水口de32PE闸阀4个，排泥de63PE闸阀3个。新建3米长，0.6米高拦水坝一座。","2025年3月--2025年12月",5.538366,4,4,{"$nulls":6},1,80,415,26,127,{"$nulls":3},"农业农村局","独峒镇","完成农田水利网管0.966千米及配套设施建设。","解决脱贫村农田灌溉难问题，改善脱贫村农业生产配套设施，项目受益80户415人。"]
[112,"程村乡","头坪村","程村乡头坪村老皮冲水利工程","乡村建设行动","新建","新修三面光水渠800米","2025年3月--2025年6月",11.68,10,10,{"$nulls":6},1,0,40,267,13,67,0,0,"农业农村局","程村乡","拦水坝1座；30*30三面光水渠625米","改善生活生产条件，促进产业发展。"]
[113,"程村乡","头坪村","程村乡头坪村程村上寨屯龙家泠农田水利建设项目","乡村建设行动","新建","拦水坝2座；30*30三面光水渠1493米","2025年3月--2025年6月",27.61,24,24,{"$nulls":14},"农业农村局","程村乡","拦水坝2座；30*30三面光水渠1493米","改善头坪村的水利工程设施，提高农作物收成，促进群众经济收入增高。"]
[114,"程村乡","泗里村坪潺屯","程村乡泗里村坪潺屯大虫泠农田水利设施建设项目","乡村建设行动","新建","拦水坝3座；30*30三面光水渠555米；DN200PE管75米；DN110PE管1124米","2025年3月--2025年6月",26.47,23,23,{"$nulls":14},"农业农村局","程村乡","完成建设拦水坝3座；三面光水渠555米；DN200PE管75米；DN110PE管1124米","改善泗里村的水利工程设施，提高农作物收成，促进群众经济收入增高。"]
[115,"和平乡","板六村","和平乡板六村农田水利设施建设工程","乡村建设行动","新建","修建三面光水沟2200米宽30厘米、高30厘米、厚10厘米（东岭屯1200米；靖州屯1000米）：650米三面光水沟变更为DN200PE管，水源头另增加80米DN200PE管；原水坝变更为高30厘米长1.5米，厚度50厘米的小型拦水坝，水源头新增一个长2米宽1米高80厘米集水井。","2025年1月-2025年6月",33.09,29,9.927,19.073,{"$nulls":6},1,175,365,39,147,null,null,"农业农村局","和平乡","完成修建三面光水沟1550米，730米DN200PE管铺设，一个小型拦水坝，一个集水井","完善农户产业发展条件，促进产业发展，促进农户增收，涉及100亩农田，直接受益175户365人。"]
[116,"老堡乡","车田村","老堡乡车田村农田水利设施建设工程（红渔江至长古、口寨屯老边寨）","乡村建设行动","新建","新建2200米三面光水利，拦水坝一个","2025年3月--2025年12月",62.76,56,20,30,null,null,6,null,null,1,null,296,1142,{"$nulls":4},"农业农村局","老堡乡","完成水利及配套设施建设，宽度大于30厘米，管道直径不小于110毫米。","解决车田村农田灌溉用水，方便296户1142人粮食种植问题，项目建成后，农业产业将得到大力发展，有效治理撂荒非粮化"]
[117,"老堡乡","坡头村","老堡乡坡头村坡头屯大水库水利项目","乡村建设行动","新建","维修长500米、铺设管道，","2025年3月--2025年12月",11.2,10,10,{"$nulls":6},1,null,60,360,8,24,null,null,"农业农村局","老堡乡","完成500米灌溉水利。","改善面上村灌溉设施，方便60户360人种植水稻粮食。"]
[118,"高基乡","白郡村","高基乡白郡村六亚学校背至庙底农田水利","乡村建设行动","新建","农田水利宽0.3米*高0.3米*壁厚0.1米*长1500变更为160米三面光水渠50*50，新增88米的30*30水渠","2025年3月--2025年12月",44.294496,40,37,{"$nulls":3},3,null,null,1,0,57,204,12,42,null,null,"农业农村局","高基乡","完成农田水利建设1500米","促进产业发展，完善配套设施，灌溉面积90亩。"]
[119,"高基乡","桐叶村","高基乡桐叶村桐拉屯农田水利灌溉工程","乡村建设行动","新建","新增水管1000米","2025年3月--2025年12月",9.71,8,8,{"$nulls":6},"1",0,26,107,11,40,null,null,"农业农村局","高基乡","完成水源1000米水管铺设，及配套设施建设。","解决50亩水稻种植水源问题，提高群众种植积极性。"]
[120,"高基乡","白郡村","高基乡白郡村上白郡屯农田水利设施工程（拿应至老脚至应科田边）","乡村建设行动","新建","农田水利宽0.3米*高0.3米*壁厚0.1米*长1500","2025年3月--2025年12月",25.62,23,23,{"$nulls":6},1,0,52,192,13,53,null,null,"农业农村局","高基乡","完成农田水利建设1500米","促进产业发展，完善配套设施，灌溉面积120亩。"]
[121,"高基乡","高基村","高基乡高基村高基屯十三段农田水利项目","乡村建设行动","新建","拦水坝1座；40*40三面光盖板水渠865米；DN160PE管110米","2025年3月--2025年6月",17.03,15,15,{"$nulls":14},"农业农村局","高基乡"]
[122,"良口乡","燕茶村","良口乡燕茶村燕子屯小型农田水利三面光硬化","乡村建设行动","新建","（1）燕茶村燕子屯平宽小型农水利三面光硬化长600米0.30米X0.30米。(受益群众2500人，农田150亩）\n（2）燕茶村燕子，布交屯高后田段农田水利三面光硬化长600米X0.30X0.30，(需修2处拦水坝)。（受群众3000人，农田200亩)\n（3）燕茶村大茶屯冲小农田水利三面光硬化长800米X0.30X0.30","2025年3月－2025年12月",63.653409,57,44,13,{"$nulls":6},1,600,3000,275,1500,null,null,"农业农村局","良口乡","目建成后可解决脱贫村农田供水问题，改善基础设施，可便于恢复水毁、撂荒农田近100亩，项目惠及基本农田550多亩","改善燕茶村的生产生活条件，促进产业增收"]
[123,"洋溪乡","玉民村","洋溪乡玉民村珠荣扛至引两拥三面光水利项目","乡村建设行动","新建","新建玉民村珠荣扛至引两拥1.5公里30cm*30cm三面光水利项目","2025年3月--2025年12月",9.674901,9,9,{"$nulls":6},0,1,61,308,61,308,0,0,"农业农村局","洋溪乡","完成新建珠荣扛至引两拥三面光水利项目","便于洋溪乡玉民村耕作区发展生产"]
[124,"洋溪乡","玉民村","洋溪乡玉民村负背至两足三面光水利项目","乡村建设行动","新建","新建玉民村负背至两足1公里30cm*30cm三面光水利项目","2025年3月--2025年12月",9.41,8,8,{"$nulls":6},0,1,93,580,13,77,0,0,"农业农村局","洋溪乡","  原项目总投资9.411509万元，实际投资9.41万元。因有一段三面光水渠路段运不了材料进场。经与设计、监理到现场进行勘察，现将三面光水渠变更 为de200PE管95米。\n  该项目核减项：1、95米新建渠道（三面光水渠）核减1.178万元\n  核增项：1、1.3136万元","便于洋溪乡玉民村耕作区发展生产"]
[125,"洋溪乡","洋溪村","洋溪乡洋溪村古瓦屯边大至支言水渠农田水利设施建设工程","乡村建设行动","新建","新建长500米30cm*30cm三面光","2025年3月--2025年12月",5.018617,{"$f":"K140+L140+P140+M140+N140+O140+Q140","v":4},4,{"$nulls":6},0,1,45,185,23,92,0,0,"农业农村局","洋溪乡",null,"为村民发展产业提供便利，促进生产发展"]
[126,"洋溪乡","勇伟村","洋溪乡勇伟村寨保屯农田水利设施建设工程项目","乡村建设行动","新建","寨保屯水利修复4处，共100米","2025年3月--2025年12月",8.777675,8,8,{"$nulls":6},0,1,58,268,13,60,0,0,"农业农村局","洋溪乡",null,"保障农户发展产业有稳定水源供给"]
[127,"洋溪乡","玉民村","洋溪乡珠荣扛至松都九三面光水利项目","乡村建设行动","新建","新建玉民村珠荣扛至松都九2公里30cm*30cm三面光水利项目","2025年3月--2025年12月",26.837055,24,24,{"$nulls":6},0,1,61,308,61,308,0,0,"农业农村局","洋溪乡","  原项目总投资26.862574万元，实际投资26.837055万元。因水源处近期无法供水，导致项目无法进行三面光捞浆施工。加上该渠道途径地质不稳定，多处存在塌方，村民极力要求将整条水渠长750的混凝土三面光，变更为DN200PE管。\n  该项目核减项：1、人工挖沟槽核减0.379572万元；2、碎石垫层核减0.561919万元；3、C20混凝土渠道底板核减2.499788万元；4、C20混凝土渠道边墙核减3.1392万元；5、渠道模版制作、安装核减2.8651.5万元；6、伸缩缝核减0.01609万元；7、挡土墙核减0.537115万元；8、材料二次运输核减0.758254万元。共计核减：10.757087万元。\n  核增项：1、750米DN200PE管（1.25MP）核增10.37025万元；2、水渠沉沙池4个核增0.386836万元。核增共计10.757086万元。","便于洋溪乡玉民村耕作区发展生产"]
[128,"洋溪乡","玉民村","洋溪乡玉民村更初至付足下里三面光水利项目","乡村建设行动","新建","新建玉民村更初至付足下1.5公里30cm*30cm三面光水利项目","2025年3月--2025年12月",18.057855,16,16,{"$nulls":6},0,1,74,440,38,211,0,0,"农业农村局","洋溪乡","  原项目总投资18.076145万元，实际投资18.057855万元。因有一段三面光水渠路段运不了材料进场。经与设计、监理到现场进行勘察，现将三面光水渠变更 为de200PE管330米。\n  核减项：1、330米新建渠道（三面光水渠）核减4.125万元。\n  核增项：330米DE200PE100塑料管(热熔连接)，公称压力1.25Mpa，公称壁厚8.1mm核增4.56291万元。","便于洋溪乡玉民村耕作区发展生产"]
[129,"富禄乡","培进村","富禄乡培进村农田水利建设工程项目","乡村建设行动","新建","乌归虾至松弄水利三面光:底30X高40X高40、厚度均为10CM长1500米；乌归虾至南上水利三面光:底30X高40X高40、厚度均为10CM长1500米；乌归虾至南上水利三面光:底30X高40X高40、厚度均为10CM长1500米；正乌至乌列胶管：水管内空直径20CM、长1500米；归朱奶至北洛送胶管：75水管长300米。","2025年3月--2025年12月",91.46538,82,60.2027,21.7973,{"$nulls":6},1,318,1590,291,1455,null,null,"农业农村局","农业农村局（农田办）","完成水利建设，促进产业发展","解决群众农田水利问题，促进产业发展，增加群众收入"]
[130,"富禄乡","岑洞村","富禄乡岑洞村永两务至两故优农田水利设施建设工程","乡村建设行动","新建","永两务至两故优管道水利：主管50#长500米、支管40#2000米。永古奋至冲马脑管道水利：主管50#长500米、支管40#1500米。永留至冲底管道水利：主管50#长300米、支管40#1000米。松福至冲深管道水利：主管50#长600米、支管40#1000米。","2025年3月--2025年12月",26.825216,23.257966,23.257966,{"$nulls":7},1,317,2119,121,855,null,null,"农业农村局","富禄乡","完成管道水利长7400米，及配套设施建设，灌溉水田80亩。","解决贫困村屯粮食安全问题，灌溉基本农田。"]
[131,"富禄乡","岑旁村","富禄乡岑旁村农田水利灌溉项目","乡村建设行动","新建","岑羊至广种片区水管1500米.安装63管;归高难至归太片区水管1500米.安装80管;归高难至归太片区水管1500米.安装80管;归茶片区水管500米.安装63管;归茶至机山片区水管400米.安装63管；归岑牙片区水管300米.安装63管。","2025年3月--2025年12月",54.636558,49.099734,36.099734,13,{"$nulls":6},1,433,1838,226,1016,null,null,"农业农村局","富禄乡","完成农田水利灌溉，及配套设施建设。","解决贫困村农田水利灌溉问题，改善贫困村基础设施。"]
[132,"富禄乡","龙奋村","富禄乡龙奋村引两王农田水利设施建设工程","乡村建设行动","新建","引两王农田水利长1960米，PE管直径160毫米","2025年3月--2025年12月",30.813062,27.6423,27.6423,{"$nulls":7},1,428,2186,275,1422,null,null,"农业农村局","富禄乡","完成1960米水利灌溉饮水，便于灌溉400亩左右基本农田，保障龙奋村种粮安全。","方便428户2192人农业生产。"]
[133,"梅林乡","新民村","梅林乡新民村省口屯水利农渠拦水坝项目","乡村建设行动","新建","1.拦水坝10m长，高2.0m,0.3*0.3渠道95m\n2.拦水坝5m长,高2.0m,0.3*0.3渠道125m\n3.拦水坝6m长,高2.0m,0.3*0.3渠道80m\n4.拦水坝15m长,高1.5m,0.3*0.3渠道100m\n5.拦水坝9m长高1.5m,，pe50水管长440m\n6.拦水坝5m长,高1.5m,0.3*0.3渠道130m\n7.拦水坝8m长,高2.0m,0.3*0.3渠道15m\n8.拦水坝6m长,高1.5m,0.3*0.3渠道180m\n9.拦水坝6m长，高2.0m,pe200水管长110m\n10.拦水坝9m长,高1.5m,0.3*0.3渠道40m","2025年1月--2025年12月",30.808414,27,27,{"$nulls":7},1,253,1139,94,378,0,0,"农业农村局","梅林乡","解决产业发展，防止水毁农田","改善新民村生产生活条件，促进产业发展"]
[134,"同乐乡","归夯村","同乐乡归夯村归交水利建设工程","乡村建设行动","新建","新建水利三面光。长度4000米，规格40*30*12，","2025年1月-2025年4月",100.993789,95,47,40,null,null,8,{"$nulls":3},1,418,1800,220,967,null,null,"农业农村局","同乐乡","完成新建三面光水利4公里，及配套基础设施建设，保障418户1800人粮食安全生产问题。","完善农田水利设施，改善产业发展环境，提升农田产出收益，增加农民产业收入，保障418户1800人粮食安全。"]
[135,"同乐乡","高洋村","同乐乡高洋村高洋屯农田水利设施建设工程（松昂至周耶）","乡村建设行动","新建","1、新建0.2x0.3m三面光水渠总长185米；2、160PE管总长1000米。","2025年1月-2025年4月",11.130897,10,10,{"$nulls":7},1,561,2616,166,736,null,null,"农业农村局","同乐乡","完成2000米三面光水渠，为高洋村2个生产组耕种区，提供水源灌溉，保障农户正常耕种生产，确保土地非粮化","完成2000米三面光水渠，为高洋村2个生产组耕种区，提供水源灌溉，保障农户正常耕种生产，确保土地非粮化，保障561户2616人粮食安全。"]
[136,"同乐乡","归东村","同乐乡归东村农田水利设施建设工程","乡村建设行动","新建","新建0.3*03m三面光水渠848米；新建0.4*0.4m水渠781米；新建0.5*0.5m水渠843米；新建1*1m水渠202米；新建50PE引水管663米；新建63PE引水管746米；新建75PE引水管114米：新建160PE引水管64米：新建100PE引水管328米；新建200PE引水管246米","2025年1月-2025年4月",76.429473,69,45.7973,17.2027,null,null,6,{"$nulls":3},1,560,2277,305,1274,null,null,"农业农村局","农业农村局（农田办）","完成水利三面光硬化0.3公里，改善560户，2277人粮食安全问题。","完善农田水利设施，改善产业发展环境，提升农田产出收益，增加农民产业收入，保障560户2277人粮食安全。"]
[137,"同乐乡","归美村","同乐乡归美村高达屯命美生至乌成美孝农田水利设施建设工程","乡村建设行动","新建","1、新建三面光水渠总长1506米（其中0.3x0.3m三面光水渠1441米；0.2x0.2m三面光水渠65米）；2、de75PE管总长477米；3、新建拦水坝一座。","2025年1月-2025年4月",24.037332,21,21,{"$nulls":7},1,150,600,50,213,null,null,"农业农村局","同乐乡","完成水利三面光硬化1.2公里，改善110户，460人粮食安全问题。","完善农田水利设施，改善产业发展环境，提升农田产出收益，增加农民产业收入，保障150户600人粮食安全。"]
[138,"同乐乡","归美村","同乐乡归美村归纳屯农田水利设施建设工程","乡村建设行动","新建"," 新建0.3米*0.3米三面光水渠1891米；新建0.5米*0.5米三面光水渠2米；新建1座长2.5米，高0.5米拦水坝；新建1.5m高护肩挡土墙17米；新建直径0.3m混凝土管沟11米；新建DN110给水管62米，其中有30米需架管，","2025年1月-2025年4月",36.310138,32,32,{"$nulls":7},1,323,1503,95,393,null,null,"农业农村局","同乐乡","完成水利三面光硬化1.8公里，改善323户，1503人粮食安全问题。","完善农田水利设施，改善产业发展环境，提升农田产出收益，增加农民产业收入，保障323户1503人粮食安全。"]
[139,"和平乡","六溪村","和平乡六溪村农田水利设施建设工程","乡村建设行动","新建","拦水坝2座；dn90pe管1537米；30*30三面光水渠2272米；维修水渠597米；埋设30直径砼涵管8米；破除旧水渠469米","2025年1月-2025年4月",49.47,44,{"$f":"14.841+23.232","v":38.073},5.927,{"$nulls":7},478,1735,64,255,null,null,"农业农村局","和平乡","完善我村农田水利灌溉建设：1.新建de90PE引水管长度1537米；2.新建300*300水渠2272米；3.原水渠维修597米；4.破除原水渠469米；5.埋设φ30涵管8米。6.新建拦水坝一座，长9米，高1.4米。","解决群众种田缺水及防洪问题，提高群众种粮积极性，粮食增产增收，直接受益478户1735人.。"]
[140,"林溪镇","林溪村","林溪镇林溪村新寨务难水利管道项目","乡村建设行动","新建","1#,2#水源拦水坝:两座，分别2m*1m高；de160PE100管：1010m，分水阀若干","2025年1月-2025年4月",9.706013,8,8,{"$nulls":6},1,0,56,271,8,39,3,13,"农业农村局","林溪镇","完成该屯56户水利配套设施","解决了全屯56户271人的水利灌溉问题"]
[141,"南站社区","南站社区","三江侗族自治县南站社区地摊经济市场项目","产业发展","续建","三江县南站社区地摊经济市场项目，总建筑面积 889.56平方米。主要建设内容包括建筑工程、装饰装修工程、给排水工程、电气工程、通风工程、消防工程以及室外绿化、给排水、供配电等。","2024年6月-2025年4月",50,45,45,{"$nulls":14},"农业农村局","农业农村局（乡村振兴综合服务中心）","拟建商业用房及公厕各1栋，框架结构，总建筑面积890.33㎡，其中商业用房为两层建筑，建筑面积为876.68㎡，公厕为单层建筑，建筑面积为13.65㎡，围墙305m，场地硬化3700㎡，绿化面积776㎡实现村民就近就业，助推当地村集体经济发展。\n数量指标：商业用房为两层建筑，建筑面积为876.68㎡，公厕为单层建筑，建筑面积为13.65㎡；\n质量指标：项目验收合格率100％；项目资金支出合规率100％；\n时效指标：完工及时率＝100％，项目完工验收时间≤2025年12月；\n成本指标：项目建成总成本≤420万元；","一是可依托当地党支部搭建平台。搭建农户自主经营惠民平台，依托党支部提供场地和培训，鼓励周边村民群众通过租赁摊位参与经济发展，着力培养出能推动村级集体经济快速发展的骨干中坚力量。二是小摊位促进大增收。以“小摊位”带动本地群众家门口就业的同时，依靠出租摊位促成村集体收益，形成可固定、可持续、可增长的良好发展态势。三是配套设施提升服务。以环境综合整治为着力点，可在服务区设置保洁员等公益岗位，开展周边环境卫生治理、卫生间维护等工作，全面改善道路环境，完善卫生间等基础设施，不断刷新易安小区周边村镇整体“颜值”的同时，拓宽为民助民渠道，不断富裕村民“口袋”。同时预计可设40个摊位，预计可带动直接从事“地摊经济“约 130 人，间接带动从事产业链相关人员就业预计可达 400 人。实现村民就近就业，助推当地村集体经济发展。","续建项目"]
[142,"古宜镇","大竹村","三江侗族自治县苗木交易市场项目","产业发展","续建","建筑面积 2132.50 平方米，其中 1#楼为一栋附属管理用房，为两层\n建筑，建筑面积约为 432.50 平方米，2#楼为一栋市场用房，为\n两层建筑，建筑面积约为 1700 平方米。","2024年6月-2025年4月",100,90,90,{"$nulls":14},"农业农村局","农业农村局（乡村振兴综合服务中心）","有效繁荣三江苗木经济，存进三江县特色产业\n的发展及壮大。建成三江侗族自治县苗木交易市场项目，总建筑\n面积 2132.50 平方米，总体目标为在建设期 1.5 年内各建设内\n容全部交工验收合格","项目建成后将形成“一站式”种苗交易市场平台。是一项惠及广大人民群众,并带动种苗、商业、物流相关产业共同发展的一项惠民工程,也是一项调整项目所在县农业产业化结构、增加农民收入的战略性举措, 极大地促进地方经济建设快速发展。项目建设有利于三江地方农产品产业自身的发展和市场的需求,为当地农业企业、农户提供具备竞争优势的交易平台,项目建设已具备了较有利的条件,项目具有良好的经济效益、社会效益,也有较强抗风险能力,项目建设必要性充足,有建设价值","续建项目"]
[143,"古宜镇","大竹村","古宜镇大竹村杉木产业基地产业路硬化项目（县填埋场至深冲岭)","产业发展","新建","（1）混凝土道路 1.852公里，本生产路为砼路面道路，路肩宽0.5m；（2）φ0.6涵管6.0米;（3）新建混凝土排水沟964米;(4)破除旧路面5900平方(5)竣工牌1块","2025年3月--2025年12月",123.9779,111,null,111,{"$nulls":5},1,null,932,3670,73,264,null,0,"农业农村局","农业农村局（乡村振兴综合服务中心）","完成硬化路面长2.5公里，及配套设施建设。方便932户3670人高质量发展产业。","解决大竹村村民通车运输农产品问题，改善村基础设施，方便932户3670人高质量发展产业。"]
[144,"古宜镇","文大村","古宜镇文大村大坪屯油茶产业基地产业路硬化项目（公路至松冲口）","产业发展","新建","（1）混凝土道路:道路宽度：0.35米，道路总长0.79公里，本生产路为砼路面道路，路肩宽0.5m；（2）旧路面破除1452.5㎡；（3）竣工牌2块","2025年3月--2025年12月",57.7536,51,null,51,{"$nulls":5},1,null,77,319,5,24,1,3,"农业农村局","农业农村局（乡村振兴综合服务中心）","完成硬化路面长1公里，及配套设施建设。解决大坪屯村民通车运输农产品问题，改善村基础设施，方便77户318人高质量发展产业。","解决大坪屯村民通车运输农产品问题，改善村基础设施，方便77户318人高质量发展产业。"]
[145,"丹洲镇","六孟村","丹洲乡六孟村甲塘至古济冲（孟公）产业路项目","产业发展","新建","总里程0.509km，新建碎石路面0.509km，路基宽5.5m,路面宽4.5m；新建1-5*5m盖板涵，1-2*2m盖板涵","2025年3月--2025年12月",55.577674,50,null,50,{"$nulls":5},1,null,512,1746,51,190,0,0,"农业农村局","农业农村局（乡村振兴综合服务中心）","新建公路长2.5公里、及配套排水设施建设","减少农产品运输成本，带动产512户1746人业发展"]
[146,"丹洲镇","西坡村","丹洲镇西坡村下段屯至白石坡产业路硬化","产业发展","新建","硬化路面长3公里、路面宽3.5米、厚20厘米，压实砂石基层厚18厘米；两边培路肩宽各0.5米；合理设置涵洞、边沟、错车道等","2025年3月--2025年12月",178.8141,160,null,160,{"$nulls":5},1,null,41,195,2,7,0,0,"农业农村局","农业农村局（乡村振兴综合服务中心）","解决西坡村下段屯茶叶50亩，油茶80亩，杉木4000多亩等产业运输问题，改善下段屯生产生活条件，方便群众发展产业。","改善西坡村下段屯的生产生活条件，促进产业发展，使村民得到增收，方便群众发展产业。"]
[147,"斗江镇","扶平村","斗江镇扶平村杉木基地建设项目（广南冲至甘岭）","产业发展","新建","总里程3.215km，本工程路基宽为4.5米；路面宽：3.5米；路面结构层拟定为：15cm厚碎石垫层（就地取材）+2cm厚磨耗层路面，土路肩（两边做），新建圆管涵96m/12道，错车道10处，竣工碑一座","2025年3月--2025年12月",78.530283,70,null,70,{"$nulls":6},1,269,1055,74,299,null,null,"农业农村局","农业农村局（乡村振兴综合服务中心）","完成产业路4公里建设。","解决农副产品运输问题，方便269户1055人发展产业及出行。"]
[148,"斗江镇","沙宜村","斗江镇沙宜村界脚屯209国道至周家冲产业道路硬化项目","产业发展","新建","总里程1.817km，路基宽为4.5米、路面宽3.5米、路面结构层拟定为:15cm厚碎石垫层+20cm厚C25混凝土路面、土路肩 1817.20㎡(两边做),新建圆管涵42m/6道，错车道6处，新建挡土墙4幅，护栏1140米，竣工碑一座","2025年3月--2025年12月",133.080989,119,null,119,{"$nulls":5},1,null,36,142,7,33,null,null,"农业农村局","农业农村局（乡村振兴综合服务中心）","完成硬化路2.5公里，及配套设施建设。","助力产业发展，有效解决村民出行，方便生活生产提升36户142人幸福感。"]
[149,"斗江镇","思欧村","斗江镇思欧村油茶产业基地产业路硬化项目（金城隘屯六稿山）","产业发展","新建","新建产业路硬化3公里，路面宽3.5米函板桥10处","2025年3月--2025年12月",210.8434,190,null,190,{"$nulls":6},1,458,1392,123,407,null,null,"农业农村局","农业农村局（乡村振兴综合服务中心）","完成硬化路面长3公里，及配套设施建设。","解决农副产品运输问题，方便458户1392人发展产业及出行。"]
[150,"斗江镇","沙宜村","斗江镇沙宜村那晚屯209国道至溪边道路硬化项目","产业发展","新建","（1）水泥路面616平方米；（2）拆除原有小桥梁，新建一座盖板涵、护栏28米；（3）新建挡土墙高2.0米，长15米；（4）新建盖板沟51米、排水沟39米、φ0.3涵管4.5米","2025年3月--2025年12月",19.659336,18,18,{"$nulls":6},1,null,12,48,{"$nulls":4},"农业农村局","农业农村局（乡村振兴综合服务中心）","完成硬化路300米，及配套设施建设。","助力产业发展，有效解决村民出行，方便12户48人生活生产。"]
[null,"斗江镇","周牙村","斗江镇周牙村石人牙屯道路硬化项目","乡村建设行动","新建","道路硬化长194.3米，路面宽度3.5米。","2025年9月--2025年12月",{"v":10.2,"d":"10.20"},10,{"$nulls":6},10,{"$nulls":8},"农业农村局","农业农村局（乡村振兴综合服务中心）","完成硬化路面长178米。","解决非贫困村产业路路出行问题，方便56户177人生产生活。"]
[151,"林溪镇","高秀村","林溪镇高秀村马哨屯务命加祥油茶产业基地产业道路硬化项目","产业发展","新建","总里程1.438km，路基宽4.5m，铺筑水泥混凝土路面宽3.5m，过路管涵24m,波形护栏1561m，并设竣工碑一座","2025年3月--2025年12月",118.1831,106,69,37,{"$nulls":7},120,498,{"$nulls":4},"农业农村局","农业农村局（乡村振兴综合服务中心）","完成硬化路面长2.6公里，及配套设施建设。","解决高秀村马哨屯务命加祥油茶产业基地道路通车问题，改善基础设施，方便120户498人出行水平。"]
[152,"林溪镇","合华村","林溪镇合华村交桃产业路硬化项目","产业发展","新建","总里程1.251km，路基宽4.5m，铺筑水泥混凝土路面宽3.5m。主要工程：碎石基层、水泥混凝土路面等，并设竣工碑一座","2025年3月--2025年12月",78.2754,74,74,{"$nulls":6},1,0,147,675,28,121,10,46,"农业农村局","农业农村局（乡村振兴综合服务中心）","完成硬化路面长1.1公里，及配套设施建设。","解决贫困村与非贫困村屯级道路通车问题，改善贫困村基础设施，方便147户675人出行水平。"]
[153,"八江镇","汾水村","八江镇汾水村高滩屯高山云雾茶产业示范基地建设项目","产业发展","新建","（1）混凝土道路 3.011公里，本生产路为砼路面道路，路肩宽0.5m；（2）φ1.0涵管6.0米；（3）竣工牌1块","2025年3月--2025年12月",176.1453,158,158,{"$nulls":6},0,1,329,1319,191,921,null,null,"农业农村局","农业农村局（乡村振兴综合服务中心）","硬化路面长3.747公里、路面宽4.5米、厚20厘米，压实砂石基层厚30厘米；两边培路肩宽各0.5米；合理设置涵洞、边沟、错车道等","完善汾水村产业基础设施，促进产业发展，便于群众出行"]
[154,"八江镇","八斗村","八江镇八斗村八斗大屯油茶基地产业路安全防护项目","产业发展","新建","挡土墙1幅50m，公路边沟170m，波形护栏912m，并设竣工碑一座","2025年3月--2025年12月",47.1315,42,42,{"$nulls":8},1210,4110,250,1057,null,null,"农业农村局","农业农村局（乡村振兴综合服务中心）","完成硬安全防护栏安装1公里，挡土墙58米，高3.7米，排水沟180米，及配套设施建设。","解决贫困村行车安全问题，保障群众出行安全，方便1210户4110人出行。"]
[155,"独峒镇","林略村","独峒镇林略村通大塘坳旅游路提升项目","产业发展","新建","（1）新建重力式挡土墙25m，（2）新建仰斜式挡土墙26+77m,（3）新建急流槽：16+18m，（4）新建1－Ф0.8圆管涵：2m，（4）新建排水沟：141m，（5）新建1-3.0*3.0盖板涵：19m，（6）拆除、新建C30防撞墙：32m，（7）破除并恢复路面：15m。","2025年3月--2025年12月",173.29107,155,155,{"$nulls":7},3,887,3346,105,526,null,null,"农业农村局","农业农村局（乡村振兴综合服务中心）","完成旅游道路配套设施建设","完善产业发展基础设施，促进当地村民发展生产。"]
[156,"程村乡","头坪村","程村乡头坪村南山脑至高榜竹木经济林道路建设工程","产业发展","新建","建设内容：新建经济林道路、合理设置边沟、错车道。\n建设规模：新建路面长3.5公里、路面宽4.5米厘米合理设置涵洞、边沟、错车道等。","2025年3月--2025年12月",137.663,{"$f":"K172+L172+P172+M172+N172+O172+Q172","v":123},123,{"$nulls":6},1,0,650,2400,37,139,5,16,"农业农村局","农业农村局（乡村振兴综合服务中心）","完成头坪村各屯竹木经济林道路修建。","改善生活生产条件，促进产业发展。"]
[157,"和平乡","和平村","和平乡和平村江脑屯独田（棉山）油茶产业基地配套产业路项目","产业发展","新建","项目总长2.009公里，路基宽为4.5 m，路面宽为3.5 m；采用3 .5m行车道+2×0.5m培土路肩，设置涵洞7道，每道6米，总共42米；全部为新建圆管涵","2025年3月--2025年12月",146.0324,131,131,{"$nulls":6},1,null,69,198,14,45,null,null,"农业农村局","农业农村局（乡村振兴综合服务中心）","完成3公里产业路建设","解决油茶种植户基地产业路，提高群众发展产业的信心，直接受益69户198人。"]
[158,"和平乡","清江村","和平乡清江村拉州屯至和平村江脑屯通屯砂石路硬化工程","产业发展","新建","硬化通屯砂石路，长3.494公里，路面宽4.5米、盖板涵、挡土墙、防护栏","2025年3月--2025年12月",319.5291,287,287,{"$nulls":14},"农业农村局","农业农村局（乡村振兴综合服务中心）",null,"解决清江村拉州屯至和平村江脑屯道路通车问题，改善基础设施，方便587户1798人出行水平。"]
[159,"老堡乡","边浪村","老堡乡边浪村中草药材基地产业道路硬化项目（上保屯至白云山）","产业发展","新建","硬化路面长3公里、路面宽3.5米、厚20厘米，压实砂石基层厚15厘米；两边培路肩宽各0.5米；合理设置涵洞、边沟、错车道等","2025年3月--2025年12月",188.9409,170,170,{"$nulls":7},1,344,1557,280,1293,23,99,"农业农村局","农业农村局（乡村振兴综合服务中心）","完成硬化路面长7公里，及配套设施建设。","解决脱贫村产业道路通车问题，改善脱贫村基础设施，方便344户1557人产业发展。"]
[160,"高基乡","弓江村","高基乡弓江村下九坪至江外油茶基地道路硬化建设项目","产业发展","新建","项目总长1.980公里，路基宽为4.5 m，路面宽为3.5 m；采用3 .5m行车道+2×0.5m培土路肩，设置涵洞13道，12道6米、1道10米；总共82米；全部为新建圆管涵。","2025年3月--2025年12月",150.8238,135,135,{"$nulls":6},0,1,195,706,87,319,null,null,"农业农村局","农业农村局（乡村振兴综合服务中心）","完成硬化路面长3.5公里，及配套设施建设。","解决脱贫村油茶基地和集体经济项目养牛基地道路通车问题，改善脱贫村基础设施，方便了130亩油茶林管护，60户350人杉竹出山水平，也便于本村集体经济项目养牛基地发展壮大。"]
[161,"高基乡","白郡村","高基乡白郡村寨旺屯产业路硬化项目（坡墓至拉岜）","产业发展","新建","硬项目总长1.532公里，路基宽为4.5 m，路面宽为3.5 m；采用3 .5m行车道+2×0.5m培土路肩，设置涵洞3道，每道6米；总共18米；全部为新建圆管涵。","2025年3月--2025年12月",139.346,125,125,{"$nulls":6},1,0,60,256,5,27,null,null,"农业农村局","农业农村局（乡村振兴综合服务中心）","完成硬化路面长1公里，及配套设施建设。","解决村民生产问题，改善基础设施，方便60户256人生产作业。"]
[162,"良口乡","产口村","良口乡产口村新寨屯二组产业路","产业发展","新建","项目总长6.232公里，路基宽为4.5 m，路面宽为3.5 m；采用3 .5m行车道+2×0.5m培土路肩，设置涵洞28道，每道7米，总共196米；全部为新建圆管涵。","2025年3月--2025年12月",156.933,140,121,19,{"$nulls":6},1,527,1987,83,349,null,null,"农业农村局","农业农村局（乡村振兴综合服务中心）","项目建成后能改善群众出行以及农作物的运输，有效的降低了群众的运输成本，提高群众的收入","降低运输成本，提高收益，带动产业发展"]
[163,"良口乡","产口村","良口乡产口村寨沙屯油茶基地产业路硬化","产业发展","新建","良口乡产口村寨沙屯油茶基地产业路硬化","2025年3月--2025年12月",151.9984,146,124,22,{"$nulls":6},1,527,1987,83,349,null,null,"农业农村局","农业农村局（乡村振兴综合服务中心）","项目建成后有方便群众出行，降低了农作物运输成本，增加群众收入，带动产业发展","改善生产生活条件，降低运输成本，促进产业发展，方便群众出行"]
[164,"洋溪乡","高露村","洋溪乡高露村中寨屯杉木产业基地新建产业路项目(布萨至加甲下)","产业发展","新建","路面长4公里、路面宽4.5米，路基6米，压实砂石基层厚15厘米；两边培路肩宽各0.75米；合理设置涵洞、边沟、错车道等","2025年3月--2025年12月",179.8565,161,120,41,{"$nulls":6},1,240,800,46,208,null,null,"农业农村局","农业农村局（乡村振兴综合服务中心）","便利高露村产业路输出产业发展","改善高露村的生活件，促进产业运输方便，方便群众出行"]
[165,"洋溪乡","玉民村","洋溪乡玉民村新寨产业基地至两胜刘产业基地新建产业路项目","产业发展","新建","新建新寨产业基地至两胜刘产业基地路面长5公里、路面宽5米产业路。","2025年3月--2025年12月",181.4899,169,128,41,{"$nulls":6},1,208,1207,57,316,null,null,"农业农村局","农业农村局（乡村振兴综合服务中心）","完成新建路面长5公里产业路","解决村与村屯级道路通车问题，改善村基础设施，方便群众交通出行安全。"]
[166,"洋溪乡","信洞村","洋溪乡信洞村新村至高记农户联营优质稻基地产业路硬化项目","产业发展","新建","项目总长1.260公里，路基宽为4.5 m，路面宽为3.5 m；采用3 .5m行车道+2×0.5m培土路肩，设置涵洞2道，每道12米，总共24米；全部为新建圆管涵。","2025年3月--2025年12月",63.9245,57,42,15,{"$nulls":6},1,478,1949,271,1133,null,null,"农业农村局","农业农村局（乡村振兴综合服务中心）","该基地涉及油茶产业 124 亩、茶叶 320 亩、优质稻 560 亩、杉木 168 亩，项目建成后大大降低农户运输化肥及农副产品的运输成本，改善群众生产生活条件的同时，完善产业基地的配套基础设施。","项目建成后大大降低农户运输化肥及农副产品的运输成本，改善群众生产生活条件的同时，完善产业基地的配套基础设施。受益户478户，受益人口1949人。"]
[167,"富禄乡","培进村","富禄乡培进村列嘎至别塘山油茶基地产业路硬化项目","产业发展","新建","硬化路面长3.5公里、路面宽3.5米、厚20厘米，压实砂石基层厚10厘米；两边培路肩宽各1米；合理设置涵洞、边沟、错车道等","2025年3月--2025年12月",192.06134,172,139,33,{"$nulls":6},1,415,2145,276,1422,null,null,"农业农村局","农业农村局（乡村振兴综合服务中心）","完成硬化路面长3.5公里，及配套设施建设。","解决贫困村产业路问题，改善贫困村基础设施，方便415户2145人出行水平。"]
[168,"富禄乡","富禄村","富禄乡富禄村葛亮屯产业路建设工程","产业发展","新建","新建产业路井班-岑牙-岑远-管电白-轮岑，全长约7公里，宽4米","2025年3月--2025年12月",{"v":171.786656,"d":"171.7867"},154,109,45,{"$nulls":5},1,null,218,716,23,99,null,null,"农业农村局","农业农村局（乡村振兴综合服务中心）","解决富禄村葛亮屯产业发展问题，收益群众736人，杉树1200亩，油茶200亩","改善富禄村葛亮屯的生产生活条件，促进产业发展。"]
[169,"梅林乡","石碑村","梅林乡石碑村广现坡产业路硬化项目","产业发展","新建","硬化路面长5.5公里、路面宽4米、厚20厘米，压实砂石基层厚20厘米；两边培路肩宽各0.5米；合理设置涵洞、边沟、错车道等","2025年3月--2025年12月",234.7731,211,166,45,{"$nulls":5},1,0,490,1849,81,323,9,36,"农业农村局","农业农村局（乡村振兴综合服务中心）","完成硬化路面长5.5公里，及配套设施建设。","解决贫困村与非贫困村屯级道路通车问题，改善村寨基础设施，方便490户1849人出行水平和发展产业"]
[170,"同乐乡","良冲村","同乐乡良冲村培秀屯岑塔约林区道路建设工程","产业发展","新建","项目总长3.634公里,路基宽为4.5 m，路面宽为3.5 m；采用3 .5m行车道+2×0.5m培土路肩，设置涵洞9道，每道6米，总共54米；全部为新建圆管涵","2025年3月--2025年12月",145.7553,134,112,22,{"$nulls":6},1,735,3054,384,1746,null,null,"农业农村局","农业农村局（乡村振兴综合服务中心）","完成硬化路面长4公里，及配套设施建设。方便735户，3054人安全出行。","完善产业基地配套设施，扩大产业种植规模，促进产业提质增效。增加农户收入，壮大村集体经济。方便735户3054人开展产业活动。"]
[171,"同乐乡","孟寨村","同乐乡孟寨村富北亮竹和央友林区道路建设工程","产业发展","新建","项目总长2.155公里、央友林区项目总长1.734公里，路基宽为4.5 m，路面宽为3.5 m；采用3 .5m行车道+2×0.5m培土路肩，富北亮竹设置涵洞4道，每道6米，总共24米、央友林区设置涵洞5道，每道6米，总共30米；全部为新建圆管涵。","2025年3月--2025年12月",108.3655,97,70,27,{"$nulls":6},1,699,2787,238,886,null,null,"农业农村局","农业农村局（乡村振兴综合服务中心）","完成林区道路建设4.4公里，及配套设施建设。解决699户2787人产业生产出行困难问题。","完善产业交通设施，解决贫困村村民发展产业出行困难问题，提高村民经济收入，方便699户2787人发展林区经济。带动优质稻256亩，茶叶356亩，杉木587亩，茶油283亩产业提质增效。"]
[172,"同乐乡","高旁村","同乐乡高旁村登弄两茶产业基地新建产业路项目","产业发展","新建","硬化产业路。长3.8公里、路面宽3.5米、厚20厘米，压实砂石基层厚10厘米；两边培路肩宽各0.5米；合理设置涵洞、边沟、错车道等。","2025年3月--2025年12月",254.678,229,133,96,{"$nulls":6},1,446,1723,192,800,null,null,"农业农村局","农业农村局（乡村振兴综合服务中心）","完成硬化路面长2.8公里，及配套设施建设。保障446户1723人出行安全。","解决贫困村产业道路通车问题，改善贫困村基础设施，方便446户1723人出行安全，保障村民出行安全，促进村民产业发展。"]
["县统战部",null,"小计",null,"小计",{"$nulls":3},{"$f":"SUM(I190:I204)","v":1775.196156},1650,1150,0,500,0,0,0,null,{"$f":"SUM(R190:R196)","v":1},6,4461,16784,1518,6249,0,0]
[173,"独峒镇","岜团村岜团屯","独峒镇岜团村民族特色村寨旅游产业发展配套设施项目","产业发展","新建","建设内容：新建人行桥3座，盖板桥①：宽4.5米，长度23米，盖板桥②：宽4.3米，长11米，盖板桥③：宽2.1米，长19.8米；新建新石板路：长1168米，宽1.2/0.9米；新建轻钢+塑木结构游客观光、生产步道：长433米，宽2.1米；太阳能节能路灯25.0盏（5米高杆）。","2025年1月-2025年8月",246.183984,{"$f":"K190+L190+P190+M190+N190+O190","v":245},245,{"$nulls":7},1,554,2254,210,833,null,null,"统战部","统战部","完成人行桥3座，石板路1168米，新建轻钢+塑木结构游客观光、生产步道433米，太阳能节能路灯25盏。","项目建成后，将全面提升民族村寨“形、实、魂”，补齐基础设施和公共服务设施短板弱项，依托村寨地域特点和文化特色，积极发展民俗风情旅游，打造特色乡村旅游品牌。推动民族村寨建设成为多姿多彩乡土文化繁荣发展、巩固拓展脱贫攻坚成果和乡村振兴，扎实推进各民族交往交流交融，擦亮的宜居宜业和美村寨，使其成为引领民族村寨高质量发展的标杆示范。","少数民族发展任务"]
[174,"八江镇","八斗村","八江镇八斗村中朝屯冲喜至岗补苗油茶基地产业路硬化建设项目","产业发展","新建","建设内容：产业路硬化路线全长2.6 公里，路基：宽4.5 米，碎石垫层宽4.5 米，厚0.10米，硬化路面：混凝土宽3.5 米，厚0.2米。包括预留排水沟、路肩回填、涵洞、挡土墙等；","2025年1月-2025年8月",152.2265,151,151,{"$nulls":6},1,null,1211,4110,250,1057,null,null,"统战部","统战部","完成产业路硬化路线全长2.6 公里。","该基地涉及油茶587亩、茶叶202亩、优质稻36亩、杉木1123亩。项目建成后，将有力推动产业发展，大幅提高村民产业生产效率，显著降低农户运输化肥及农副产品的成本。全面改善农业生产与出行安全条件，辐射带动周边农户产业进步。促进各民族团结奋斗、繁荣发展，进一步铸牢中华民族共同体意识，助力乡村振兴。","少数民族发展任务"]
[175,"古宜镇","泗联村","古宜镇泗联村白花屯窍泠屯油茶基地新建产业路项目","产业发展","新建","建设内容：产业路硬化路长0.963公里，路基：宽4.5 米。碎石垫层宽4.5 米，厚0.10米，硬化路面：混凝土宽3.5 米，厚0.2米。新开挖产业路2.937公里，路基：宽4.5米，路面：宽3.5米（碎石垫层厚15cm+磨耗层厚2cm）。包括预留排水沟、路肩回填、涵洞、挡土墙等；","2025年1月-2025年8月",180.6638,150,150,{"$nulls":7},1,{"$f":"125+167","v":292},{"$f":"505+594","v":1099},{"$f":"7+16","v":23},74,null,null,"统战部","统战部","完成产业路硬化路长0.963公里，新开挖产业路2.937公里。","该基地涉及油茶200亩，茶叶1900亩、中草药20亩、南竹130亩、杉木1300亩项目建成后，将有力推动产业发展，大幅提高村民产业生产效率，显著降低农户运输化肥及农副产品的成本。全面改善农业生产与出行安全条件，辐射带动周边农户产业进步。促进各民族团结奋斗、繁荣发展，进一步铸牢中华民族共同体意识，助力乡村振兴。","少数民族发展任务"]
[176,"洋溪乡","信洞村","洋溪乡信洞村翁布至面长农户联营油茶基地产业路硬化项目","产业发展","新建","建设内容：产业路硬化路线全长 3.2095公里，路基：宽4.5 米，碎石垫层宽4.5 米，厚0.15米，硬化路面：混凝土宽3.5 米，厚0.2米。包括预留排水沟、路肩回填、涵洞等；","2025年1月-2025年8月",201.456146,200,200,{"$nulls":7},1,478,1949,271,1133,null,null,"统战部","统战部","完成产业路硬化路长0.963公里。","该基地涉及油茶226亩、茶叶425亩、优质稻420亩、杉木620亩。项目建成后，将有力推动产业发展，大幅提高村民产业生产效率，显著降低农户运输化肥及农副产品的成本。全面改善农业生产与出行安全条件，辐射带动周边农户产业进步。促进各民族团结奋斗、繁荣发展，进一步铸牢中华民族共同体意识，助力乡村振兴。","少数民族发展任务"]
[177,"梅林乡","梅林村","梅林乡梅林村宝花山富硒茶油基地产业道路硬化项目","产业发展","新建","建设内容：产业路硬化路线全长2.473 公里，路基：宽4.5 米，碎石垫层宽4.5 米，厚0.15米，硬化路面：混凝土宽3.5 米，厚0.2米。包括预留排水沟、路肩回填、涵洞等；","2025年1月-2025年8月",189.8083,189,189,{"$nulls":7},1,694,2554,441,1806,null,null,"统战部","统战部","完成产业路硬化路2.473 公里。","该基地涉及油茶860亩、茶叶115亩、杉木1213亩。项目建成后，将有力推动产业发展，大幅提高村民产业生产效率，显著降低农户运输化肥及农副产品的成本。全面改善农业生产与出行安全条件，辐射带动周边农户产业进步。促进各民族团结奋斗、繁荣发展，进一步铸牢中华民族共同体意识，助力乡村振兴。","少数民族发展任务"]
[178,"丹洲镇","江荷村","丹洲镇江荷村大桥山农户联营竹木基地产业路硬化项目","产业发展","新建","建设内容：产业路硬化路线全长1.98公里，路基宽度：4.5 米，碎石垫层宽4.5 米，厚0.15米，硬化路面：混凝土宽3.5 米，厚0.2米。包括预留排水沟、路肩回填、涵洞、挡土墙等；","2025年1月-2025年8月",155.6825,155,155,{"$nulls":7},1,497,1960,41,170,null,null,"统战部","统战部","完成产业路硬化路线1.98公里。","该基地涉及茶叶50亩、杉木2000亩、竹木150亩。项目建成后，将有力推动产业发展，大幅提高村民产业生产效率，显著降低农户运输化肥及农副产品的成本。全面改善农业生产与出行安全条件，辐射带动周边农户产业进步。促进各民族团结奋斗、繁荣发展，进一步铸牢中华民族共同体意识，助力乡村振兴。","少数民族发展任务"]
[179,"同乐乡","岑甲村","同乐乡岑甲村归岳屯小型公益基础设施项目","乡村建设行动","新建","建设内容：新建水毁、护坡共计4幅64.0延米，防撞墩3幅27米，安全防护栏317米。","2025年1月-2025年8月",30.641959,30,30,{"$nulls":7},1,735,2858,282,1176,null,null,"统战部","统战部","完成水毁、护坡共计5幅64.0延米，防撞墩3幅27米，安全防公路护栏287米。","项目建成后，将对村内交通设施进行全方位的升级完善，极大地改善村民出行条件，为735户共计2858人提供坚实的安全出行保障。促进各民族在生产生活中的交流合作，携手共同团结奋斗，实现共同繁荣发展，进一步铸牢中华民族共同体意识，助力乡村和谐发展。","少数民族发展任务"]
[180,"同乐乡","归东村","三江县同乐乡归东村深坳、高盘农户联营油茶、茶叶、葡萄产业基地产业路硬化项目","产业发展","新建","产业路硬化长2.4公里，路面宽3.5米，厚0.2米，路基宽4.5米，包括预留排水沟、挡土墙、涵管、路肩回填等","2025年6月-2025年12月",{"v":129.2278,"d":"129.23"},{"$f":"K197+L197+P197+M197+N197+O197","v":110},10,null,100,{"$nulls":5},1,152,653,119,520,null,null,"统战部","统战部","完成产业路硬化长2.4公里","项目涉及油茶30亩，茶叶108亩、葡萄338亩、稻田80亩、杉木林100亩。项目建成后，将有力推动产业发展，大幅提高村民产业生产效率，显著降低农户运输化肥及农副产品的成本。全面改善农业生产与出行安全条件，辐射带动周边农户产业进步。促进各民族团结奋斗、繁荣发展，进一步铸牢中华民族共同体意识，助力乡村振兴。","少数民族发展任务"]
[181,"良口乡","寨塘村","三江县良口乡寨塘村河寨屯生产道路硬化项目","产业发展","新建","生产道路硬化长0.8公里，路面宽3.5米，厚0.2米，包括预留排水沟、路肩回填等","2025年6月-2025年12月",{"v":37.2729,"d":"37.27"},30,null,null,30,{"$nulls":5},1,32,150,12,39,null,null,"统战部","统战部","完成生产道路硬化长0.8公里","项目涉及油茶60亩，茶叶150亩、土豆50亩、稻田45亩、杉木林125亩。项目建成后，将有力推动产业发展，大幅提高村民产业生产效率，显著降低农户运输化肥及农副产品的成本。全面改善农业生产与出行安全条件，辐射带动周边农户产业进步。促进各民族团结奋斗、繁荣发展，进一步铸牢中华民族共同体意识，助力乡村振兴。","少数民族发展任务"]
[182,"古宜镇","大洲村","三江县古宜镇大洲村新村至龙滩角产业路硬化项目","产业发展","新建","产业路硬化长0.5公里，路面宽3.5米，厚0.2米，路基宽4.5米，包括预留排水沟、挡土墙路肩回填等","2025年6月-2025年12月",{"v":46.9972,"d":"47.00"},40,null,null,40,{"$nulls":4},1,null,85,384,8,40,null,null,"统战部","统战部","完成产业路硬化长0.5公里","项目涉及茶叶20亩、稻田30亩、杉木林1300亩。项目建成后，将有力推动产业发展，大幅提高村民产业生产效率，显著降低农户运输化肥及农副产品的成本。全面改善农业生产与出行安全条件，辐射带动周边农户产业进步。促进各民族团结奋斗、繁荣发展，进一步铸牢中华民族共同体意识，助力乡村振兴。","少数民族发展任务"]
[183,"八江镇","马胖村","三江县八江镇马胖村岩寨屯庙冲至亚陇产业路硬化项目","产业发展","新建","产业路硬化长1.4公里，路面宽3.5米，厚0.2米，路基宽4.5米，包括预留排水沟、挡土墙、涵管、路肩回填等","2025年6月-2025年12月",{"v":80.9,"d":"80.90"},70,null,null,70,{"$nulls":5},1,320,1165,67,267,null,null,"统战部","统战部","完成产业路硬化长1.4公里","项目涉及油茶200亩、茶叶280亩、罗汉果20亩、稻田280亩、杉树600亩。项目建成后，将有力推动产业发展，大幅提高村民产业生产效率，显著降低农户运输化肥及农副产品的成本。全面改善农业生产与出行安全条件，辐射带动周边农户产业进步。促进各民族团结奋斗、繁荣发展，进一步铸牢中华民族共同体意识，助力乡村振兴。","少数民族发展任务"]
[184,"斗江镇","牙林村","三江县斗江镇牙林村白三屯寨边至马鞍山产业道路硬化项目","产业发展","新建","产业路硬化长3公里，路面宽3.5米，厚0.2米，路基宽4.5米，包括预留排水沟、挡土墙、涵管、路肩回填等","2025年6月-2025年12月",{"v":133.3581,"d":"133.36"},115,10,null,105,{"$nulls":4},1,null,155,578,16,55,null,null,"统战部","统战部","完成产业路硬化长3公里","项目涉及油茶150亩、茶叶130亩、罗汉果45亩、稻田110亩、杉木林860亩。项目建成后，将有力推动产业发展，大幅提高村民产业生产效率，显著降低农户运输化肥及农副产品的成本。全面改善农业生产与出行安全条件，辐射带动周边农户产业进步。促进各民族团结奋斗、繁荣发展，进一步铸牢中华民族共同体意识，助力乡村振兴。","少数民族发展任务"]
[185,"独峒镇","岜团村","三江县独峒镇岜团村岜团屯至具盘村具河屯连接道路硬化项目","乡村建设行动","新建","道路硬化长0.7公里，路面宽3.5米，厚0.2米，路基宽4.5米，包括预留排水沟、挡土墙、路肩回填等","2025年6月-2025年12月",38.5908,30,null,null,30,{"$nulls":5},2,1340,5544,450,1876,null,null,"统战部","统战部","完成道路硬化长0.7公里","项目的建成将全面改善村民生产效率、出行安全条件和居住环境，提高居民生活质量，提升居民满意度。充分发挥少数民族发展任务资金的能效，促进各民族团结奋斗、繁荣发展，进一步铸牢中华民族共同体意识，助力乡村振兴。","少数民族发展任务"]
[186,"独峒镇","岜团村","三江县独峒镇岜团村文物房至茶叶基地道路硬化项目","乡村建设行动","新建","道路硬化长0.6公里，路面宽3.5米，厚0.2米，路基宽4.5米，包括预留排水沟、挡土墙、路肩回填等","2025年6月-2025年12月",{"v":48.0551,"d":"48"},45,5,null,40,{"$nulls":5},1,554,2254,210,833,null,null,"统战部","统战部","完成道路硬化长0.6公里","项目建成后，将全面提升民族村寨“形、实、魂”，补齐基础设施和公共服务设施短板弱项，依托村寨地域特点和文化特色，积极发展民俗风情旅游，打造特色乡村旅游品牌。推动民族村寨建设成为多姿多彩乡土文化繁荣发展、巩固拓展脱贫攻坚成果和乡村振兴，扎实推进各民族交往交流交融，擦亮的宜居宜业和美村寨，使其成为引领民族村寨高质量发展的标杆示范。","少数民族发展任务"]
[187,"丹洲镇","合桐村","三江县丹洲镇合桐村各自然屯入户道路硬化项目","乡村建设行动","新建","道路硬化长1.7公里，路面宽度3米。包括预留排水沟、涵管、挡土墙路肩等","2025年6月-2025年12月",{"v":104.131067,"d":"104.13"},90,5,null,85,{"$nulls":4},1,null,400,1340,32,105,null,null,"统战部","统战部","完成道路硬化长1.7公里","合桐村共9个屯，受益户数477户，受益人口1914人，项目的建成将全面改善村民生产效率、出行安全条件和居住环境，提高居民生活质量，提升居民满意度。充分发挥少数民族发展任务资金的能效，促进各民族团结奋斗、繁荣发展，进一步铸牢中华民族共同体意识，助力乡村振兴。","少数民族发展任务"]
["县水利局",null,"小计",null,"小计",{"$nulls":3},{"$f":"SUM(I206:I235)","v":2922.199698},{"$f":"SUM(J206:J235)","v":2803},1443,1205,0,0,155,0,null,{"$f":"SUM(R206:R235)","v":21},11,6474,27484,1529,5991,509,1380]
[188,"斗江镇","周牙村","斗江镇周牙村周村屯人饮维修项目","乡村建设行动","新建","新建50m³蓄水池、重力式无阀滤池、瞬间水量补水池、拦水坝、集水池、过滤池各1座，厂区不锈钢围墙40米，台阶步道200米，无阀滤池排水沟150米，镇墩35个，铺设管网总长4711米，其中引水管1336米、配水管3375米，安装消毒设备1套，维修工具1套及附属工程。","2025年3月-2025年12月",71.20939,{"$f":"K206+L206+P206+M206+N206+O206","v":72.1172},32.1172,40,{"$nulls":5},1,null,null,292,{"$nulls":4},"水利局","农村饮水安全事务站","保障农村饮水安全，受益人口211户688人。"]
[189,"斗江镇","沙宜村","斗江镇沙宜村杉木寨屯供水保障设施建设工程","乡村建设行动","新建","新建重力式无阀滤池、瞬间水量补水池各1座，水池维修1座，拦水坝、集水池、过滤池各2座，厂区不锈钢围墙100米，台阶步道750米，铺设管网总长8510米，其中引水管2350米、配水管6160米，安装消毒设备1套及附属工程。","2025年3月-2025年12月",79.864,{"$f":"K207+L207+P207+M207+N207+O207","v":70},30,40,{"$nulls":5},1,null,143,580,14,55,null,null,"水利局","农村饮水安全事务站","保障农村饮水安全，受益人口134户580."]
[190,"斗江镇","周牙村","斗江镇周牙村上塘外屯林场水源头至上塘外屯人饮项目","乡村建设行动","新建","新建拦水坝2座、集水池2座、初滤沉淀池1座、阀门井9座、100m³蓄水池一座、无阀滤池1座、交通步道120米，DN300双壁波纹管165米，铺设管网7611米及附属工程","2025年3月-2025年12月",67.1203,{"$f":"K208+L208+P208+M208+N208+O208","v":55},25,30,{"$nulls":5},1,null,81,306,11,43,null,null,"水利局","农村饮水安全事务站","保障农村饮水安全，受益人口81户306人。",null,"新增"]
[191,"同乐乡","同乐村","同乐乡同乐村归斋安全饮水提升工程","乡村建设行动","新建","新建100m³水池1座，无阀滤池排水沟50米，无阀滤池1座，闸阀井9座，新建管网总长3700米及附属工程","2025年3月-2025年12月",50.6558,46,20,23,null,null,3,{"$nulls":3},1,210,906,{"$nulls":4},"水利局","农村饮水安全事务站","保障农村饮水安全，受益人口210户906人."]
[192,"林溪镇","程阳村","三江侗族自治县林溪镇程阳集中供水项目","乡村建设行动","新建","林溪镇程阳集中供水项目工程新建水厂一座，净水设备采用模块化，模块化设备使用304不锈钢制作，设计净化能力200m3/h，日供水2000m。新建清水池一座400m3，取水泵站一座，取水管线6500m，管径DN200mm。新建综合楼一栋，建筑面积305.4 m。进厂公路835.0m，集中原有泥结石路面段615m，新建公路220m。架设10KV高压线路4.5Km，安装变压器2台。各种直径的配水管线总40210m，安装水表1798个。设置临时施工便道2.0km。","2025年3月-2025年12月",961.744708,961.744708,454.277962,430,null,null,77.466746,null,null,1,null,1846,7120,405,1607,58,344,"水利局","农村饮水安全事务站","解决程阳八寨中四个村寨目前供水不足的问题，解决程阳八寨景区近期发展急需供水的问题。按设计水平年为 10 年预测，供水人口达到 12538 人，经计算，日供水量为 1417m³/d，年供水量 51.72 万吨。据《村镇供水工程技术规范 SL687-2014》，考虑到程阳八寨的发展需要，程阳集中供水项目设备规模为 1500m³/d。"]
[193,"林溪镇","高友村","林溪镇高友村安全饮水巩固提升新建安全饮水工程","乡村建设行动","新建","新建拦水坝、蓄水池、挡墙等水源工程及厂区工程等施工图纸和清单所包含的全部内容。","2025年3月-2025年12月",119.7435,107,50,51,null,null,6,{"$nulls":3},1,490,1924,127,452,48,223,"水利局","农村饮水安全事务站","保障农村饮水安全，受益人口490户1924人."]
[194,"独峒镇","具盘村","独峒镇具盘村旧具屯人饮提升工程","乡村建设行动","新建","新建100m³蓄水池、拦水坝、集水池、过滤池各一座。阀门井2座、无阀滤池1座、瞬间水量补水池1座、墩75个、新建泵房1间、新修台阶步道250m、简易消毒设备1套、新建输配管网总长1450米及附属安装工程。","2025年3月-2025年12月",53.643,55.7602,27.7602,25,null,null,3,{"$nulls":3},1,124,557,50,223,8,28,"水利局","农村饮水安全事务站","保障农村饮水安全，受益人口124户557人."]
[195,"八江镇","布代村","八江镇布代村孟田屯水源工程","乡村建设行动","新建","新建100m³蓄水池1座、拦水坝1座、沉沙池2座、阀门井31座、简易消毒设备1套、新建输配管网总长9480米及附属安装工程。","2025年3月-2025年12月",66.6651,60,30,25,null,null,5,null,null,1,null,336,1530,205,923,25,107,"水利局","农村饮水安全事务站","保障农村饮水安全，受益人口336户1530人."]
[196,"古宜镇","周坪村","古宜镇周坪村下林江屯饮水安全巩固提水工程","乡村建设行动","新建","新建50m³蓄水池2座、阀门井25座、新建重力式无阀滤池2座、瞬间水量补水池2座、简易消毒设备2套、新建输配管网总长7915米及附属安装工程。","2025年3月-2025年12月",88.7209,80,40,40,{"$nulls":5},1,null,120,540,19,84,3,12,"水利局","农村饮水安全事务站","保障农村饮水安全，受益人口120户540人."]
[197,"古宜镇","周坪村","古宜镇周坪村榕树屯人饮提升工程","乡村建设行动","新建","新建100m³蓄水池1座、拦水坝4座、集水池4座、过滤池3座。新建重力式无阀滤池1座、瞬间水量补水池1座、新修台阶步道360m、不锈钢围墙100m、简易消毒设备2套、新建输配管网总长11176米及附属安装工程。","2025年3月-2025年12月",88.5601,82.7245,38.7245,37,null,null,7,null,null,1,null,128,580,22,85,4,13,"水利局","农村饮水安全事务站","保障农村饮水安全，受益人口128户580人."]
[198,"古宜镇","古皂村","古宜镇古皂村罗古屯饮水提升工程","乡村建设行动","新建","新建100m³蓄水池、拦水坝、集水池、过滤池各一座。阀门井1座、新修台阶步道274m、简易消毒设备1套、新建输配管网总长2666米及附属安装工程。","2025年3月-2025年12月",40.3287,37,28,9,{"$nulls":5},1,null,56,214,7,25,2,5,"水利局","农村饮水安全事务站","保障农村饮水安全，受益人口56户214人."]
[199,"程村乡","头坪村","程村乡头坪村饮水项目维修工程","乡村建设行动","新建","维修防渗处理200m³水池一座，新建闸阀井3座。新建管网总长1280米及附属工程","2025年3月-2025年12月",13.076,12,8,4,{"$nulls":5},1,0,328,1371,15,70,5,22,"水利局","农村饮水安全事务站","保障农村饮水安全，受益人口328户1371人。"]
[200,"程村乡","泗里村","程村乡泗里村显塘屯安全饮水建设项目","乡村建设行动","新建","新建拦水坝1座，新建集水池1座，新建过滤池1座，新建闸阀井1座，新建厂区便道200米，新建不锈钢围栏50米，新建管网总长1900米及附属工程.","2025年3月-2025年12月",21.2687,19,14,5,{"$nulls":5},0,1,82,348,8,26,2,9,"水利局","农村饮水安全事务站","保障农村饮水安全，受益人口82户348人。"]
[201,"和平乡","清江村","和平乡清江村六甲组饮水安全维修工程","乡村建设行动","新建","铺设管网总长4205米，厂区便道200米，阀门井3座，镇墩7个，安装消毒设备1套，维修工具1套及附属工程。","2025年3月-2025年12月",22.1915,21,14,7,{"$nulls":5},1,null,37,106,9,30,null,null,"水利局","农村饮水安全事务站","保障农村饮水安全，受益人口37户106人。"]
[202,"八江镇","布央村","八江镇布央村美地屯人饮水池项目","乡村建设行动","新建","新建100m³蓄水池1座、阀门井12座、镇墩75个、新建重力式无阀滤池1座、瞬间水量补水池1座、无阀滤池排水沟50m、简易消毒设备1套、新建输配管网总长9895米及附属安装工程。","2025年3月-2025年12月",79.9862,74,35,39,{"$nulls":5},1," ",183,825,{"$nulls":3},72,"水利局","农村饮水安全事务站","保障农村饮水安全，受益人口183户825人。"]
[203,"林溪镇","林溪村","林溪镇林溪村平地棉屯人饮管网维修工程","乡村建设行动","新建","新建100m³蓄水池、重力式无阀滤池、瞬间水量补水池、拦水坝、集水池、过滤池各1座，厂区便道160米，无阀滤池排水沟200米，阀门井9座，铺设管网总长5836米，其中输水管3906米，配水管1930米，安装消毒设备1套，维修工具1套及附属工程。","2025年3月-2025年12月",61.11082,57,25,32,{"$nulls":5},1,null,32,195,4,16,2,7,"水利局","农村饮水安全事务站","保障农村饮水安全，受益人口32户195人。"]
[204,"丹洲镇","板江社区","丹洲镇板江社区雷口组人饮工程","乡村建设行动","新建","新建100m³蓄水池1座，拦水坝、集水池、过滤池各2座，厂区不锈钢围墙50米，台阶步道80米，阀门井3座，镇墩7个，铺设管网总长6050米，其中输水管3330米，配水管2720米，安装消毒设备1套，维修工具1套及附属工程。","2025年3月-2025年12月",47.29889,44.8526,20.8526,24,{"$nulls":5},1,null,77,251,20,75,null,null,"水利局","农村饮水安全事务站","保障农村饮水安全，受益人口77户251人。"]
[205,"丹洲镇","六孟村","丹洲镇六孟村外寨屯人饮入户管网改造项目","乡村建设行动","新建","铺设管网总长5060米，厂区便道40米，阀门井6座，安装消毒设备1套，维修工具1套及附属工程。","2025年3月-2025年12月",28.97105,27,16,11,{"$nulls":5},1,null,81,320,20,74,null,null,"水利局","农村饮水安全事务站","保障农村饮水安全，受益人口81户320人。"]
[206,"梅林乡","梅林村","梅林中学饮用水水质净化工程","乡村建设行动","新建","新建拦水坝1座，集水池1座，阀门井1座，无阀滤池1座，斜管沉淀池一座，DN300双波纹排水管130米及附属工程。","2025年3月-2025年12月",17.7076,19.3952,12.3952,7,{"$nulls":5},2,2,null,500,200,200,300,300,"水利局","农村饮水安全事务站","解决梅林中学饮水安全问题，保证梅林中学500人饮水安全"]
[207,"高基乡","篦梳村","高基乡篦梳村上河屯新增人饮建设工程","乡村建设行动","新建","新建50m³蓄水池、拦水坝、集水池、初滤沉淀池各1座，厂区防护网30米，阀门井16座，铺设管网总长9231米，其中输水管5156米、配水管4075米，安装消毒设备1套及附属工程。","2025年3月-2025年12月",51.79682,48,20,28,{"$nulls":5},1,0,67,244,12,42,1,2,"水利局","农村饮水安全事务站","保障农村饮水安全，受益人口67户244人。"]
[208,"高基乡","拉旦村","高基乡拉旦村台竹山屯人饮水池提升工程","乡村建设行动","新建","新建50m³蓄水池、拦水坝、集水池、过滤池各1座，厂区防护网30米，台阶步道110米，阀门井7座，铺设管网总长2276米，其中输水管1016米、配水管1260米，安装消毒设备1套，维修工具1套及附属工程。","2025年3月-2025年12月",24.52002,22,15,7,{"$nulls":5},0,1,16,60,6,24,3,13,"水利局","农村饮水安全事务站","保障农村饮水安全，受益人口16户60人。"]
[209,"富禄乡","富禄村","富禄乡富禄村岑胖屯人饮提水工程","乡村建设行动","新建","新建管网总长940米，安装抽水泵3套及附属工程","2025年3月-2025年12月",17.1561,16,10,6,{"$nulls":5},1,null,128,532,22,96,null,null,"水利局","农村饮水安全事务站","保障农村饮水安全，受益人口128户532人。"]
[210,"富禄乡","纯德村","富禄乡纯德村水源工程","乡村建设行动","新建","新建150m³蓄水池及附属设施等","2025年3月-2025年12月",231.395,215,125,90,{"$nulls":6},1,510,2299,185,1207,null,null,"水利局","农村饮水安全事务站","保障农村饮水安全，受益人口510户2299人。"]
[211,"洋溪乡","洋溪村","洋溪乡洋溪村寨湾屯移民新村人饮工程项目","乡村建设行动","新建","新建阀门井5座，镇墩15个，新建管网总长431米及附属工程。","2025年3月-2025年12月",7.102,7,4,3,{"$nulls":5},0,1,16,75,5,27,0,0,"水利局","农村饮水安全事务站","保障农村饮水安全，受益人口16户75人。"]
[212,"洋溪乡","波里村","洋溪乡波里上寨屯新建人饮水源工程项目","乡村建设行动","新建","新建栏水坝1座，集水池1座，过滤池1座，阀门井12座，50m³蓄水池防渗处理1项，无阀滤池1座，步道55米，无阀滤池排水沟40米，新建管网总长3356米及附属工程。","2025年3月-2025年12月",32.2236,30,22,8,{"$nulls":5},0,1,172,764,36,155,0,0,"水利局","农村饮水安全事务站","保障农村饮水安全，受益人口172户764人。"]
[213,"良口乡","白毛村","良口乡白毛村大团屯水源工程","乡村建设行动","新建","新建拦水坝2座，挡土墙12米，交通便道6米，抽水泵房1座，方形蓄水池1座，潜水泵2套，管网总长2000米及附属工程","2025年3月-2025年12月",17.7521,16,11,5,{"$nulls":5},1,null,135,615,{"$nulls":4},"水利局","农村饮水安全事务站","保障农村饮水安全，受益人口135户615人。"]
[214,"良口乡","产口村","良口乡产口村新寨、旧寨屯屯内人饮管网","乡村建设行动","新建","新寨屯：新建拦水坝一座，集水池一座，阀门井12座，镇墩62个，步道265米，配套管网8265米及附属工程。\n旧寨屯：新建阀门井5座，步道90米，管网3300米及附属工程。","2025年3月-2025年12月",73.8855,69,30,39,{"$nulls":5},1,null,266,650,{"$nulls":4},"水利局","农村饮水安全事务站","保障农村饮水安全，受益人口266户650人。"]
[215,"林溪镇","高友村","林溪镇高友村安全饮水巩固提升配电安装工程","乡村建设行动","新建","新装160KVA台变1台;综合配电箱1套，接地1组，避雷器1组，跌落式熔断器2组，含试验并提供试验报告；埋管敷设120低压铝电缆-100米。2、新立12米190杆尾高性能混凝土杆13根，10米190杆尾高性能混凝土杆3根，架设70绝缘架空线路3*730米，低压BLV-120-4*180米及安装杆上金具。","2025年3月-2025年12月",33.8,34.7756,26.7756,5,null,null,3,null,null,1,1,490,1924,127,452,48,223,"水利局","农村饮水安全事务站","保障农村饮水安全，受益人口490户1924人。"]
[216,"老堡乡","老堡社区","老堡乡老堡社区人饮管网维修工程","乡村建设行动","新建","新建50m³蓄水池1座，栏水坝1座，集水池1座，过滤池1座，阀门井4座，镇墩24个，厂区便道50m,新建管网总长14175米及附属工程","2025年3月-2025年12月",102.7023,93,40,50,null,null,3,{"$nulls":4},320,1856,{"$nulls":4},"水利局","农村饮水安全事务站","保障农村饮水安全，受益人口320户1856人。"]
[217,"三江县","各乡镇","三江侗族自治县2025年农村饮水水旱灾害维修抢修工程","乡村建设行动","新建","对各乡镇因冰冻、强降雨受损及旱灾影响的饮水工程进行修复，维修抢修采购水管管材等。","2025年1月-2025年12月",350,350.629992,218.096738,85,null,null,47.533254,{"$nulls":10},"水利局","农村饮水安全事务站","保障安全饮水受益1.5万人"]
["县组织部",null,"小计",null,"小计",{"$nulls":3},{"$f":"SUM(I237)","v":550},550,{"$f":"SUM(K237)","v":0},550,0,0,0,0,null,{"$f":"SUM(R237)","v":4},98,47194,192927,16806,77875,5336,23104]
[218,"15个乡镇","110个行政村（社区）","2025年三江侗族自治县第一书记建设资金","乡村建设行动\n","新建","解决98个脱贫村、8个易地扶贫搬迁安置点（社区），4个乡村振兴重点村（面上村）的项目建设问题。详见附件3.","2025年2月—2025年10月",550,{"$f":"K237+L237+P237+M237+N237+O237","v":550},null,550,{"$nulls":5},4,98,47194,192927,16806,77875,5336,23104,"组织部","各乡镇","通过衔接资金项目建设，突出对乡村振兴重点帮扶村、脱贫村、易地搬迁安置点等重点地区，突出帮扶监测对象等重点人群，着力补齐乡村振兴建设短板弱项。",null,null,"原项目总投资金额565元，实际投资550万元，核减15万元。\n根据《自治区党委组织部 自治区党委农村工作领导小组办公室 自治区农业农村厅关于做好全区新一轮驻村第一书记和工作队轮换工作的通知》要求，丹洲村、坡头村和篦梳村不再选派驻村第一书记。"]
["县自然资源和规划局",null,"小计",null,"小计",{"$nulls":3},{"$f":"SUM(I239:I253)","v":1223.74},{"$f":"SUM(J239:J253)","v":1045},0,884,0,0,161,0,null,{"$f":"SUM(R239:R253)","v":28},12,15451,70000,5500,17000,0,0]
[219,"各乡镇","所涉及的26个行政村","三江侗族自治县乡村地区“通则式”规划管理规定编制项目","乡村建设行动-村庄规划编制（含修编）","新建","三江县乡村地区“通则式”规划管理规定编制项目，将实现未编制村庄规划的26个行政村规划管理全覆盖，为乡村地区的国土空间开发保护、实施国土空间用途管制、核发乡村建设项目规划许可、保障乡村振兴项目用地。完善村屯基础设施建设，提升村屯基础设施环境和生活条件，改善生活生产条件，开展各项建设活动提供规划依据。","2025年1月-2025年12月",42,{"$f":"K239+L239+P239+M239+N239+O239","v":42},null,30,null,null,12,null,null,14,12,15000,70000,5500,17000,0,0,"自然资源和规划局","自然资源和规划局","实现未编制村庄规划的村屯规划管理全覆盖，为乡村地区的国土空间开发保护、实施国土空间用途管制、核发乡村建设项目规划许可、保障乡村振兴项目用地。完善村屯基础设施建设，提升村屯基础设施环境和生活条件，改善生活生产条件，开展各项建设活动提供规划依据。","政务购买第三方服务，无联农带农富农机制"]
[220,"同乐乡","高岜村","柳州市三江侗族自治县同乐乡高岜村正平小学滑坡地质灾害治理工程","乡村建设行动-自然灾害防治综合体系","新建","建设内容：削坡工程+锚杆（索）格构+重力式挡土墙等进行综合治理","2025年1月-2025年12月",111.47,96,null,75,null,null,21,null,null,1,null,53,{"$nulls":5},"自然资源和规划局","自然资源和规划局","通过建设项目，解决当地学校师生53人生命财产安全，消除地质灾害安全隐患，保障群众生活安全","保障人民群众生命财产安全，方便群众出行生产生活。"]
[221,"同乐乡","孟寨村","柳州市三江侗族自治县同乐乡孟寨村孟寨屯滑坡地质灾害治理工程","乡村建设行动-自然灾害防治综合体系","新建","建设内容：重力式挡土墙+钢管桩+截排水工程等进行综合治理","2025年1月-2025年12月",106.92,94,null,73,null,null,21,null,null,1,null,42,{"$nulls":5},"自然资源和规划局","自然资源和规划局","通过建设项目，解决当地村民42人生命财产安全，消除地质灾害安全隐患，保障群众生活安全","保障人民群众生命财产安全，方便群众出行生产生活。"]
[222,"梅林乡","石碑村","柳州市三江侗族自治县梅林乡石碑村石碑屯滑坡地质灾害治理工程","乡村建设行动-自然灾害防治综合体系","新建","建设内容：重力式挡土墙+锚杆（索）格构+截排水工程等进行综合治理","2025年1月-2025年12月",87.5,67,null,52,null,null,15,null,null,1,null,63,{"$nulls":5},"自然资源和规划局","自然资源和规划局","通过建设项目，解决当地村民63人生命财产安全，消除地质灾害安全隐患，保障群众生活安全","保障人民群众生命财产安全，方便群众出行生产生活。"]
[223,"丹洲镇","东风村","柳州市三江侗族自治县丹洲镇东风村东风屯和红村屯滑坡地质灾害治理工程","乡村建设行动-自然灾害防治综合体系","新建","建设内容：清坡工程+锚杆（索）格构+重力式挡土墙+排水工程等进行综合治理","2025年1月-2025年12月",133.87,121,null,121,{"$nulls":5},1,null,25,{"$nulls":5},"自然资源和规划局","自然资源和规划局","通过建设项目，解决当地村民25人生命财产安全，消除地质灾害安全隐患，保障群众生活安全","保障人民群众生命财产安全，方便群众出行生产生活。"]
[224,"八江镇","高迈村","三江侗族自治县八江镇高迈村高迈屯滑坡地质灾害地质工程","乡村建设行动-自然灾害防治综合体系","新建","建设内容：重力式挡土墙+锚杆（索）格构+截排水工程等进行综合治理","2025年1月-2025年12月",162.09,134,null,105,null,null,29,null,null,1,null,80,{"$nulls":5},"自然资源和规划局","自然资源和规划局","通过建设项目，解决当地村民80人生命财产安全，消除地质灾害安全隐患，保障群众生活安全","保障人民群众生命财产安全，方便群众出行生产生活。"]
[225,"良口乡","归斗村","柳州市三江侗族自治县良口乡归斗村归斗屯滑坡地质灾害治理工程","乡村建设行动-自然灾害防治综合体系","新建","建设内容：清坡工程+锚杆（索）格构+重力式挡土墙+排水工程等进行综合治理","2025年1月-2025年12月",67.39,58,null,58,{"$nulls":5},1,null,48,{"$nulls":5},"自然资源和规划局","自然资源和规划局","通过建设项目，解决当地村民48人生命财产安全，消除地质灾害安全隐患，保障群众生活安全","保障人民群众生命财产安全，方便群众出行生产生活。"]
[226,"程村乡","泗里村","柳州市三江侗族自治县程村乡泗里村严溪屯滑坡地质灾害治理工程","乡村建设行动-自然灾害防治综合体系","新建","建设内容：锚杆（索）格构+重力式挡土墙+排水工程等进行综合治理","2025年1月-2025年12月",56.12,45,null,30,null,null,15,null,null,1,null,10,{"$nulls":5},"自然资源和规划局","自然资源和规划局","通过建设项目，解决当地村民10人生命财产安全，消除地质灾害安全隐患，保障群众生活安全","保障人民群众生命财产安全，方便群众出行生产生活。"]
[227,"和平乡","板六村","柳州市三江侗族自治县和平乡板六村古良屯崩塌地质灾害治理工程","乡村建设行动-自然灾害防治综合体系","新建","建设内容：清坡工程+锚杆（索）格构+重力式挡土墙+排水工程等进行综合治理","2025年1月-2025年12月",78.76,67,null,67,{"$nulls":5},1,null,12,{"$nulls":5},"自然资源和规划局","自然资源和规划局","通过建设项目，解决当地村民12人生命财产安全，消除地质灾害安全隐患，保障群众生活安全","保障人民群众生命财产安全，方便群众出行生产生活。"]
[228,"良口乡","白毛村","柳州市三江侗族自治县良口乡白毛村大团屯滑坡塌地质灾害治理工程","乡村建设行动-自然灾害防治综合体系","新建","建设内容：清坡工程+锚杆（索）格构+重力式挡土墙+排水工程等进行综合治理","2025年1月-2025年12月",71.18,58,null,58,{"$nulls":5},1,null,17,{"$nulls":5},"自然资源和规划局","自然资源和规划局","通过建设项目，解决当地村民17人生命财产安全，消除地质灾害安全隐患，保障群众生活安全","保障人民群众生命财产安全，方便群众出行生产生活。"]
[229,"高基乡","江口村","柳州市三江侗族自治县高基乡江口村江口屯和坵里屯崩塌、滑坡地质灾害治理工程","乡村建设行动-自然灾害防治综合体系","新建","建设内容：清坡工程+重力式挡土墙+排水工程等进行综合治理","2025年1月-2025年12月",64.1,60,null,60,{"$nulls":5},1,null,8,{"$nulls":5},"自然资源和规划局","自然资源和规划局","通过建设项目，解决当地村民12人生命财产安全，消除地质灾害安全隐患，保障群众生活安全","保障人民群众生命财产安全，方便群众出行生产生活。"]
[230,"洋溪乡","高露村","柳州市三江侗族自治县洋溪乡高露村平铺屯崩塌地质灾害治理工程","乡村建设行动-自然灾害防治综合体系","新建","重力式挡土墙+排水工程","2025年1月-2025年12月",70.61,53.5,null,41,null,null,12.5,null,null,1,null,30,{"$nulls":5},"自然资源和规划局","自然资源和规划局","通过建设项目，解决当地村民30人生命财产安全，消除地质灾害安全隐患，保障群众生活安全","保障人民群众生命财产安全，方便群众出行生产生活。"]
[231,"老堡乡","老堡村","柳州市三江侗族自治县老堡乡老堡村老堡屯滑坡地质灾害治理工程","乡村建设行动-自然灾害防治综合体系","新建","建设内容：锚杆（索）格构+重力式挡土墙+排水工程等进行综合治理","2025年1月-2025年12月",62.88,53.5,null,41,null,null,12.5,null,null,1,null,35,{"$nulls":5},"自然资源和规划局","自然资源和规划局","通过建设项目，解决当地村民35人生命财产安全，消除地质灾害安全隐患，保障群众生活安全","保障人民群众生命财产安全，方便群众出行生产生活。"]
[232,"良口乡","布糯村","柳州市三江侗族自治县良口乡布糯村布糯屯滑坡地质灾害治理工程","乡村建设行动-自然灾害防治综合体系","新建","建设内容：清坡工程+锚杆（索）格构+重力式挡土墙+排水工程等进行综合治理","2025年1月-2025年12月",46.11,42.5,null,32,null,null,10.5,null,null,1,null,8,{"$nulls":5},"自然资源和规划局","自然资源和规划局","通过建设项目，解决当地村民8人生命财产安全，消除地质灾害安全隐患，保障群众生活安全","保障人民群众生命财产安全，方便群众出行生产生活。"]
[233,"洋溪乡","信洞村","柳州市三江侗族自治县洋溪乡信洞村盘岩屯滑坡地质灾害治理工程","乡村建设行动-自然灾害防治综合体系","新建","钢管桩+截排水","2025年1月-2025年12月",62.74,53.5,null,41,null,null,12.5,null,null,1,null,20,{"$nulls":5},"自然资源和规划局","自然资源和规划局","通过建设项目，解决当地村民35人生命财产安全，消除地质灾害安全隐患，保障群众生活安全","保障人民群众生命财产安全，方便群众出行生产生活。"]
["县生态环境局",null,"小计",null,"小计",{"$nulls":3},{"$f":"SUM(I255:I256)","v":538.73},{"$f":"SUM(J255:J256)","v":500},215,130,0,0,155,0,null,{"$f":"SUM(R255:R256)","v":0},2,471,1785,0,0,0,0]
[234,"八江镇","岩脚村","八江镇岩脚村生活污水治理项目","乡村建设行动","新建","在适应采取集中处置的自然屯采用人工湿地处理方式进行处置；其他自然屯采用生活污水资源化利用方式进行处置","2025年1月--2025年12月",215.42,{"$f":"K255+L255+P255+M255+N255+O255","v":200},85,65,null,null,50,{"$nulls":3},1,250,900,{"$nulls":4},"生态环境局","生态环境局","1.完成一座污水处理设施建设 2.控制在成本内，3.2025年完成建设并投入使用                             ","通过完善村屯污水布局提，改善环境质量，提升群众获得感"]
[235,"独峒镇","里盘村","独峒镇里盘村里盘屯生活污水治理项目","乡村建设行动","新建","建设污水处理终端及配套管网建设","2025年1月--2025年12月",323.31,{"$f":"K256+L256+P256+M256+N256+O256","v":300},130,65,null,null,105,{"$nulls":3},1,221,885,{"$nulls":4},"生态环境局","生态环境局","1.完成一座污水处理设施建设 2.控制在成本内，3.2025年完成建设并投入使用                             ","通过完善村屯污水布局提，改善环境质量，提升群众获得感"]
["县住建局",null,"小计",null,"小计",{"$nulls":3},{"$f":"SUM(I258:I284)","v":1519.328331},{"$f":"SUM(J258:J284)","v":1407},700,298,0,0,409,0,null,{"$f":"SUM(R258:R284)","v":14},12,13999,55805,3478,14311,619,2545]
[236,"独峒镇","独峒村","独峒镇独峒村屯内排水及生活垃圾转运设施项目","乡村建设行动","新建","独峒新村\n1.排水沟工程:400x400排水暗沟230m、650x500排水沟330m 2.排水涵管工程:100m排水涵管600 3.垃圾转运点:2个\n独峒屯\n1.排水沟工程:400x400排水暗沟125m、500x400排水沟600m 2.排水涵管工程400m排水涵管600、26座检查井 3.垃圾转运点：3个\n六归屯\n1.排水沟工程:500x400排水沟1000m\n高弄屯\n1.排水沟工程:500x400排水沟1000m","2025年3月--2025年11月",107.468524,{"$f":"K258+L258+P258+M258+N258+O258","v":100},{"v":45,"d":"45.00"},{"v":35,"d":"35.00"},null,null,{"v":20,"d":"20.00"},{"$nulls":3},1,957,3565,149,276,0,0,"三江县住建局","三江县住建局","完成独峒村屯三面光排污沟建设和新建垃圾转运点4座及配套设施建设","改善村民居住环境，提高居民生活质量，提升居民满意度。"]
[237,"独峒镇","干冲村","独峒镇干冲村牙戈屯下寨片区生活垃圾转运设施项目","乡村建设行动","新建","牙戈屯下寨\n1.垃圾转运点：6个","2025年3月--2025年11月",10.194312,10,{"v":5,"d":"5.00"},{"$nulls":3},{"v":5,"d":"5.00"},{"$nulls":3},1,285,1225,40,210,0,0,"三江县住建局","三江县住建局","完成新建垃圾转运点6个及配套设施建设。","改善村民居住环境，提高居民生活质量，提升居民满意度。"]
[238,"高基乡","高基村","高基乡高基村屯内排水及生活垃圾转运设施项目","乡村建设行动","新建","高基屯\n1.排水沟工程:560x500排水暗沟41m 2.排水涵管工程:4m排水涵管600 垃圾转运点：2个\n上板瓦屯\n1.道路硬化工程:20cm砼面层、面积700 2.排水沟工程:600x400排水沟200m、800x500排水暗沟120m、500x600排水暗沟150m、600x600排水沟80m 3.排水涵管工程\n10m排污管600 4.垃圾转运点：1个\n平寨屯\n1.道路硬化工程:20cm砼面层、面积455 2.排水沟工程:650x700排水沟130m、检查井1座\n红滩屯\n1.道路硬化工程:20cm砼面层、面积455.00 2.排水沟工程:400x400排水暗沟180m 3.挡土墙工程:混凝土挡土墙长12m，高3.2m。排水涵管6mx5\n宇论口屯\n1.道路硬化工程:15cm混石垫层、15cm砼面层、面积400","2025年3月--2025年11月",56.541346,53,{"v":30,"d":"30.00"},{"v":23,"d":"23.00"},{"$nulls":5},1,0,320,1138,49,167,0,0,"三江县住建局","三江县住建局","完成高基村排水沟、生活垃圾转运、巷道硬化项目建设","改善村民居住环境，提高居民生活质量，提升居民满意度。"]
[239,"高基乡","篦梳村","高基乡篦梳村基础设施及生活垃圾转运设施项目","乡村建设行动","新建","八界屯\n1.道路硬化工程:15cm砼面层、面积84 2.排水沟工程:500x400排水沟200m、400x300排水沟50m 3.排水涵管工程:30m排水涵管600、4m排污管300 4.挡土墙工程:混凝土挡土墙长20m，高2.1m。 5.垃圾转运点：1个\n甘岭屯\n1.排水沟工程:水沟底修复30m、500x500排水沟150m、500x500排水沟250m 2.道路硬化工程：20cm砼面层、面积210 3.垃圾转运点：1个 3.太阳能路灯15盏\n篦梳屯\n1.道路硬化工程:20cm砼面层、面积565 2.排水涵管工程:7m排水涵管300 3.垃圾转运点：1个 3.太阳能路灯30盏\n上河屯\n1.道路硬化工程:15cm砼面层、面积56、15cm混石垫层、15cm砼面层、面积392 2.排水沟工程：400x300排水沟150m、650x500排水沟160m 3.排水涵管工程：10m排污管600、8m排污管300 4.垃圾转运点：1个 5.太阳能路灯5盏 6.挡土墙工程：混凝土挡土墙墙长12m,高2m。","2025年3月--2025年11月",79.741374,74,{"v":30,"d":"30.00"},{"v":14,"d":"14.00"},null,null,{"v":30,"d":"30.00"},null,null,1,0,208,796,42,217,23,81,"三江县住建局","三江县住建局","完成篦梳村垃圾转运点、道路硬化、排水沟及道路亮化工程项目","改善村民居住环境，提高居民生活质量，提升居民满意度。"]
[240,"老堡乡","车田村","老堡乡车田村道路硬化及生活垃圾转运设施项目","乡村建设行动","新建","口寨\n1.道路硬化：20cm厚碎石垫层，20cm砼面层，35mx3m，面积105㎡ 2.道路硬化：20cm厚碎石垫层，20cm砼面层，150mx3.5m，面积525㎡ 3.垃圾转运点：2个。\n脑寨\n1.排水管：DN800混凝土涵管8m长，面铺30cm厚碎石，20cm厚C25混凝土，5.5m*2m，面积11㎡。 2.道路硬化一：20cm砼面层，80mx3m，面积240㎡，破软岩2mx6mx80m，960m³ 3.道路硬化二：20cm砼面层，100mx3.5m，面积350㎡. 4.道路硬化三：20cm砼面层，106mx3.5m，面积371㎡. 5.垃圾转运点：2个.","2025年3月--2025年11月",34.58576,32,{"v":22,"d":"22.00"},{"$nulls":3},{"v":10,"d":"10.00"},null,null,1,null,123,449,13,43,0,0,"三江县住建局","三江县住建局","完成车田村道路硬化，垃圾垃圾转运点建设。","改善村民居住环境，提高居民生活质量，提升居民满意度。"]
[241,"梅林乡","车寨村","梅林乡车寨村基础设施及生活垃圾转运设施项目","乡村建设行动","新建","平寨\n1.道路硬化：15cm厚砼面层，50m*1.5m，面积75㎡ 2.排水沟：400x400排水暗沟30m 3.垃圾转运点：垃圾转运点：2个\n相思陡寨\n1.台阶巷道：砼台阶巷道100m*1.2m 2.垃圾转运点：2个\n寨明屯\n1.道路硬化一：10cm厚碎石垫层，20cm砼面层，150m*3.5m，面积525㎡ 2.道路硬化一：10cm厚碎石垫层，20cm砼面层，500m*3.5m，面积1750㎡，砼挡土墙长10m高3.5m。 3.阶梯：砼台阶110mx1.2m，踏步0.3mx0.15m 4.人行步道：15cm厚砼面层90mx1.2m 5.排水明沟：400x300砼排水明沟50m 6.垃圾转运点：2个 7.路灯工程：路灯工程：10盏","2025年3月--2025年11月",62.249441,57,{"v":23,"d":"23.00"},{"v":4,"d":"4.00"},null,null,{"v":30,"d":"30.00"},null,null,1,null,545,2130,190,805,0,0,"三江县住建局","三江县住建局","完成车寨村道路硬化，垃圾垃圾转运点，路灯建设。","改善村民居住环境，提高居民生活质量，提升居民满意度。"]
[242,"和平乡","清江村","和平乡清江村基础设施建设及生活垃圾转运设施项目","乡村建设行动","新建","上、下社洞屯\n1.盖板涵：砼盖板涵跨径4m，2座，跨径6m，1座 2.垃圾转运点：2个。\n青马屯\n1.排水沟盖板：钢筋砼盖板，100m长x0.7m宽x0.1m厚 2.排污管：混凝土涵管DN300长185m，检查井8个。 3.村内步道硬化：15cm砼面层，50m长m*1.5m宽，面积75㎡ 4.垃圾转运点：3个。 5.太阳能路灯：5盏。","2025年3月--2025年11月",29.559963,27,{"v":22,"d":"22.00"},{"$nulls":3},{"v":5,"d":"5.00"},null,null,1,null,202,688,29,92,0,0,"三江县住建局","三江县住建局","完成巷道硬化及排水沟，太阳能路灯安装，提升群众满意度","改善村民居住环境，提高居民生活质量，提升居民满意度。"]
[243,"良口乡","良口村","良口乡良口村基础设施建设及生活垃圾转运设施项目","乡村建设行动","新建","渔民新村\n1.排水暗沟：400x400排水暗沟330m，DN300混凝土涵管90m。\n良口下寨\n1.道路硬化--粮所至幼儿园道路：20cm砼面层，125m长*5m宽，面积625㎡. 2.道路硬化--戏台至河边码头：20cm砼面层，65m长*3m宽，面积195㎡。 3.道路硬化--戏台至旧村部：20cm砼面层，80m长*2.5m宽，90m长*4m宽，面积560㎡，混凝土挡土墙20m长，1m高， 4.路灯工程：路灯十盏 5.垃圾转运点：3个\n平宫寨\n1.道路硬化：15cm砼面层，250m长*2m宽，面积500㎡。 2.垃圾转运点：1个\n塘二屯\n1.砼排水暗沟（800*800）200m\n2.垃圾转运点：1个","2025年3月--2025年11月",53.847907,50,{"v":15,"d":"15.00"},{"$nulls":3},{"v":35,"d":"35.00"},null,null,1,null,1277,3863,285,1087,204,792,"三江县住建局","三江县住建局","完成良口村巷道硬化及排水沟，太阳能路灯安装，垃圾转运设施建设，提升群众满意度","改善村民居住环境，提高居民生活质量，提升居民满意度。"]
[244,"八江镇","归内村","八江镇归内村基础设施建设及人居环境整治项目","乡村建设行动","新建","1、C25毛砼挡土墙 L=12m；\n2、20cm厚道路硬化面积 S=700m2；\n3、太阳能路灯30盏。","2025年3月--2025年11月",29.980072,28,{"v":15,"d":"15.00"},{"$nulls":3},{"v":13,"d":"13.00"},{"$nulls":3},1,298,1389,172,793,null,null,"三江县住建局","三江县住建局","完成归内村巷道硬化及排水沟，太阳能路灯安装，垃圾转运设施建设，提升群众满意度","改善村民居住环境，提高居民生活质量，提升居民满意度。"]
[245,"程村乡","头坪村","程村乡头坪村基础设施建设及生活垃圾转运设施项目","乡村建设行动","新建","1、200厚C25砼道路硬化：4.5m宽，102m长，面积 S=459m2；                               2、200厚C25砼场地硬化：面积 S=284.5m2；                             3、垃圾转运站8个。","2025年3月--2025年11月",27.682081,25,{"v":25,"d":"25.00"},{"$nulls":6},1,0,650,2400,37,139,5,16,"三江县住建局","三江县住建局","完成头坪村巷道硬化，垃圾转运设施建设，提升群众满意度","改善村民居住环境，提高居民生活质量，提升居民满意度。"]
[246,"程村乡","大树屯","程村乡大树村基础设施建设及生活垃圾转运设施项目","乡村建设行动","新建","1、100厚C25砼面积 S=173m2；\n2、150厚C25砼面积 S=35m2；\n3、200x200排水明沟 L=30m；\n4、垃圾转运点 4处；\n5、200厚C25砼道路硬化面积 S=861.1m2；\n6、0.8m宽台阶 L=30m。","2025年3月--2025年11月",24.328649,21,{"v":21,"d":"21.00"},{"$nulls":6},1,null,224,759,41,147,19,72,"三江县住建局","三江县住建局","完成大树村巷道硬化排水沟，垃圾转运设施建设，提升群众满意度","改善村民居住环境，提高居民生活质量，提升居民满意度。"]
[247,"富禄乡","高安村","富禄乡高安村基础设施及生活垃圾转运设施项目","乡村建设行动","新建","1、垃圾转运站3个；\n2、太阳能路灯50盏；\n3、排水明沟 L=345m；                                                            4、排水暗沟 L=30m；                                                              5、1.0m宽台阶 L=50m。","2025年3月--2025年11月",28.152804,26,{"v":22,"d":"22.00"},{"$nulls":3},{"v":4,"d":"4.00"},null,null,1,0,1045,3876,144,595,0,0,"三江县住建局","三江县住建局","完成高安村巷道硬化排水沟，垃圾转运设施，太阳能路灯建设提升群众满意度","改善村民居住环境，提高居民生活质量，提升居民满意度。"]
[248,"富禄乡","岑洞村","富禄乡岑洞村基础设施及生活垃圾转运设施项目","乡村建设行动","新建","1、垃圾转运点4个；\n2、太阳能路灯50盏；                                                             3、排水沟明沟 L=1740m。","2025年3月--2025年11月",98.98488,95,{"v":25,"d":"25.00"},{"$nulls":3},{"v":70,"d":"70.00"},null,null,0,1,317,2119,124,502,0,0,"三江县住建局","三江县住建局","完成岑洞村排水沟，垃圾转运设施，太阳能路灯建设提升群众满意度","改善村民居住环境，提高居民生活质量，提升居民满意度。"]
[249,"同乐乡","良冲村","同乐乡良冲村排水沟硬化及生活垃圾转运设施项目","乡村建设行动","新建","1、排水明沟 L=1517m；                                                              2、排水暗沟 L=134m；\n3、生活垃圾转运点2个。","2025年3月--2025年11月",64.364197,60,{"v":30,"d":"30.00"},{"v":13,"d":"13.00"},null,null,{"v":17,"d":"17.00"},{"$nulls":3},1,735,3054,384,1746,50,178,"三江县住建局","三江县住建局","完成良冲村巷道硬化排水沟，垃圾转运设施，太阳能路灯建设提升群众满意度","改善村民居住环境，提高居民生活质量，提升居民满意度。"]
[250,"同乐乡","高洋村","同乐乡高洋村新建排水沟及生活垃圾转运设施项目","乡村建设行动","新建","1、排水沟明沟 L=1288m；                                                          2、排水沟暗沟 L=318m；\n3、垃圾转运点 2个。","2025年3月--2025年11月",55.048789,51,{"v":30,"d":"30.00"},{"v":13,"d":"13.00"},null,null,{"v":8,"d":"8.00"},{"$nulls":3},1,561,2562,166,736,2,7,"三江县住建局","三江县住建局","完成高洋村巷道硬化排水沟，垃圾转运设施，太阳能路灯建设提升群众满意度","改善村民居住环境，提高居民生活质量，提升居民满意度。"]
[251,"丹洲镇","西坡村","丹洲镇西坡村基础设施建设及人居环境整治项目","乡村建设行动","新建","1、15cm厚道路硬化面积 S=1145m2；                                         2、20cm厚道路硬化面积 S=308.25m2；\n3、排水沟明沟 L=879m；                                                          4、排水沟暗沟 L=37m；\n5、太阳能路灯65盏。","2025年3月--2025年11月",73.191513,69,{"v":30,"d":"30.00"},{"v":24,"d":"24.00"},null,null,{"v":15,"d":"15.00"},null,null,1,null,507,1903,43,181,0,0,"三江县住建局","三江县住建局","完成西坡村巷道硬化排水沟，垃圾转运设施，太阳能路灯建设提升群众满意度","改善村民居住环境，提高居民生活质量，提升居民满意度。"]
[252,"丹洲镇","六孟村","丹洲镇六孟村基础设施建设及生活垃圾转运设施项目","乡村建设行动","新建","1、排水沟明沟 L=3217m；\n2、排水沟暗沟 L=20m；\n3、20cm厚C25砼道路硬化面积 S=4005m2；\n4、太阳能路灯 34盏。                                                            5、DN300预制混凝土管 L=12m；\n6、DN300双壁波纹管 L=10m；","2025年3月--2025年11月",161.294636,149,{"v":50,"d":"50.00"},{"v":69,"d":"69.00"},null,null,{"v":30,"d":"30.00"},{"$nulls":4},512,1746,67,256,0,0,"三江县住建局","三江县住建局","完成西坡村巷道硬化排水沟，垃圾转运设施，太阳能路灯建设提升群众满意度","改善村民居住环境，提高居民生活质量，提升居民满意度。"]
[253,"林溪镇","茶溪村","林溪镇茶溪村基础设施建设及生活垃圾转运设施项目","乡村建设行动","新建","1、垃圾转运站 2座；                                                              2、排水沟明沟 L=412m；\n3、排水沟暗沟 L=295m；\n4、15cm厚C25砼道路硬化 S=88.5m2；\n5、太阳能路灯 50盏。","2025年3月--2025年11月",60.17684,55,{"v":48.953248,"d":"48.95"},{"v":6.046752,"d":"6.05"},{"$nulls":5},1,0,402,1625,98,398,20,89,"三江县住建局","三江县住建局","完成茶溪村巷道硬化排水沟，垃圾转运设施，太阳能路灯建设提升群众满意度","改善村民居住环境，提高居民生活质量，提升居民满意度。"]
[254,"斗江镇","扶平村","斗江镇扶平村等坪屯巷道硬化工程及生活垃圾转运设施项目","乡村建设行动","新建","1、20cm砼道路硬化面积 S=2350m2；\n2、垃圾转运站1座；\n3、排水明沟 L=225m；                                                                4、排水暗沟 L=18m；                                                            5、DN600混凝土管 L=40m。","2025年3月--2025年11月",47.7897,44,{"v":20,"d":"20.00"},{"v":9,"d":"9.00"},null,null,{"v":15,"d":"15.00"},{"$nulls":3},1,101,372,28,118,null,null,"三江县住建局","三江县住建局","完成扶平村巷道硬化排水沟，垃圾转运设施建设提升群众满意度","改善村民居住环境，提高居民生活质量，提升居民满意度。"]
[255,"洋溪乡","玉民村","洋溪乡玉民村基础设施建设及生活垃圾转运设施项目","乡村建设行动","新建","1、20cm砼道路硬化面积 S=560m2；                                                     2、15cm砼道路硬化面积 S=230m2；\n3、垃圾转运站1座；\n4、排水明沟 L=860m；\n5、太阳能路灯75盏。","2025年3月--2025年11月",60.11151,56,{"v":25,"d":"25.00"},{"v":19,"d":"19.00"},null,null,{"v":12,"d":"12.00"},{"$nulls":3},1,770,4241,281,1663,61,310,"三江县住建局","三江县住建局","完成玉民村巷道硬化排水沟，垃圾转运设施，太阳能路灯建设提升群众满意度","改善村民居住环境，提高居民生活质量，提升居民满意度。"]
[256,"古宜镇","古皂村","古宜镇古皂村基础设施建设及人居环境整治项目","乡村建设行动","新建","1、20cm砼道路硬化面积 S=1885m2；\n2、排水明沟 L=280m；                                                          3、排水暗沟 L=38m；                                                         4、排水沟底硬化 L=120m；                                                       5、DN300混凝土管 L=43m；                                                           6、太阳能路灯 36盏。","2025年3月--2025年11月",55.872166,52,{"v":20,"d":"20.00"},{"v":9,"d":"9.00"},null,null,{"v":23,"d":"23.00"},null,null,1,null,332,1390,44,176,0,0,"三江县住建局","三江县住建局","完成古皂村巷道硬化排水沟，垃圾转运设施，太阳能路灯建设提升群众满意度","改善村民居住环境，提高居民生活质量，提升居民满意度。"]
[257,"梅林乡","石碑村","梅林乡石碑村上寨屯下屯内人居环境整治项目","乡村建设行动","新建","1.挡土墙：混凝土挡土墙85m长，3.5m高 2.排水明沟：1000x800砼排水明沟325m。3.道路硬化：破除10cm硬化85m*1.2m，新建10cm碎石垫层，20cm砼面层，85m*6m，面积510㎡。","2025年3月--2025年11月",35.158799,32,{"v":20,"d":"20.00"},{"v":8,"d":"8.00"},null,null,{"v":4,"d":"4.00"},null,null,1,null,490,1850,79,323,9,36,"三江县住建局","三江县住建局","完成石碑村排水沟建设，提升群众满意度","改善村民居住环境，提高居民生活质量，提升居民满意度。"]
[258,"良口乡","良帽村","良口乡良帽村基础设施及生活垃圾转运设施","乡村建设行动","新建","良帽屯\n1.排污管：DN600混凝土涵管450m，破除原有路面、恢复路面450m*1.08m，检查井16个，雨水口16个。 2.排水暗沟：400x400排水暗沟140m. 3.涵管过路：过路涵管2处共10m，破除原有路面、恢复路面10m*1.08m.4.垃圾转运点：2个。","2025年3月--2025年11月",41.995281,37,{"v":25,"d":"25.00"},{"v":12,"d":"12.00"},{"$nulls":5},0,1,352,1399,188,797,0,0,"三江县住建局","三江县住建局","完成良帽村巷道硬化排水沟，垃圾转运设施，太阳能路灯建设提升群众满意度","改善村民居住环境，提高居民生活质量，提升居民满意度。"]
[259,"八江镇","布央村","八江镇布央村基础设施及生活垃圾转运设施","乡村建设行动","新建","1、200厚C25砼道路 4.5m宽，长度 320m，硬化面积 S=1440m2；\n2、1.2m宽台阶 L=30m；\n3、排水明沟 L=295m；\n4、排水暗沟 L=100m；\n5、波纹管 L=45m；\n6、检查井 5个；\n7、沉砂井 2个；                                                          8、垃圾转运点 1处。","2025年3月--2025年11月",43.610259,40,{"v":25,"d":"25.00"},{"v":12,"d":"12.00"},null,null,{"v":3,"d":"3.00"},null,null,1,0,621,2631,144,858,33,132,"三江县住建局","三江县住建局","完成布央村巷道硬化排水沟，垃圾转运设施建设提升群众满意度","改善村民居住环境，提高居民生活质量，提升居民满意度。"]
[260,"梅林乡","新民村","梅林乡新民村基础设施及生活垃圾转运设施","乡村建设行动","新建","新民\n新民上寨 1.巷道硬化:15cm砼面层，1m宽*80m长，面积80㎡。\n新民中寨 1.排污管:DN600混凝土涵管450m，破除原有路面、恢复路面450m*1.08m，检查井16个，雨水口32个。2.修复道路:15cm砼面层，2m宽*150m长，面积300㎡。\n新民下寨 1.排水暗沟400x400排水暗沟130m。\n朱目屯 \n1.排水暗沟:1000*800排水暗沟77m。2.400*400排水明沟60米。3.道路硬化：20cm砼面层115m*3.5m，面积402.5㎡。\n新民村委\n1.挡土墙混凝土挡土墙8m长，3m高 2.排水沟:400x400排水明沟13m. 3.道路硬化一:20cm砼面层，3.5m宽*144m长，面积504㎡。\n省口内\n道路硬化:15cm砼面层，0.6m宽*240m长，面积144㎡。","2025年3月--2025年11月",67.719427,62,{"v":25,"d":"25.00"},{"v":12,"d":"12.00"},null,null,{"v":25,"d":"25.00"},null,null,0,1,1129,4743,274,1184,27,126,"三江县住建局","三江县住建局","完成新民村巷道硬化排水沟，垃圾转运设施建设提升群众满意度","改善村民居住环境，提高居民生活质量，提升居民满意度。"]
[261,"八江镇","福田村","八江镇福田村基础设施及生活垃圾转运设施","乡村建设行动","新建","1、排水沟 L=1231m；                                                              2、0.8m宽台阶硬化 L=275m；                                                               3、1.0m宽台阶硬化 L=905m；                                                    4、垃圾转运点7个；                                                                    5、100厚C25砼巷道硬化面积S=897m2；                                                     6、太阳能路灯 30盏。","2025年3月--2025年11月",66.266848,62,{"v":25,"d":"25.00"},{"v":12,"d":"12.00"},null,null,{"v":25,"d":"25.00"},null,null,0,1,488,1799,233,452,115,468,"三江县住建局","三江县住建局","完成福田村巷道硬化排水沟，垃圾转运设施建设提升群众满意度","改善村民居住环境，提高居民生活质量，提升居民满意度。"]
[262,"良口乡","产口村","良口乡产口村新寨屯内人居环境整治项目","乡村建设行动","新建","1、200厚C25砼面积 S=104m2；\n2、新建台阶 b=1.5m，L=14m；\n3、沥青总面积 S=785m2；\n4、车道边缘线面积 S=44.6m2；                                                     5、压膜路总面积 S=842m2；\n6、水沟长度 L=405.5m。","2025年3月--2025年12月",43.411253,40,{"v":26.046752,"d":"26.0467520"},{"v":3.953248,"d":"3.9532480"},null,null,{"v":10,"d":"10.00"},{"$nulls":3},1,548,2093,134,350,51,238,"三江县住建局","三江县住建局","完成产口村巷道硬化排水沟，垃圾转运设施建设提升群众满意度","改善村民居住环境，提高居民生活质量，提升居民满意度。"]
["县科工贸局",null,"小计",null,"小计",{"$nulls":3},{"$f":"SUM(I286:I289)","v":680.61533},{"$f":"SUM(J286:J289)","v":678},0,135,0,543,0,0,null,{"$f":"SUM(R286:R289)","v":288},392,435904,1618660,115768,494008,24376,105680]
[263,"程村乡","泗里村","三江侗族自治县程村产业园区排水工程","产业发展","新建","新建排水管道108米，挡土防护设施85米，恢复原有河堤4米、新建栏杆4米；主要建设内容包括排水管网工程、挡土防护工程、拆除工程及土石方工程、新建栏杆等。","2025年1月-2025年12月",78.460873,{"$f":"K286+L286+P286+M286+N286+O286","v":78},null,58,null,20,{"$nulls":3},72,98,108976,404665,28942,123502,6094,26420,"科工贸局","科工贸局","完成新建排水管道108米，挡土防护设施85米，恢复原有河堤4米、新建栏杆4米。园区全面投入使用后预计可新增工业产值约20亿元，推动全县工业发展，通过收益分红、提供就业岗位等方式，增加周边村屯村集体经济及农户收入。","施工期间可为脱贫人口提供就业务工岗位。同时为园区全面投入使用创造条件，施工期间可为脱贫人口提供就业务工岗位，园区全面投入使用预计提供就业岗位3000个以上，同时通过租赁标准厂房进行收益分红，拉动周边村屯集体经济收入约200万元。"]
[264,"程村乡","泗里村","三江侗族自治县程村工业园道路建设项目","产业发展","新建","新建混凝土路面5184平方米，新建路肩墙219米；主要建设内容包括道路工程、挡土墙工程及其他零星工程。","2025年1月-2025年12月",127.154457,125,null,77,null,48,{"$nulls":3},72,98,108976,404665,28942,123502,6094,26420,"科工贸局","科工贸局","完成新建混凝土路面5184平方米，新建路肩墙219米。园区全面投入使用后预计可新增工业产值约20亿元，推动全县工业发展，通过收益分红、提供就业岗位等方式，增加周边村屯村集体经济及农户收入。","施工期间可为脱贫人口提供就业务工岗位。同时为园区全面投入使用创造条件，施工期间可为脱贫人口提供就业务工岗位，园区全面投入使用预计提供就业岗位3000个以上，同时通过租赁标准厂房进行收益分红，拉动周边村屯集体经济收入约200万元。"]
[265,"程村乡","泗里村","三江侗族自治县生态产业园区食品冻库","产业发展","新建","于生态产业园内建设占地约200平方米食品冻库1处及配套设施，冻库全部为-18摄氏度可调。","2025年1月-2025年12月",105,105,{"$nulls":3},105,{"$nulls":3},72,98,108976,404665,28942,123502,6094,26420,"科工贸局","科工贸局","完成生态产业园内食品冻库建设。园区全面投入使用后预计可新增工业产值约20亿元，推动全县工业发展，通过收益分红、提供就业岗位等方式，增加周边村屯村集体经济及农户收入。","施工期间可为脱贫人口提供就业务工岗位。同时为园区全面投入使用创造条件，施工期间可为脱贫人口提供就业务工岗位，园区全面投入使用预计提供就业岗位3000个以上，同时通过租赁标准厂房进行收益分红，拉动周边村屯集体经济收入约200万元。"]
[266,"程村乡","泗里村","三江侗族自治县程村工业园供水提升工程","产业发展","新建","新建给水主管管径 DN150～DN200,新建 DN200 给水管道792m，DN150给水管道\n5426m，DN100 给水管道 630m，各类管道总长合计6848m，沿途设置23座排气阀、25 座排泥阀、24座闸阀。","2025年1月-2025年12月",370,370,{"$nulls":3},370,{"$nulls":3},72,98,108976,404665,28942,123502,6094,26420,"科工贸局","科工贸局","完成新建 DN200 给水管道792m，DN150给水管道5426m，DN100 给水管道 630m，各类管道总长合计6848m，沿途设置23座排气阀、25 座排泥阀、24座闸阀。园区全面投入使用后预计可新增工业产值约20亿元，推动全县工业发展，通过收益分红、提供就业岗位等方式，增加周边村屯村集体经济及农户收入。","通过完成管道铺设，以供水水费收益进行分红，提升周边村集体经济收入。同时为园区全面投入使用创造条件，施工期间可为脱贫人口提供就业务工岗位，园区全面投入使用预计提供就业岗位3000个以上，同时通过租赁标准厂房进行收益分红，拉动周边村屯集体经济收入约200万元。"]
["县财政局",null,"小计",null,"小计",{"$nulls":3},{"$f":"SUM(I291:I296)","v":125},{"$f":"SUM(J291:J296)","v":125},0,0,0,0,0,125,null,{"$f":"SUM(R291:R296)","v":4},1,1105,4424,168,743,5,13]
[267,"古宜镇","平传村","古宜镇平传村上吾屯道路硬化项目","乡村建设行动","新建","路长2000米*宽1.5米*厚0.1米","2025年3月--2025年12月",18,18,{"$nulls":5},18,null,null,1,201,753,21,94,5,13,"古宜镇","马坪村","完成硬化路面长0.26公里，及配套设施建设。解决脱贫村屯级道路通车问题，改善脱贫村基础设施，方便201户753人出行水平。","解决脱贫村屯级道路通车问题，改善脱贫村基础设施，方便98户496人出行水平。","安排一事一议项目"]
[268,"斗江镇","牙林村","下都屯道路塌方挡土墙及农田水利建设","乡村建设行动","新建 ","新建挡土墙长30米*高3米*厚0.8米，防撞墩6个；新建农田水利850米（其中三面光60cm*60cm*60cm共210米；含40米长盖板、小型沉淀池一个；农田水利三面光30cm*30cm*30cm共600米)","2025年3月--2025年12月",20,20,{"$nulls":5},20,null,1,null,66,250,4,19,null,null,"丹洲镇","六孟村","完成新建挡土墙长30米*高3米*厚0.8米；新建农田水利850米（其中三面光60cm*60cm*60cm共210米加40米盖板、沉淀池一个，农田水利三面光30cm*30cm*30cm共600米)","解决非贫困村农田水利，农户出行安全，提升出行质量。","安排一事一议项目"]
[269,"斗江镇","牙林村","斗江镇牙林村中都屯农田水利项目工程","乡村建设行动","新建","新建1200米农田水利三面光30厘米*30厘米*30厘米","2025年3月--2025年12月",20,20,{"$nulls":5},20,null,1,null,68,228,7,29,null,null,"斗江镇","牙林村","完成1200米农田水利三面光30厘米*30厘米*30厘米","解决非贫困村农田水利，促进68户228人农业增效。","安排一事一议项目"]
[270,"林溪镇","牙己村","林溪镇牙己村牙己屯井水人行步道新开、硬化工程","乡村建设行动","新建","牙己屯井水亭(取水经道)新建步道2.5米宽硬化步道300米","2025年3月--2025年12月",17,17,{"$nulls":5},17,{"$nulls":3},396,1819,128,568,null,null,"林溪镇","牙己村","牙己屯井水亭(取水经道)新建步道2.5米宽硬化步道300米","解决贫困村群众出行安全及农业生产，改善贫困村基础设施，方便396户1819人出行。","安排一事一议项目"]
[271,"八江镇","三团村","八江镇三团村归座至便队水利项目","乡村建设行动","新建","硬化水利三面光长700米，40*40*40，拦水坝一座长5米，高1米，宽0.8米，","2025年3月--2025年12月",22,22,{"$nulls":5},22,null,1,null,78,232,8,33,null,null,"八江镇","三团村","新建硬化水利三面光长700米，40*40*40，拦水坝一座长5米，高1米，宽0.8米，","改善三团村产业基础设施条件，促进种植产业，带动旅游产业发展。","安排一事一议项目"]
[272,"程村乡","大树村","程村乡大树村公共照明设施工程","乡村建设行动","新建","建设内容：大树村整村主干道合理安装公共照明路灯。建设规模：公共照明设施自然村（屯）全覆盖（大约100盏）","2025年3月--2025年12月",28,28,{"$nulls":5},28,null,1,null,296,1142,{"$nulls":4},"程村乡","大树村","完成大树村整村内主干道合理安装公共照明路灯全覆盖。","改善大树村的夜间出行安全便于群众日常生活","安排一事一议项目"]
["县林业局",null,"小计",null,"小计",{"$nulls":3},{"$f":"SUM(I298:I349)","v":5950.5142},{"$f":"SUM(J298:J349)","v":5501},4710,791,0,0,0,0,null,{"$f":"SUM(R298:R349)","v":21},278,17419,66126,7582,17217,1269,1046]
[273,"全县","各乡镇","2025年林业科技培训项目","产业发展","新建","全县计划组织开展培训24期，按每期50人计，参训人数共1200人，林业科技培训内容包括油茶或“油茶+N”复合经营、八角、杉木等高效栽培技术。","2025年4月－－2025年12月",6,{"$f":"K298+L298+M298","v":6},0,6,{"$nulls":5},0,26,26,1200,26,1200,587,587,"三江侗族自治县林业局","三江侗族自治县林业局","培训林农受益农户1200人左右,其中脱贫户、监测户及护林员共1200人左右。","建根据我县《加快特色产业发展  推进三江油茶产业高质量发展工作总体实施方案(2022-2025年)》的通知（三办[2022]49号）文件精神，为加快推进了我县林业产业高质量发展，实现巩固脱贫攻坚成果与全面推进乡村振兴建设有效衔接,受益农户1200户1200人左右,其中脱贫户、监测户及护林员共1200人左右。"]
[274,"古宜镇","马坪村","古宜镇马坪村油茶基地建设项目（新建轨道运输车、晒坪、仓储项目)","产业发展","新建","1.晒坪1个，占地面积441㎡；\n2.仓储房1座，占地面积200㎡；\n3.轨道车6套，总长1295米。","2025年4月－－2025年12月",42.409112,39,39,0,{"$nulls":6},1,201,753,21,94,null,null,"三江侗族自治县林业局","三江侗族自治县林业局","完成新建轨道运输总长2000米5套机组、晒坪900平米、仓储1座200平米。","通过建设92.84亩优质高效油茶示范基地,解决油茶基地园内运输、茶果收储晾晒问题，通过发展油茶产业，提高林地产出，带动农户就近就业，提高农户收入，受益人口201户753人。"]
[275,"八江镇","八江村","八江镇八江村高统油茶基地建设项目（园内单轨运输系统和仓储项目）","产业发展","新建","1.晒坪2个，占地面积400㎡；\n2.仓储房2个，占地面积234㎡；\n3.轨道车22套，总长7619.664米；\n4.混凝土路面宽3.5m，厚度20cm，路基宽4.5m,厚度15cm，道路总长93米，面积325.5平㎡。","2025年4月－－2025年12月",154.387599,145,145,0,{"$nulls":5},1,null,462,1910,74,274,null,null,"三江侗族自治县林业局","三江侗族自治县林业局","完成新建轨道6000米，轨道车机头30个","通过建设721.6亩优质高效油茶示基地，完善八江村油茶基地建设，改善村民的生产条件，促进产业发展，增加群众收入，受益人口462户1910人。"]
[276,"八江镇","八江村","八江镇金库油茶基地建设项目（新建油茶晒坪和仓储、轨道运输项目）","产业发展","新建","1.晒坪、仓储房1个，占地面积共500㎡；\n2.轨道车12套，总长5955.895米\n3.混凝土路面宽3.5m，厚度20cm，路基宽4.0m,厚度15cm，道路总长67.812米。","2025年4月－－2025年12月",108.774654,102,102,0,{"$nulls":5},1,null,141,591,57,228,null,null,"三江侗族自治县林业局","三江侗族自治县林业局","完成油茶晒坪400平方米；仓储1座200平方米，新建单轨道12000米，轨道机组60套","通过建设663.65亩优质高效油茶示范基地，完善八江村产业配套基地设施，促进产业发展，提升群众经济收入，受益人口141户591人。"]
[277,"八江镇","三团村","八江镇三团村石南山油茶基地晒坪和仓储项目","产业发展","新建","1.晒坪3个，占地面积600㎡；\n2.仓储房2座，占地面积117*2=400㎡；\n3.轨道车10套，总长3723.634米；\n4.混凝土路面宽3.5m，厚度20cm，路基宽4.5m,厚度15cm，道路总长0.423公里。","2025年4月－－2025年12月",118.71658,112,112,0,{"$nulls":5},1,null,511,1748,99,415,null,null,"三江侗族自治县林业局","三江侗族自治县林业局","完成2000平方水泥晒场、200平方仓储","通过建设690.75亩优质高效油茶示范基地,完善三团村产业配套基地设施，促进产业发展，提升群众经济收入，受益人口511户1748人。"]
[278,"八江镇","岩脚村","八江镇石南山万亩油茶基地建设项目(新建油茶晒坪和仓储、生产步道项目)","产业发展","新建","1.晒坪3个，占地面积647.6㎡；\n2.仓储房2座，占地面积400.4㎡；\n3.轨道车10套，占地面积2630米。\n4.台阶长度880米，占地面积共704㎡\n5.道路硬化长度107.774米，混凝土路面宽3.5m，厚度20cm，路基宽4.5m,厚度10cm。\n6.挡土墙14.5米。","2025年4月－－2025年12月",105.307483,99,99,0,{"$nulls":6},1,342,1171,118,440,null,null,"三江侗族自治县林业局","三江侗族自治县林业局","完成油茶晒场1200个平方，油茶仓储2座每座10X120X4=480立方","通过建设1378.99亩优质高效油茶示范基地,完善岩脚村产业配套基地设施，促进产业发展，提升群众经济收入，受益人口342户1171人。"]
[279,"八江镇","岩脚村","八江镇石南山油茶基地建设项目（岩脚村达沙屯至石南山林区路修复硬化项目）","产业发展","新建","1.混凝土路面宽4.5m，厚度20cm，路基宽4.5m,厚度15cm，道路总长3.55公里；\n2.C25毛石混凝土挡土墙2幅，总长9米，占地面积14.7㎡；\n3.涵管2道，总长12米。","2025年4月－－2025年12月",240.9213,240.2648,{"v":240.2648,"d":"240"},0,{"$nulls":6},1,342,1171,118,440,null,null,"三江侗族自治县林业局","三江侗族自治县林业局","完成林区公路总长3公里，路基宽4.5米，路面宽3.5米，水沟、涵管、错车道","通过建设5000亩优质高效油茶示范基地，提高当地产业振兴和带动林业产业发展，方便周边群众林、农产品的运输，受益人口342户1171人。通过务工带动部分群众和脱贫户增收。并充分利用基地开展实用技术培训，开展技术指导，辐射带动周边农户发展油茶产业。逐步形成10000亩油茶示范片区，投产后每亩年产值3000元以上。通过打造茶旅结合示范基地，与布央茶叶基地形成“两山两茶”茶旅融合示范区。"]
[280,"八江镇","平善村","八江镇平善村岑选油茶基地晒坪和仓储项目项目","产业发展","新建","1.仓储房2个，占地面积400㎡\n2.晒坪2个，占地面积400㎡；","2025年4月－－2025年12月",35.110722,33,33,0,{"$nulls":6},1,496,1762,152,552,null,null,"三江侗族自治县林业局","三江侗族自治县林业局","完成油茶基地400平方水泥晒场、400平方仓储","通过建设546.43亩优质高效油茶示范基地,完善平善村产业配套基地设施，促进产业发展，提升群众经济收入，受益人口496户1762人。"]
[281,"八江镇","布代村","八江镇布代村孟田屯至岑美松油茶基地林区道路建设项目","产业发展","新建","1.新建产业4.808公里，路面宽3.5米，路基宽4.5米，碎石厚15cm，磨耗层厚2cm；\n2.涵管16道127米","2025年4月－－2025年12月",162.877432,150,119,31,{"$nulls":6},1,336,1570,205,905,null,null,"三江侗族自治县林业局","三江侗族自治县林业局","完成林区砂石公路总长9公里，路基宽4.5米，路面宽3.5米，水沟、涵管、错车道","解决村产业运输难问题，改善村产业基础设施条件，受益人口336户1570人出行水平；改善布代村产业基础设施条件，促进种植产业发展，便于群众出行。"]
[282,"八江镇","高迈村","八江镇高迈村金竹六海山油茶旅游融合产业园建设项目（园内单轨运输车项目）","产业发展","新建","1.晒坪2个，占地面积442㎡；\n2.仓储房2座，占地面积398㎡；\n3.轨道车20套，总长8385.68米；\n4.混凝土路面宽3.5m，厚度20cm，路基宽4.0m,厚度10cm，道路总长96.789米","2025年4月－－2025年12月",163.103176,154,123,31,{"$nulls":5},1,null,909,3416,244,1018,null,null,"三江侗族自治县林业局","三江侗族自治县林业局","完成28条园地单轨运输车线，总长968.26米，配套机组货厢。","通过建设1027.54亩优质高效油茶示范基地,完善旅游融合示范基地，改善村民的生产条件，促进产业发展，增加群众收入，解决高迈村1027.51亩油茶基地内肥料林农产品运输和产品临时储存问题，利于油茶林快速生长投产，总体受益人口909户3416人。并充分利用基地开展实用技术培训，开展技术指导，辐射带动周边农户发展油茶产业。"]
[283,"八江镇","八江村","八江镇石南山片区示范基地建设项目（杨练坡至高归基地道路硬化）","产业发展","新建","1.路面硬化宽4.5米、厚度20cm，路基宽5米，碎石厚15cm，道路硬化3.647公里。\n2.涵管6道42米；","2025年4月－－2025年12月",228.192881,206.4579,138,68.4579,{"$nulls":5},1,null,426,1910,74,277,null,null,"三江侗族自治县林业局","三江侗族自治县林业局","完成产业路硬化3.6公里","解决群众产业运输难问题，改善村产业基础设施，改善八江村产业基础设施条件，促进产业发展，方便群众出行。受益人口426户1910人。"]
[284,"八江镇","八江村","八江镇石南山片区示范基地建设项目（半归至鸡凹基地道路硬化）","产业发展","新建","1.路面硬化宽4.5米、厚度20cm，路基宽5.0米，碎石厚15cm，道路硬化2.835公里。\n2.涵管10道70米；\n3.C25毛石混凝土挡土墙2幅，总长26米等。","2025年4月－－2025年12月",196.300386,179.2734,{"v":117.7802,"d":"118"},61.4932,{"$nulls":5},1,null,426,1910,74,277,null,null,"三江侗族自治县林业局","三江侗族自治县林业局","完成产业路硬化2.835公里","解决群众产业运输难问题，改善村产业基础设施，改善八江村产业基础设施条件，促进产业发展，方便群众出行。受益人口426户1910人。"]
[285,"林溪镇","林溪村","林溪镇林溪村科马界茶油基地运输轨道和仓储建设项目","产业发展","新建","1.晒坪1个，占地面积共602㎡；\n2.仓储房1座，占地面积共117㎡；\n3.轨道车15套，总长3669.629米。","2025年4月－－2025年12月",86.49389,82,82,0,{"$nulls":5},1,null,956,2568,135,450,null,null,"三江侗族自治县林业局","三江侗族自治县林业局","解决林溪村茶油基地的正常管护工作","通过建设259.56亩优质高效油茶示范基地,改善林溪村茶油基地的正常管护工作，受益人口956户2568人。"]
[286,"林溪镇","美俗村","林溪镇美俗村康岭油茶基地轨道车及仓储建设项目","产业发展","新建","1.晒坪1个，占地面积共130㎡；\n2.仓储房1座，占地面积共117；\n3.轨道车9套，总长2616.349米\n4.混凝土路面宽3.5m，厚度20cm，路基宽4.5m,厚度15cm，道路总长22.390米。","2025年4月－－2025年12月",62.078102,57,57,0,{"$nulls":6},1,453,1645,75,257,null,null,"三江侗族自治县林业局","三江侗族自治县林业局","完成中寨水牛田油茶基地9000米轨道及配套24台机车的运输系统工程和1500平方米仓储及加工厂房的工程建设。","通过建设201.82亩优质高效油茶示范基地,完善旅游融合示范基地，改善村民的生产条件，促进产业发展，增加群众收入，解决美俗村201.82亩油茶基地内肥料林农产品运输和产品临时储存问题，利于油茶林快速生长投产，受益人口453户1645人。并充分利用基地开展实用技术培训，开展技术指导，辐射带动周边农户发展油茶产业。"]
[287,"林溪镇","美俗村","林溪镇美俗村高冲油茶基地轨道车及仓储、晒坪建设项目","产业发展","新建","1.晒坪1个，占地面积283㎡；\n2.仓储房1座，占地面积117㎡；\n3.轨道车25套，总长2898米。","2025年4月－－2025年12月",83.905915,79,79,0,{"$nulls":6},1,453,1645,75,257,null,null,"三江侗族自治县林业局","三江侗族自治县林业局","新建轨道车线路2条，轨道长约2000米，配套机车2台，新建仓储加工厂房800平方米，晒坪300平方米，道路硬化9公里","通过建设289.44亩优质高效油茶示范基地,改善村民的生产条件，促进产业发展，增加群众收入，解决美俗村289.44亩油茶基地内肥料林农产品运输和产品临时储存问题，利于油茶林快速生长投产，受益人口453户1645人。并充分利用基地开展实用技术培训，开展技术指导，辐射带动周边农户发展油茶产业。"]
[288,"林溪镇","高秀村","林溪镇高秀村马哨屯务命加祥油茶产业基地轨道路运输和仓储项目","产业发展","新建","1.晒坪、仓储房各1个，占地面积共200㎡；\n2.轨道车6套，总长1906.467米","2025年4月－－2025年12月",47.017574,44.026,{"v":44.026,"d":"44"},0,{"$nulls":6},1,418,1648,140,557,null,null,"三江侗族自治县林业局","三江侗族自治县林业局","完成运输轨道1000米铺设，及配套设施建设。","通过建设225.6亩优质高效油茶示范基地,改善村民的生产条件，促进产业发展，增加群众收入，解决高秀村225.6亩油茶基地内肥料林农产品运输和产品临时储存问题，利于油茶林快速生长投产，受益人口418户1648人。并充分利用基地开展实用技术培训，开展技术指导，辐射带动周边农户发展油茶产业。"]
[289,"林溪镇","平岩村","林溪镇平岩村林桃油茶基地运输轨道车和仓储建设项目","产业发展","新建","1.晒坪2个，占地面积共1010㎡；\n2.仓储房2座，占地面积共234㎡；\n3.轨道车49套，总长12572.283米。","2025年4月－－2025年12月",248.815187,235,235,0,{"$nulls":5},1,null,975,3873,205,832,null,null,"三江侗族自治县林业局","三江侗族自治县林业局","解决平岩村林桃油茶基地的正常管护工作。","通过建设833.86亩优质高效油茶示范基地,改善平岩村林桃油茶基地的管扶工作，受益人口975户3873人。"]
[290,"林溪镇","平铺村","林溪镇平铺村黑石山油茶基地储仓、晒坪、轨道建设项目","产业发展","新建","1.晒坪2个，占地面积共690.8㎡；\n2.仓储房2座，占地面积共400㎡；\n3.轨道车36套，总长7388.463米。","2025年4月－－2025年12月",168.29842,156,156,0,{"$nulls":5},1,null,845,3345,131,519,null,null,"三江侗族自治县林业局","三江侗族自治县林业局","新建轨道车线路6条，轨道长约3000米，配套机车6台，新建仓储加工厂房100平方米，晒坪800平方米","通过建设885.49亩优质高效油茶示范基地,改善村民的生产条件，促进产业发展，增加群众收入，解决平铺村885.49亩油茶基地内肥料林农产品运输和产品临时储存问题，利于油茶林快速生长投产，受益人口845户3345人。并充分利用基地开展实用技术培训，开展技术指导，辐射带动周边农户发展油茶产业。"]
[291,"斗江镇","东坪村","斗江镇东坪村毛竹基地建设项目（新建宇朝屯至中堂山林区路）","产业发展","新建","新建林区砂石路3.908公里，路面宽3.5米，路基宽4.5米，水沟3.908km，涵管21座、错车道12道,新建盖板涵1座。","2025年4月－－2025年12月",130.6926,118.4154,{"v":78.4154,"d":"78"},40,{"$nulls":5},1,null,65,206,5,16,null,null,"三江侗族自治县林业局","三江侗族自治县林业局","完成林区砂石路4.5公里建设","通过产业路建设，方便群众林、农产品的运输，减少交通运输成本，提高林木、竹等林产品运输能力，解决该村毛竹基地交通困难问题，方便毛竹原材料出山，提高毛竹基地管护水平，增加林农收入，受益人口65户206人。"]
[292,"斗江镇","牙林村","斗江镇牙林村毛竹基地建设项目（新建罗竹冲至林场林区路）","产业发展","新建","新建林区砂石路4.548公里，路面宽3.5米，路基宽4.5米，水沟4.548km，盖板涵2座，涵管16座、回车场1处，错车道14道。","2025年4月－－2025年12月",142.1288,131,131,0,{"$nulls":5},1,null,85,350,12,40,null,null,"三江侗族自治县林业局","三江侗族自治县林业局","完成林区砂石路4公里建设","通过产业路建设，方便群众林、农产品的运输，减少交通运输成本，提高林木、竹等林产品运输能力，解决该村毛竹基地交通困难问题，方便毛竹原材料出山，提高毛竹基地管护水平，增加林农收入，受益人口85户350人。"]
[293,"斗江镇","滩底村","斗江镇滩底村毛竹基地建设项目（新建从旦冲寨边到牛坡林区路）","产业发展","新建","新建林区砂石路4.588公里，路面宽3.5米，路基宽4.5米，水沟4.588km，涵管15座、盖板涵2座，错车道13道。","2025年4月－－2025年12月",169.0389,153,153,0,{"$nulls":5},1,null,70,210,8,33,null,null,"三江侗族自治县林业局","三江侗族自治县林业局","完成林区砂石路5公里建设","通过产业路建设，方便群众林、农产品的运输，减少交通运输成本，提高林木、竹等林产品运输能力，解决该村毛竹基地交通困难问题，方便毛竹原材料出山，提高毛竹基地管护水平，增加林农收入，受益人口70户210人。"]
[294,"斗江镇","白言村","斗江镇白言村竹子产业基地新建产业路（九江屯大力冲）","产业发展","新建","新建林区砂石路4.8公里，路面宽3.5米，路基宽4.5米，圆涵管22道、滚水坝1道、盖板涵2道、错车道16道、挡土墙48米。","2025年4月－－2025年12月",190.1537,{"$f":"K319+L319+M319","v":175},175,0,{"$nulls":5},1,null,93,346,6,20,null,null,"三江侗族自治县林业局","三江侗族自治县林业局","完成林区砂石路建设7公里","通过产业路建设，方便群众林、农产品的运输，减少交通运输成本，提高林木、竹等林产品运输能力，解决该村毛竹基地交通困难问题，方便毛竹原材料出山，提高毛竹基地管护水平，增加林农收入，受益人口93户346人。"]
[295,"丹洲镇","合桐村","丹洲镇合桐村龙万山油茶产业示范园茶果仓储、晒坪建设项目","产业发展","新建","1.晒坪1个，占地面积共464.2㎡；\n2.仓储房2座，占地面积共601㎡。","2025年4月－－2025年12月",55.953561,52,52,0,{"$nulls":5},1,null,209,516,2,9,0,null,"三江侗族自治县林业局","三江侗族自治县林业局","完善产业项目配套设施建设，方便生产作业。","通过建设200亩优质高效油茶示范基地,解决贫困村与非贫困村产业振兴乡村问题，改善产业生产基础设施，受益人口209户516人。"]
[296,"丹洲镇","红路村","丹洲镇红路村清水岭林区产业路修复工程","产业发展","新建","挡墙7幅，总长164米","2025年4月－－2025年12月",53.8194,50,34,16,{"$nulls":7},1,512,1871,67,223,null,"三江侗族自治县林业局","三江侗族自治县林业局","修复林区产业路，新建挡土墙长200米，高2.5米，厚1米，清理路基塌方，两处涵管冲毁修复，。","修复该村清水岭林区产业路水毁路段，保持该林区路正常通行，解决该村毛竹基地交通困难问题，方便毛竹原材料出山，提高毛竹基地管护水平，增加林农收入，方便群众运输原材料出山，受益人口512户1871人。"]
[297,"丹洲镇","板江社区","丹洲镇板江社区麻江屯枫木冲竹木基地林区道路建设项目","产业发展","新建","1.新建林区砂石路1.523公里，路面宽3.5米，磨耗层厚2cm；路基宽4.5米，碎石厚15cm，占地7331.337㎡；\n2.涵管8道61米等。","2025年4月－－2025年12月",50.636506,25,25,0,{"$nulls":5},1,null,50,154,4,20,null,null,"三江侗族自治县林业局","三江侗族自治县林业局","完成林区砂石路建设1.5公里","通过产业路建设，方便群众林、农产品的运输，减少交通运输成本，提高林木、竹等林产品运输能力，解决该村毛竹基地交通困难问题，方便毛竹原材料出山，提高毛竹基地管护水平，增加林农收入，受益人口50户154人。"]
[298,"独峒镇","高亚村","独峒镇高亚村\"信劳\"油茶示范基地运输轨道建设项目","产业发展","新建","1.晒坪1个，占地面积共417㎡；\n2.仓储房1座，占地面积共200㎡；\n3.轨道车6套，总长1519米。","2025年4月－－2025年12月",47.047303,44,44,0,{"$nulls":6},1,null,445,1680,95,350,null,"三江侗族自治县林业局","三江侗族自治县林业局","完成油茶基地轨道运输长1.5千米及配套设施。","通过建设288.16亩优质高效油茶示范基地,完善旅游融合示范基地，改善村民的生产条件，促进产业发展，增加群众收入，解决平铺村288.16亩油茶基地内肥料林农产品运输和产品临时储存问题，利于油茶林快速生长投产，受益人口445户1680人。并充分利用基地开展实用技术培训，开展技术指导，辐射带动周边农户发展油茶产业。"]
[299,"独峒镇","岜团村","独峒镇岜团村桐木山示范基地建设项目（新建轨道运输车、仓储、晒坪项目）","产业发展","新建","1.晒坪1个，占地面积共500㎡；\n2.仓储房1座，占地面积共200㎡；\n3.轨道车10套，总长2185米。","2025年4月－－2025年12月",59.944619,55,55,0,{"$nulls":6},1,110,440,42,156,0,0,"三江侗族自治县林业局","三江侗族自治县林业局","完成油茶基地轨道运输、仓储、晒坪建设。","通过建设465.72亩优质高效油茶示范基地,改善岜团村的生产生活条件，促进产业发展，受益人口110户440人。"]
[300,"同乐乡","岑甲村","同乐乡岑甲村加列屯至下良柳油茶产业基地新建产业路工程","产业发展","新建","1.新建林区砂石路1.326公里，路面宽3.5米，路基宽4.5米，碎石厚15cm，磨耗层厚2cm；\n2.涵管6道43米等。","2025年4月－－2025年12月",36.579288,34,27,7,{"$nulls":6},1,735,2858,282,1176,null,null,"三江侗族自治县林业局","三江侗族自治县林业局","完成产业路开挖2公里。方便735户2858人开展产业活动。","通过产业路建设，方便群众林、农产品的运输，减少交通运输成本，提高林木、竹等林产品运输能力，解决该村毛竹基地交通困难问题，方便毛竹原材料出山，提高毛竹基地管护水平，增加林农收入，受益人口735户2858人。"]
[301,"良口乡","大滩村","良口乡大滩村油茶、杉竹基地建设项目（新建归化至井大林区路项目）","产业发展","新建","1.新建林区砂石路7.015公里，路面宽3.5米，路基宽4.5米，碎石厚15cm，磨耗层厚2cm；\n2.涵管14道98米等。","2025年4月－－2025年12月",160.012783,145,145,0,{"$nulls":6},1,353,1482,95,380,31,148,"三江侗族自治县林业局","三江侗族自治县林业局","新建产业路长7公里、宽4.5米。解决大滩村民通车运输农产品问题，改善村基础设施，方便353户1482人高质量发展产业。","解决大滩村村民通车运输农产品问题，改善村基础设施，方便353户1482人高质量发展产业。"]
[302,"良口乡","产口村","良口乡产口村寨枝、长冲屯毛竹基地建设项目（新建长冲至寨枝林区路）","产业发展","新建","1.新建林区砂石路2.775公里，路面宽3.5米，磨耗层厚2cm；路基宽4.5米，碎石厚15cm；\n2.涵管9道63米等。","2025年4月－－2025年12月",60.068312,56.0408,{"v":43.0408,"d":"43"},13,{"$nulls":5},0,1,489,1978,83,349,53,204,"三江侗族自治县林业局","三江侗族自治县林业局","完成林区砂石路3.5公里建设","通过产业路建设，方便群众林、农产品的运输，减少交通运输成本，提高林木、竹等林产品运输能力，解决该村毛竹基地交通困难问题，方便毛竹原材料出山，提高毛竹基地管护水平，增加林农收入，受益人口489户1978人。"]
[303,"良口乡","滚良村","良口乡滚良村竹林基地建设项目（新建良开屯广登至务岺至高归松林区路）","产业发展","新建","1.新建林区砂石路1.750公里，路面宽3.5米，磨耗层厚2cm；路基宽4.5米，碎石厚15cm；\n2.涵管6道42米等。","2025年4月－－2025年12月",40.264199,38,31,7,{"$nulls":5},0,1,472,1974,190,806,18,79,"三江侗族自治县林业局","三江侗族自治县林业局","完成林区砂石路3.5公里建设","通过产业路建设，方便群众林、农产品的运输，减少交通运输成本，提高林木、竹等林产品运输能力，解决该村毛竹基地交通困难问题，方便毛竹原材料出山，提高毛竹基地管护水平，增加林农收入，受益人口472户1974人。"]
[304,"良口乡","布糯村","良口乡布糯村布勾旧寨至乌鸦油茶基地至高归倒产业道路硬化项目","产业发展","新建","修复、硬化路面长3.348公里、路面宽3.5米、路基4.5米，合理设置涵洞、边沟、错车道等。","2025年4月－－2025年12月",203.521397,188.0564,127,61.0564,{"$nulls":6},1,460,2487,167,983,null,null,"三江侗族自治县林业局","三江侗族自治县林业局","完成修复、硬化林区路3公里。","通过建设油茶、杉、竹产业基地基础设施建设，方便周边群众林、农产品的运输，减少交通运输成本，提高林农产品价值，进一步提振林业产业发展，带动群众和脱贫户增产增收，提高茶油、茶叶、林木、竹等林农产品运输能力，提高安全指数。受益人口460户2487人"]
[305,"洋溪乡","红岩村","洋溪乡红岩村小兵屯加赖至塘老产业基地新建产业路项目","产业发展","新建","1.新建林区砂石路2.534公里，路面宽3.5米，路基宽4.5米，碎石厚15cm，磨耗层厚2cm；\n2.涵管4道28米等。","2025年4月－－2025年12月",83.283643,77,62,15,{"$nulls":6},1,119,548,56,231,null,null,"三江侗族自治县林业局","三江侗族自治县林业局","建设新的产业路长3公里","通过产业路建设，方便群众林、农产品的运输，减少交通运输成本，提高林木、竹等林产品运输能力，解决该村毛竹基地交通困难问题，方便毛竹原材料出山，提高毛竹基地管护水平，增加林农收入，受益人口119户548人。"]
[306,"洋溪乡","安马村","洋溪乡安马村岑夜屯产业路建设工程项目","产业发展","新建","1.新建林区砂石路5.729公里，路面宽3.5米，路基宽4.5米，碎石厚15cm，磨耗层厚2cm；\n2.涵管23道161米等。","2025年4月－－2025年12月",135.239015,124.1434,{"v":81.1434,"d":"81"},43,{"$nulls":6},1,456,2059,241,1031,null,null,"三江侗族自治县林业局","三江侗族自治县林业局","完成林区砂石路建设6公里","通过产业路建设，方便群众林、农产品的运输，减少交通运输成本，提高林木、竹等林产品运输能力，解决该村毛竹基地交通困难问题，方便毛竹原材料出山，提高毛竹基地管护水平，增加林农收入，受益人口456户2059人。"]
[307,"老堡乡","老堡村","老堡乡老堡村毛竹基地建设项目（新建汪长冲至月亮山林区公路）","产业发展","新建","1.新建产业3.329公里，路面宽3.5米，路基宽4.5米，碎石厚15cm，磨耗层厚2cm；\n2.涵管14道112米","2025年4月－－2025年12月",95.738775,88,68,20,{"$nulls":5},1,null,87,378,27,103,null,null,"三江侗族自治县林业局","三江侗族自治县林业局","完成老堡村马安屯对门坡竹林地内6000米生产道路建设，运输及日常管护。","通过产业路建设，方便群众林、农产品的运输，减少交通运输成本，提高林木、竹等林产品运输能力，解决该村毛竹基地交通困难问题，方便毛竹原材料出山，提高毛竹基地管护水平，增加林农收入，受益人口87户378人。"]
[308,"老堡乡","漾口村","老堡乡漾口村杉木、油茶产业基地新建产业路项目（平辽至洋洞发烂山）","产业发展","新建","1.新建产业7.027公里，路面宽3.5米，路基宽4.5米，碎石厚15cm，磨耗层厚2cm；\n2.涵管24道168米","2025年4月－－2025年12月",174.840843,162.4522,110,52.4522,{"$nulls":5},1,null,469,1682,60,417,null,null,"三江侗族自治县林业局","三江侗族自治县林业局","完成林区砂石路建设7公里","通过产业路建设，方便群众林、农产品的运输，减少交通运输成本，提高林木、竹等林产品运输能力，解决该村毛竹基地交通困难问题，方便毛竹原材料出山，提高毛竹基地管护水平，增加林农收入，受益人口469户1682人。"]
[309,"程村乡","泗里村","程村乡泗里村汾水泠软枝油茶产业基地建设项目（新建轨道车项目）","产业发展","新建","轨道车线路7条，共计1775.52m，晒坪310平方米","2025年4月－－2025年12月",30.741341,28.7352,{"v":28.7352,"d":"29"},0,{"$nulls":6},1,153,628,31,96,null,null,"三江侗族自治县林业局","三江侗族自治县林业局","完成建设运输轨道车3条2000米，配套牵引机具、货厢等。","通过产业路建设，方便群众林、农产品的运输，减少交通运输成本，提高林木、竹等林产品运输能力，解决该村毛竹基地交通困难问题，方便毛竹原材料出山，提高毛竹基地管护水平，增加林农收入，受益人口153户628人。"]
[310,"程村乡","大树村","程村乡大树村佳林屯屋背岗产业路工程项目","产业发展","新建","新建林区砂石路2.437公里，路面宽3.5米，路基宽4.5米，水沟2.437km，涵管11座，错车道8道，路口挡土墙一幅长54米等。","2025年4月－－2025年12月",76.6299,76,69,7,{"$nulls":6},224,759,41,147,{"$nulls":3},"三江侗族自治县林业局","三江侗族自治县林业局","完成新建屋背岗产业路，长3公里，及配套设施建设。","通过产业路建设，方便群众林、农产品的运输，减少交通运输成本，提高林木、竹等林产品运输能力，解决该村毛竹基地交通困难问题，方便毛竹原材料出山，提高毛竹基地管护水平，增加林农收入，受益人口224户759人。"]
[311,"梅林乡","新民村中寨屯","梅林乡新民村中寨屯产业路加宽硬化项目","产业发展","新建","1.道路硬化4.849公里。路面硬化宽3.5米，厚度20cm；路基宽4.5米，碎石厚15cm；\n2.涵管14道98米等。","2025年4月－－2025年12月",328.257696,294.6526,{"v":196.1753,"d":"196"},98.4773,{"$nulls":6},1,377,1612,90,399,null,null,"三江侗族自治县林业局","三江侗族自治县林业局","改善村基础设施，方便377户1612人出行","通过建设油茶、杉、竹产业基地基础设施建设，方便周边群众林、农产品的运输，减少交通运输成本，提高林农产品价值，进一步提振林业产业发展，带动群众和脱贫户增产增收，提高茶油、茶叶、林木、竹等林农产品运输能力，提高安全指数。促进产业发展，方便群众出行，受益人口377户1612人。"]
[312,"和平乡","六溪村","和平乡六溪村上花屯牛岭油茶基地配套产业路项目","产业发展","新建","新建林区砂石路2.149公里，路面宽3.5米，路基宽4.5米，圆涵管8道、滚水坝1道、错车道8道。","2025年4月－－2025年12月",63.6485,59.189,{"v":38.189,"d":"38"},21,{"$nulls":5},1,null,543,1743,62,223,null,null,"三江侗族自治县林业局","三江侗族自治县林业局","完成林区砂石路建设3.2公里","通过产业路建设，方便群众林、农产品的运输，减少交通运输成本，解决该油茶基地交通困难问题，方便林产品原材料出山，减少运输成本，提高油茶基地管护水平，增加林农收入，受益人口543户1743人。"]
[313,"三江县","和平乡","和平乡大寨村三湘屯拉笼冲产业路项目","产业发展","新建","新建林区砂石路2.165公里，路面宽3.5米，路基宽4.5米，错车道、水沟、涵管等。","2025年4月－－2025年12月",73.8078,71.2917,{"v":56.5301,"d":"57"},14.7616,{"$nulls":5},1,null,253,793,37,134,null,null,"三江侗族自治县林业局","三江侗族自治县林业局","完成林区砂石路建设3公里","通过产业路建设，方便群众林、农产品的运输，减少交通运输成本，提高林木、竹等林产品运输能力，解决该村毛竹基地交通困难问题，方便毛竹原材料出山，提高毛竹基地管护水平，增加林农收入，受益人口253户793人。"]
[314,"高基乡","拉旦村","高基乡拉旦村中寨屯水牛田油茶基地轨道车及仓储建设项目","产业发展","新建","新建22条山地单轨运输车线和两座临时仓库，共计长6404米。","2025年4月－－2025年12月",155.331025,149.8247,{"v":149.8247,"d":"150"},0,{"$nulls":6},1,136,450,28,145,7,28,"三江侗族自治县林业局","三江侗族自治县林业局","完成油茶基地轨道运输、仓储、晒坪建设。","通过建设780亩优质高效油茶示范基地,降低劳动成本，提高劳动成果，对油茶基地高质量发展及示范引领发挥重要作用，带动居家剩余劳动力就业务工，促进周边闲置土地发展油茶产业，促进群众增收，受益人口136户450人。"]
[315,"高基乡","冲干村","高基乡冲干村毛竹基地建设项目（新建平见雨岭河往下100米路口连接牛坡基地林区路）","产业发展","新建","新建林区砂石路4.219公里，路面宽3.5米，路基宽4.5米，新建漫水桥3座、涵管25道等。","2025年4月－－2025年12月",163.7029,148.2217,{"v":98.2217,"d":"98"},50,{"$nulls":5},1,0,43,170,13,54,null,null,"三江侗族自治县林业局","三江侗族自治县林业局","新建路面长5公里、路面宽4.5米，及配套设施建设。","通过产业路建设，方便群众林、农产品的运输，减少交通运输成本，提高林木、竹等林产品运输能力，解决平见屯及冲干屯合计竹林2000余亩，杉树2500余亩的出山困难问题，提高毛竹基地管护水平，增加林农收入，受益人口253户793人。"]
[316,"高基乡","冲干村","高基乡冲干村平见屯放牛坡油茶基地轨道运输系统和仓储建设项目","产业发展","新建","新建单轨运输车15套，总长4452米，仓储1座112.64平米，晒坪880平方米","2025年4月－－2025年12月",115.285305,108,108,0,{"$nulls":5},1,null,43,165,13,54,null,null,"三江侗族自治县林业局","三江侗族自治县林业局","完成平见屯放牛坡油茶基地仓储项目1000平方米","通过建设492亩优质高效油茶示范基地,改善村民的生产条件，促进产业发展，增加群众收入，解决冲干村平见屯492亩油茶基地内肥料林农产品运输和产品临时储存问题，利于油茶林快速生长投产，受益人口43户165人。并充分利用基地开展实用技术培训，开展技术指导，辐射带动周边农户发展油茶产业。"]
[317,"高基乡","江口村","高基乡江口村毛竹基地建设项目（新建邱里至宇蒙林区路）","产业发展","新建","新建林区砂石路4条共计2.29公里，路面宽3.5米，路基宽4.5米，新建盖板桥4座，涵管11道等。","2025年4月－－2025年12月",90.894627,84,84,0,{"$nulls":6},1,198,770,37,164,null,null,"三江侗族自治县林业局","三江侗族自治县林业局","完成硬化路面长5公里，及配套设施建设。","通过产业路建设，方便群众林、农产品的运输，减少交通运输成本，提高林木、竹等林产品运输能力，解决该村毛竹基地交通困难问题，方便毛竹原材料出山，提高毛竹基地管护水平，增加林农收入，受益人口198户770人。"]
[318,"高基乡","弓江村","高基乡弓江村毛竹基地建设项目（新建下宇苗屯平见坡至老寨林区路）","产业发展","新建","新建林区砂石路2条共计3.886公里，路面宽3.5米，路基宽4.5米，新建长20.2米漫水桥1座，新建盖板桥2座，涵管31道等。","2025年4月－－2025年12月",153.045245,137.827,{"v":91.827,"d":"92"},46,{"$nulls":6},1,39,128,22,70,null,null,"三江侗族自治县林业局","三江侗族自治县林业局","完成项目新开长3.2公里，及配套设施建设。","通过产业路建设，方便群众林、农产品的运输，减少交通运输成本，提高林木、竹等林产品运输能力，解决该村毛竹基地交通困难问题，方便毛竹原材料出山，提高毛竹基地管护水平，增加林农收入，受益人口39户128人。"]
[319,"高基乡","弓江村","高基乡弓江村灯笼坡油茶基地轨道运输系统和仓储建设项目","产业发展","新建","新建单轨运输车8套总长2284米，仓储1座112.64平米，晒坪670平方米","2025年4月－－2025年12月",66.489804,62,62,0,{"$nulls":6},1,19,66,7,23,null,null,"三江侗族自治县林业局","三江侗族自治县林业局","完成硬新建单轨运输车6套总长1000米，仓储1座200平米。","通过建设184亩优质高效油茶示范基地,改善村民的生产条件，促进产业发展，增加群众收入，解决弓江村184亩油茶基地内肥料林农产品运输和产品临时储存问题，利于油茶林快速生长投产，受益人口43户165人。并充分利用基地开展实用技术培训，开展技术指导，辐射带动周边农户发展油茶产业。"]
[320,"良口乡","产口村","良口乡产口村长冲屯至坡底毛竹基地产业路","产业发展","新建","新建林区砂石路3公里，路面宽3.5米，路基宽4.5米，路面铺砂石0.2米内排水沟3公里","2025年4月－－2025年12月",77.3695,70.4216,{"v":46.4216,"d":"46"},24,{"$nulls":6},1,489,1989,88,364,null,null,"三江侗族自治县林业局","三江侗族自治县林业局","完成林区砂石路3公里建设","解决该村毛竹基地交通困难问题，方便毛竹原材料出山，减少运输成本，提高毛竹基地管护水平，增加林农收入。受益人口489户1989人。"]
[321,"和平乡","和平村","和平乡和平村江脑屯棉山油茶基地产业路修复硬化项目","产业发展","新建","硬化路面长2.746公里、路面宽3.5米、路基4.5米，合理设置涵洞、边沟、错车道等","2025年4月－－2025年12月",158.016,144.4048,{"v":94.4048,"d":"94"},50,{"$nulls":6},1,400,1560,100,376,null,null,"三江侗族自治县林业局","三江侗族自治县林业局","完成修复硬化路面长2.7公","通过建设油茶、杉、竹产业基地基础设施建设，方便周边群众林、农产品的运输，减少交通运输成本，解决油茶种植户基地产业路，提高林农产品价值，进一步提振林业产业发展，带动群众和脱贫户增产增收，提高茶油、茶叶、林木、竹等林农产品运输能力，提高安全指数。提高群众发展产业的信心，直接受益69户198人。"]
[322,"程村乡","头坪村","程村乡头坪村竹林基地建设项目(新建头坪村石赖山林区路)","产业发展","新建","新建林区砂石公路总长3公里，路基宽4.5米，路面宽3.5米，水沟、涵管、错车道等。","2025年4月－－2025年12月",92.9852,86,86,0,{"$nulls":6},1,650,2400,37,139,null,null,"三江侗族自治县林业局","三江侗族自治县林业局","完成林区砂石路3公里建设","解决该村毛竹基地交通困难问题，方便毛竹原材料出山，减少运输成本，提高毛竹基地管护水平，增加林农收入。受益人口650户2400人。"]
[323,"程村乡","泗里村","程村乡泗里村竹林基地建设项目(新建泠槽屯滩脑山至小楠山林区路)","产业发展","新建","新建林区砂石公路总长3公里，路基宽4.5米，路面宽3.5米，水沟、涵管、错车道等。","2025年4月－－2025年12月",119.5742,110.3014,103,7.3014,{"$nulls":6},1,138,575,8,26,null,null,"三江侗族自治县林业局","三江侗族自治县林业局","完成林区砂石路3公里建设","解决该村毛竹基地交通困难问题，方便毛竹原材料出山，减少运输成本，提高毛竹基地管护水平，增加林农收入。受益人口138户575人。"]
[324,"程村乡","泗里村","程村乡泗里村竹林基地建设项目(新建泠槽屯桐吾山林区路)","产业发展","新建","新建林区砂石公路总长1公里，路基宽4.5米，路面宽3.5米，水沟、涵管、错车道等。","2025年4月－－2025年12月",37.0611,35,35,0,{"$nulls":6},1,138,575,8,26,null,null,"三江侗族自治县林业局","三江侗族自治县林业局","完成林区砂石路1公里建设","解决该村毛竹基地交通困难问题，方便毛竹原材料出山，减少运输成本，提高毛竹基地管护水平，增加林农收入。受益人口138户575人。"]
["县文体广旅局",null,"小计",null,"小计",{"$nulls":3},{"$f":"SUM(I351:I355)","v":1750},{"$f":"SUM(J351:J355)","v":1750},0,360,0,1390,0,0,null,{"$f":"SUM(R351:R355)","v":102},74,62876,310420,29028,124617,6092,26254]
[325,"全县",null,"三江侗族自治县文化旅游产业品牌打造","产业发展","新建","1.开展非遗文创产品开发和农特产品包装，通过线上线下渠道销售增收收入。\n2.打造“千年侗寨 梦萦三江”品牌，开展线上线下市场营销，大力引客到三江，2025年实现引客量同比增长10%，旅游消费同比增长9%；开展文旅产销对接会5场，开拓产品销售渠道。\n3.举办非遗和乡村旅游从业人员培训班4期，培训脱贫户（监测户）200人。\n","2025年4月－2025年12月",200,{"$f":"K351+L351+P351+M351+N351+O351","v":200},null,50,null,150,{"$nulls":3},98,72,60000,300000,28600,123000,6092,26254,"文体广旅局","文体广旅局","1.开展非遗文创产品开发和农特产品包装拓宽销售渠道实现农民增收；\n2.全年开展文旅产销对接会5场，开展线上线下市场营销，实现引客量同比增长10%，旅游消费同比增长9%\n3.举办非遗和乡村旅游从业人员培训班4期培训脱贫户（监测户）200人。","支持脱贫户（监测户）以手艺、原材料等形式参与非遗文创产品开发和农特产品包装升级，按销售额比例返还脱贫户（监测户）；举办线下文化旅游产品推介会，补贴脱贫户（监测户）参展费用；培训脱贫户（监测户）非遗和新媒体技能，实现就业增收。"]
[326,"八江镇","布央村","三江侗族自治县布央仙人山景区旅游业态打造项目","产业发展","新建","在仙人山景区核心区新建农特产品销售区821.42平方米；在仙人山景区游客中心新建农特产品销售区40平方米。","2025年4月－2025年12月",430,{"$f":"K352+L352+P352+M352+N352+O352","v":442},null,12,null,430,{"$nulls":4},1,666,2531,162,543,null,null,"文体广旅局","文体广旅局","建设农特产品销售区进一步优化提升景区的旅游业态，满足游客需求，增加游客量，带动群众增收致富。","1.收入分红。通过第三方租赁运营的方式每年向村集体经济分红。\n2.就业带动。项目施工时采用本地村民施工提供就业岗位，项目建成后直接提供稳定就业岗位10个以上。\n3.产业带动。通过旅游+农业+研学，带动村民发展茶叶、蔬菜种植、家禽养殖等，受益人口约2000人。"]
[327,"高基乡","桐叶村、江口村","三江侗族自治县桐瑶水韵民宿康养项目","产业发展","新建","项目占地5353.96平方米，其中建筑面积2696.86平方米，改造民宿1栋、多功能区域2栋，新建民宿6栋、综合培训室1栋及配套设施。","2025年4月－2025年12月",900,{"$f":"K353+L353+P353+M353+N353+O353","v":900},null,200,null,700,{"$nulls":3},1,1,457,1832,108,466,null,null,"文体广旅局","文体广旅局","依托生态资源建设民宿群，发展生态旅游、康养旅游，吸引游客深度游，增加游客过夜率和消费频次，带动产业链延伸，增加经济收入。","1.收入分红。通过第三方租赁运营的方式每年向村集体经济分红。\n2.就业带动。项目施工时采用本地村民施工提供就业岗位，项目建成后直接提供稳定就业岗位10个以上。\n3.产业带动。实施农文旅融合发展，通过旅游+农业+康养，带动村民发展茶叶、水果、蔬菜种植、家禽养殖等，受益人口约1000人。"]
[328,"古宜镇","大竹村、西尤村","三江侗族自治县古宜镇旅游基础设施项目","产业发展","新建","1.大竹村福禄山旅游基础设施（农特产品销售点）50平方米；\n2.西尤村旅游基础设施（农特产品销售点）220平方米；","2025年4月－2025年12月",110,{"$f":"K354+L354+P354+M354+N354+O354","v":110},{"$nulls":3},110,{"$nulls":3},2,null,1628,5537,143,547,null,null,"文体广旅局","文体广旅局","建设西尤村和大竹村旅游基础设施（农特产品销售点）满足游客的需求，增加游客量带动群众增收致富。","1.收入分红。通过第三方租赁运营的方式每年向村集体经济分红。\n2.就业带动。项目施工时采用本地村民施工提供就业岗位，项目建成后直接提供稳定就业岗位4人。\n3.产业带动。通过旅游+农业+体育，带动村民发展茶叶、蔬菜种植、家禽养殖等，受益人口约2400人。"]
[329,"丹洲镇","丹洲村","三江侗族自治县丹洲镇水上便民交通服务能力建设项目","产业发展","新建","购置符合国家相关安全技术标准、载客量约60-70人的渡轮一艘，作为村集体固定资产","2025年4月－2025年12月",110,{"$f":"K355+L355+P355+M355+N355+O355","v":98},null,98,{"$nulls":5},1,null,125,520,15,61,null,null,"文体广旅局","文体广旅局","完成渡轮定制并交付使用","1.收入分红。通过第三方租赁运营的方式每年向村集体经济分红。\n2.就业带动。提供稳定就业岗位4个以上。\n3.产业带动。实施农文旅融合发展，通过旅游带动村民发展水果、蔬菜种植，腊味制作等，受益人口约500人。",null,"新增项目"]
["县市场监督管理局",{"$nulls":3},"小计",{"$nulls":3},{"$f":"SUM(I357)","v":80},{"$f":"SUM(J357:J357)","v":80},0,80,0,0,0,0,null,{"$f":"SUM(R357:R357)","v":0},0,0,0,0,0,0,0]
[330,"全县",null,"三江侗族自治县特色产业地理标志品牌保护运用及宣传推广项目","产业发展","新建","1.完成“三江茶”地理标志证明商标的前期申报规划，指导、培育与调研等工作。\n2.开展地理标志产品专项检查2次，完成“三江茶”抽检5个批次。\n3.新增地理标志专用标志用标企业6家。                                                                                                                               4.地理标志产品广告宣传。                                                5.重新修订“三江茶油”广西地方标准。                           ","2025年4月－2025年12月",80,{"$f":"K357+L357+P357+M357+N357+O357","v":80},null,80,{"$nulls":13},"三江侗族自治县市场监督管理局","三江侗族自治县市场监督管理局","1.完善“三江茶”历史文献的记载，并发表在三江县志、年鉴或《中国茶叶》等权威刊物上，夯实地理标志申报基础。        2.开展“三江茶”地理标志专项检查，规范专用标志的印刷和使用，完成“三江茶”抽检批次。   3.设计“三江茶“文字或图形商标，为启动“三江茶”地理标志证明商标申请做好准备，增强三江茶市场辨识度，提高三江茶市场竞争力。   4.地理标志产品宣传。        ","通过提升“三江 茶\"\"三江茶油”的品牌影响力，促进“两茶”产业高质量发展，促进农民增收。"]
["独峒镇",{"$nulls":3},"小计",{"$nulls":3},{"$f":"SUM(I359)","v":726},{"$f":"SUM(J359:J359)","v":700},0,0,700,0,0,0,null,{"$f":"SUM(R359:R359)","v":1},11,9770,42661,2636,11225,0,0]
[331,"独峒镇","八协村","独峒镇集体经济茶叶产业园建设","产业发展","新建","项目建设用地28.79亩，建设现代化茶叶加工园。建设内容包括建设标准化厂房1个、园区场地硬化、污水处理系统、生活用水系统、给排水、生产生活用电、消防配套设施、卫生间、园区道路、土方清运等生产服务配套。","2025年4月－2025年12月",726,{"$f":"K359+L359+P359+M359+N359+O359","v":700},null,null,700,{"$nulls":4},1,11,9770,42661,2636,11225,null,null,"独峒镇","独峒镇","完成独峒镇集体经济茶叶产业园项目建设用地28.79亩，建设现代化茶叶加工园。建设内容包括建设标准化厂房1个、园区场地硬化、污水处理系统、生活用水系统、给排水、生产生活用电、消防配套设施、卫生间、园区道路、土方清运等生产服务配套。","完成独峒镇集体经济茶叶产业园建设项目，引进标准化茶叶加工企业4家左右。可以覆盖全镇12个村集体经济增收，增加脱贫地区产业增收渠道，发展生产，受益9770户42661人。",null,"新增项目"]
["取消项目"]
[1,"同乐乡","高旁村","同乐乡高旁村水源工程","乡村建设行动","新建","1、主坝部分：主坝面防渗处理，坝顶硬化、坝脚新建齿墙；2、副坝部分、新建C20毛石砼坝体，硬化溢洪道排水沟；3、管网部分：de75引水管长1850米，de280清池管长75米。","2025年3月-2025年12月",null,{"$f":"K361+L361+P361+M361+N361+O361","v":0},{"$nulls":8},1,405,1513,192,800,null,null,"水利局","农村饮水安全事务站","保障农村饮水安全，受益人口405户1513人。",null,"取消实施","因水源干枯，取消项目实施，原计划安排55万。"]
[2,"古宜镇","古宜镇","三江侗族自治县电商新媒体人才培育项目","产业发展","新建","1.完善电商培训基地配套设施；\n2.开展本土电商新媒体人才培训，培训电商新媒体人员2000人以上。","2025年1月-2025年12月",null,{"$f":"K362+L362+P362+M362+N362+O362","v":0},{"$nulls":7},72,98,108976,404665,28942,123502,6094,26420,"科工贸局","科工贸局","完善电商培训基地配套设施，培训2000名本土电商新媒体人才（短视频、直播带货达人和电商专业服务人才）。预计网络零售额突破1亿元，助力县域经济全面发展，依托电商实训基地，培育一批扎根本土的电子商务带头人，打造创新型就业岗位，通过短视频、直播带货等方式拉动经济收入。","通过培育2000名本土电商新媒体人才，推动三江特色产品的网络销售和增强美好新三江的曝光力度，预计到2025年底网络零售额同比增长36%，提供就业岗位2000个以上。","取消实施","取消实施。因项目与已实施项目存在相似内容，为避免重复建设，我局决定取消该项目，原计划150万元"]
[3,"程村乡","泗里村","三江侗族自治县产业园区标准厂房","产业发展","新建","项目占地约30亩，新建标准厂房1栋。","2025年1月-2025年12月",null,{"$f":"K363+L363+P363+M363+N363+O363","v":0},{"$nulls":7},72,98,108976,404665,28942,123502,6094,26420,"科工贸局","科工贸局","完成建设标准厂房1栋。项目建成后，通过出租标准厂房获得租金收益，用于村集体经济分红。","施工期间可为脱贫人口提供就业务工岗位，厂房建成出租给进驻企业后可提供就业岗位50个以上，同时通过租赁标准厂房进行收益分红，拉动周边村屯集体经济收入。","取消实施","取消实施。因该项目已使用粤桂协作资金实施，故不再使用衔接资金。原计划1300万元"]
[4,"斗江镇","思欧村","斗江镇思欧村田埂山油茶基地建设项目（新建轨道车和仓储项目）","产业发展","新建","轨道车线路13条，共计5565.41m，仓储面积167.44平方米，晒坪1260平方米，道路硬化550平方米","2025年4月－－2025年12月",null,{"$f":"K364+L364+M364","v":0},0,{"$nulls":7},1,458,1392,123,407,null,null,"三江侗族自治县林业局","三江侗族自治县林业局","完成单轨运输车8套总长8000米、仓储1座200平米建设。","通过建设437亩优质高效油茶示范基地,解决油茶基地内肥料、茶果运输困难问题，提高基地管护水平，减少人工成本，提高产出，带动周边林农就近就业，受益人口458户1392人。","取消实施","取消实施。因项目存在纠纷申请取消实施。原计划130万。"]